{"text_format":"1","workbook":"xlsx","n_sheets":11,"sheets":["APLICATIVO","DATOS","CLAVE","Hoja4","GENERAL","ADMINISTRADO","UBIGEO","MUNICIPALIDAD","EFA","APOYO","Hoja1"],"not_rendered":{"charts":1,"images":2,"macros":1,"external_links":0,"defined_names":5,"comments":0,"pivot_tables":0},"unopened":[],"bounds":{"document_bytes":16777216,"sheet_cells":100000,"rows_first":2000,"rows_last":500,"rows_between":2000,"halvings":0,"cell_chars":16384,"cell_head_chars":4096},"cells_cut":0,"cells_raw":0,"read":"whole","date_system":"1900"}

{"sheet":"APLICATIVO","index":0,"n_rows":0,"n_cols":0,"rows_kept":0,"cut":false,"hidden":false,"merged":[]}

{"sheet":"DATOS","index":1,"n_rows":50,"n_cols":4,"rows_kept":50,"cut":false,"hidden":true,"merged":[]}
["Código","Tipo de EFA","INFRACCIÓN","COSTO EVITADO"]
[1,"DISTRITAL Y PROVINCIAL CERCADO","1.- No segregar en la fuente de generación los residuos sólidos no peligrosos generados de acuerdo a sus características físicas, químicas y biológicas, manteniendo la segregación hasta la entrega al servicio municipal correspondiente.",1790]
[2,"DISTRITAL Y PROVINCIAL CERCADO","2.- No segregar en la fuente los residuos sólidos peligrosos generados de acuerdo a sus características físicas, químicas y biológicas, manteniendo la segregación hasta la entrega al servicio municipal correspondiente.",1790]
[3,"DISTRITAL Y PROVINCIAL CERCADO","3.- Almacenar los residuos sólidos generados sin haberlos segregado previamente, en espacios no exclusivos para ese fin o sin considerar sus características particulares, peligrosidad, incompatibilidad con otros residuos o reacciones con los recipientes que los contienen.",1670]
[4,"DISTRITAL Y PROVINCIAL CERCADO","4.- Utilizar para el almacenamiento de residuos municipales, recipientes que no sean de material impermeable, liviano, resistente y de fácil manipulación.",500]
[5,"DISTRITAL Y PROVINCIAL CERCADO","5.- Abandonar, verter o disponer residuos sólidos en lugares no autorizados por la municipalidad o prohibidos por la normativa vigente",2936]
[6,"DISTRITAL Y PROVINCIAL CERCADO","6.- Entregar los residuos sólidos a personas o empresas distintas de las municipalidades, de las EO-RS debidamente autorizadas o de las organizaciones de recicladores formalizados que presten el servicio de recolección selectiva de residuos sólidos municipales.",1510]
[7,"DISTRITAL Y PROVINCIAL CERCADO","7.- Entregar los residuos municipales especiales generados a personas distintas a una EO-RS o a la municipalidad.",1661]
[8,"DISTRITAL Y PROVINCIAL CERCADO","8.- No implementar, en las unidades inmobiliarias, áreas internas destinadas al almacenamiento de residuos sólidos previo a su entrega al servicio de limpieza pública prestado por la municipalidad o por la EO-RS",1670]
[9,"DISTRITAL Y PROVINCIAL CERCADO","9.- No realizar la recolección selectiva de residuos sólidos, de acuerdo a las disposiciones emitidas por la autoridad municipal correspondiente.",1638]
[10,"DISTRITAL Y PROVINCIAL CERCADO","10.- Practicar de manera informal la segregación, recolección, reaprovechamiento, reciclaje y comercialización de residuos sólidos.",1880]
[11,"DISTRITAL Y PROVINCIAL CERCADO","11.- Usar vehículos no autorizados para la actividad de reciclaje.",1893]
[12,"DISTRITAL Y PROVINCIAL CERCADO","12.- Realizar la recolección selectiva de residuos sólidos a través de menores de edad.",2457]
[13,"DISTRITAL Y PROVINCIAL CERCADO","13.- Realizar la recolección selectiva de residuos sólidos peligrosos.",2621]
[14,"DISTRITAL Y PROVINCIAL CERCADO","14.- Realizar la segregación en las celdas sanitarias en los rellenos sanitarios.",2328]
[15,"DISTRITAL Y PROVINCIAL CERCADO","15.- Realizar la segregación en los vehículos recolectores y plantas de transferencia de residuos sólidos.",2149]
[16,"DISTRITAL Y PROVINCIAL CERCADO","16.- Comercializar los residuos sólidos reaprovechables con fines de adulteración o piratería.",750]
[17,"DISTRITAL Y PROVINCIAL CERCADO","17.-Solicitar residuos sólidos reaprovechables al alumnado de instituciones educativas, cuando estos residuos no han sido generados al interior de estas instituciones educativas.",2129]
[18,"DISTRITAL Y PROVINCIAL CERCADO","18.- No controlar los riesgos sanitarios y ambientales durante la ruta de la actividad de comercialización de los residuos sólidos, según su jurisdicción.",682]
[19,"DISTRITAL Y PROVINCIAL CERCADO","19.- No controlar las emisiones de humos, gases y demás descargas contaminantes que podrían afectar el ambiente.",500]
[20,"DISTRITAL Y PROVINCIAL CERCADO","20.- Generar ruidos de cualquier fuente sujeta a la competencia de la EFA Local que sobrepasen los valores establecidos en los Estándares de Calidad Ambiental para ruido, de acuerdo a la zonificación de la municipalidad.",450]
[21,"PROVINCIAL","21.- Prestar servicios de manejo de residuos sólidos a través de empresas operadoras de residuos sólidos no autorizadas.",1893]
[22,"PROVINCIAL","22.- No realizar el barrido y limpieza de las vías, plazas y demás áreas públicas en el distrito.",1536]
[23,"PROVINCIAL","23.- No realizar la recolección selectiva y transporte de residuos sólidos en el distrito.",1835]
[24,"PROVINCIAL","24.- No implementar contenedores debidamente acondicionados para el almacenamiento de residuos generados en espacios públicos, de acuerdo a lo establecido en la normativa vigente.",1837]
[25,"PROVINCIAL","25.- No adoptar medidas para evitar que la capacidad de carga de los dispositivos de almacenamiento sea rebasada o para facilitar la operación de carga, descarga y transporte de los residuos sólidos.",800]
[26,"PROVINCIAL","26.- No implementar Programas de Segregación en la Fuente y Recolección Selectiva de los residuos sólidos, de acuerdo a lo establecido en la normativa vigente",2864.99]
[27,"PROVINCIAL","27.- No realizar la recolección o transporte de residuos sólidos no aprovechables en la frecuencia mínima correspondiente a tres (3) veces por semana en el distrito.",2200]
[28,"PROVINCIAL","28.- Acondicionar residuos sólidos distintos a los inorgánicos no peligrosos recuperados en el marco de los Programas de Segregación en la Fuente y Recolección Selectiva de los Residuos Sólidos",1629.8]
[29,"PROVINCIAL","29.- No difundir el horario y frecuencia de recolección establecidos por la munipalidad, de acuerdo a lo establecido en la normativa vigente.",2200]
[30,"PROVINCIAL","30.- Realizar la recolección de residuos sólidos en rutas, horarios y frecuencias distintas a las aprobadas y difundidas a los generadores por la municipalidad.",2200]
[31,"PROVINCIAL","31.- No manejar de forma selectiva y separada los residuos sólidos peligrosos, como parte del servicio de limpieza pública.",1690]
[32,"PROVINCIAL","32.- No realizar la valorización prioritariamente, de los residuos orgánicos provenientes del mantenimiento de áreas verdes y mercados municipales, así como de los residuos orgánicos domiciliarios.\n",2478]
[33,"PROVINCIAL","33.- No ejecutar programas para la formalización de recicladores, operadores y demás entidades que intervienen en el manejo de los residuos sólidos sin las autorizaciones correspondientes.",3008]
[34,"PROVINCIAL","34.- Prestar los servicios de limpieza de vías y espacios públicos, recolección y transporte, acondicionamiento sin estar inscrito en el Registro de Empresas Operadoras de Residuos Sólidos del MINAM.",1068]
[35,"PROVINCIAL","35.- Realizar el transporte de residuos sólidos peligrosos sin contar con la autorización respectiva emitida por la municipalidad provincial.",1893]
[36,"PROVINCIAL","36.- No suscribir los manifiestos de residuos peligrosos.",430]
[37,"PROVINCIAL","37.- No presentar el Informe de operador de los residuos que han manejado o comercializado, en el plazo y modo establecido en la normativa vigente.",200]
[38,"PROVINCIAL","38.- No contar con un programa de saneamiento ambiental de acuerdo a sus operaciones.",1000]
[39,"PROVINCIAL","39.- No contar con un registro sobre los residuos que manejan",75]
[40,"PROVINCIAL","40.- No registrar los incidentes, de acuerdo a lo establecido en la normativa vigente.",75]
[41,"PROVINCIAL","41.- No contar con un ingeniero sanitario u otro profesional con especialización y experiencia en gestión y manejo de residuos que esté calificado para hacerse cargo de la dirección técnica de las operaciones según corresponda.",2125]
[42,"PROVINCIAL","42.- No contar con una póliza de seguro que cubra los daños materiales, ambientales, y a terceros, derivados del manejo de residuos peligrosos.",109]
[43,"PROVINCIAL","43.- No adoptar medidas para el control de riesgos sanitarios y ambientales durante la actividad de recolección y transporte de residuos sólidos.",682]
[44,"PROVINCIAL","44.- Transportar los residuos sólidos sin considerar su naturaleza física, química y biológica, características de peligrosidad e incompatibilidad con otros residuos.",2068]
[45,"PROVINCIAL","45.- No realizar el mantenimiento preventivo de los equipos y vehículos que empleen para el transporte de residuos.",588]
[46,"PROVINCIAL","46.- No contar con la señalética visible del tipo de residuo que transportan.",273]
[47,"PROVINCIAL","47.- Utilizar los vehículos para el manejo de residuos sólidos biocontaminados con otros fines distintos a los que fueron autorizados.",1893]
[48,"PROVINCIAL","48.- Circular produciendo contaminación en un índice superior a los límites máximos permisibles de emisiones atmosféricas para vehículos automotores",608]
[49,"PROVINCIAL","49.- Circular produciendo ruidos que superen el Estándar de Calidad Ambiental para ruido, de acuerdo a la zonificación establecida por la municipalidad local.",608]

{"sheet":"CLAVE","index":2,"n_rows":1,"n_cols":2,"rows_kept":1,"cut":false,"hidden":true,"merged":[]}
["CLAVE","abcde"]

{"sheet":"Hoja4","index":3,"n_rows":50,"n_cols":3,"rows_kept":50,"cut":false,"hidden":true,"merged":[]}
[null,"Administrado","Código"]
[null,"Generadores de RRSS Municipales",1]
[null,"Generadores de RRSS Municipales",2]
[null,"Generadores de RRSS Municipales",3]
[null,"Generadores de RRSS Municipales",4]
[null,"Generadores de RRSS Municipales",5]
[null,"Generadores de RRSS Municipales",6]
[null,"Generadores de RRSS Municipales Especiales",7]
[null,"Generadores de RRSS Municipales",8]
[null,"Recicladores y Asociación de Recicladores",9]
[null,"Recicladores y Asociación de Recicladores",10]
[null,"Recicladores y Asociación de Recicladores",11]
[null,"Recicladores y Asociación de Recicladores",12]
[null,"Recicladores y Asociación de Recicladores",13]
[null,"Recicladores y Asociación de Recicladores",14]
[null,"Recicladores y Asociación de Recicladores",15]
[null,"Recicladores y Asociación de Recicladores",16]
[null,"Recicladores y Asociación de Recicladores",17]
[null,"Comercializadores de RRSS",18]
[null,"Generadores de ruidos y emisiones",19]
[null,"Generadores de ruidos y emisiones",20]
[null,"Gestores de manejo de RRSS municipales",21]
[null,"Gestores de manejo de RRSS municipales",22]
[null,"Gestores de manejo de RRSS municipales",23]
[null,"Gestores de manejo de RRSS municipales",24]
[null,"Gestores de manejo de RRSS municipales",25]
[null,"Gestores de manejo de RRSS municipales",26]
[null,"Gestores de manejo de RRSS municipales",27]
[null,"Gestores de manejo de RRSS municipales",28]
[null,"Gestores de manejo de RRSS municipales",29]
[null,"Gestores de manejo de RRSS municipales",30]
[null,"Gestores de manejo de RRSS municipales",31]
[null,"Gestores de manejo de RRSS municipales",32]
[null,"Gestores de manejo de RRSS municipales",33]
[null,"Gestores de manejo de RRSS municipales",34]
[null,"Gestores de manejo de RRSS municipales",35]
[null,"Gestores de manejo de RRSS municipales",36]
[null,"Gestores de manejo de RRSS municipales",37]
[null,"Gestores de manejo de RRSS municipales",38]
[null,"Gestores de manejo de RRSS municipales",39]
[null,"Gestores de manejo de RRSS municipales",40]
[null,"Gestores de manejo de RRSS municipales",41]
[null,"Gestores de manejo de RRSS municipales",42]
[null,"Gestores de manejo de RRSS municipales",43]
[null,"Gestores de manejo de RRSS municipales",44]
[null,"Gestores de manejo de RRSS municipales",45]
[null,"Gestores de manejo de RRSS municipales",46]
[null,"Gestores de manejo de RRSS municipales",47]
[null,"Generadores de ruidos y emisiones",48]
[null,"Generadores de ruidos y emisiones",49]

{"sheet":"GENERAL","index":4,"n_rows":124,"n_cols":4,"rows_kept":124,"cut":false,"hidden":true,"merged":[]}
["CODIGO","TIPO EFA","INFRACCIÓN","GENERAL"]
[1,"DISTRITAL Y PROVINCIAL CERCADO","1.- No segregar en la fuente de generación los residuos sólidos no peligrosos generados de acuerdo a sus características físicas, químicas y biológicas, manteniendo la segregación hasta la entrega al servicio municipal correspondiente.","Unidades inmobiliarias"]
[1,"DISTRITAL Y PROVINCIAL CERCADO","1.- No segregar en la fuente de generación los residuos sólidos no peligrosos generados de acuerdo a sus características físicas, químicas y biológicas, manteniendo la segregación hasta la entrega al servicio municipal correspondiente.","Locales comerciales individuales"]
[1,"DISTRITAL Y PROVINCIAL CERCADO","1.- No segregar en la fuente de generación los residuos sólidos no peligrosos generados de acuerdo a sus características físicas, químicas y biológicas, manteniendo la segregación hasta la entrega al servicio municipal correspondiente.","Instituciones públicas y privadas"]
[1,"DISTRITAL Y PROVINCIAL CERCADO","1.- No segregar en la fuente de generación los residuos sólidos no peligrosos generados de acuerdo a sus características físicas, químicas y biológicas, manteniendo la segregación hasta la entrega al servicio municipal correspondiente.","Locales comerciales agrupados"]
[2,"DISTRITAL Y PROVINCIAL CERCADO","2.- No segregar en la fuente los residuos sólidos peligrosos generados de acuerdo a sus características físicas, químicas y biológicas, manteniendo la segregación hasta la entrega al servicio municipal correspondiente.","Unidades inmobiliarias"]
[2,"DISTRITAL Y PROVINCIAL CERCADO","2.- No segregar en la fuente los residuos sólidos peligrosos generados de acuerdo a sus características físicas, químicas y biológicas, manteniendo la segregación hasta la entrega al servicio municipal correspondiente.","Locales comerciales individuales"]
[2,"DISTRITAL Y PROVINCIAL CERCADO","2.- No segregar en la fuente los residuos sólidos peligrosos generados de acuerdo a sus características físicas, químicas y biológicas, manteniendo la segregación hasta la entrega al servicio municipal correspondiente.","Instituciones públicas y privadas"]
[2,"DISTRITAL Y PROVINCIAL CERCADO","2.- No segregar en la fuente los residuos sólidos peligrosos generados de acuerdo a sus características físicas, químicas y biológicas, manteniendo la segregación hasta la entrega al servicio municipal correspondiente.","Locales comerciales agrupados"]
[3,"DISTRITAL Y PROVINCIAL CERCADO","3.- Almacenar los residuos sólidos generados sin haberlos segregado previamente, en espacios no exclusivos para ese fin o sin considerar sus características particulares, peligrosidad, incompatibilidad con otros residuos o reacciones con los recipientes que los contienen.","Unidades inmobiliarias"]
[3,"DISTRITAL Y PROVINCIAL CERCADO","3.- Almacenar los residuos sólidos generados sin haberlos segregado previamente, en espacios no exclusivos para ese fin o sin considerar sus características particulares, peligrosidad, incompatibilidad con otros residuos o reacciones con los recipientes que los contienen.","Locales comerciales individuales"]
[3,"DISTRITAL Y PROVINCIAL CERCADO","3.- Almacenar los residuos sólidos generados sin haberlos segregado previamente, en espacios no exclusivos para ese fin o sin considerar sus características particulares, peligrosidad, incompatibilidad con otros residuos o reacciones con los recipientes que los contienen.","Instituciones públicas y privadas"]
[3,"DISTRITAL Y PROVINCIAL CERCADO","3.- Almacenar los residuos sólidos generados sin haberlos segregado previamente, en espacios no exclusivos para ese fin o sin considerar sus características particulares, peligrosidad, incompatibilidad con otros residuos o reacciones con los recipientes que los contienen.","Locales comerciales agrupados"]
[4,"DISTRITAL Y PROVINCIAL CERCADO","4.- Utilizar para el almacenamiento de residuos municipales, recipientes que no sean de material impermeable, liviano, resistente y de fácil manipulación.","Unidades inmobiliarias"]
[4,"DISTRITAL Y PROVINCIAL CERCADO","4.- Utilizar para el almacenamiento de residuos municipales, recipientes que no sean de material impermeable, liviano, resistente y de fácil manipulación.","Locales comerciales individuales"]
[4,"DISTRITAL Y PROVINCIAL CERCADO","4.- Utilizar para el almacenamiento de residuos municipales, recipientes que no sean de material impermeable, liviano, resistente y de fácil manipulación.","Instituciones públicas y privadas"]
[4,"DISTRITAL Y PROVINCIAL CERCADO","4.- Utilizar para el almacenamiento de residuos municipales, recipientes que no sean de material impermeable, liviano, resistente y de fácil manipulación.","Locales comerciales agrupados"]
[5,"DISTRITAL Y PROVINCIAL CERCADO","5.- Abandonar, verter o disponer residuos sólidos en lugares no autorizados por la municipalidad o prohibidos por la normativa vigente","Unidades inmobiliarias"]
[5,"DISTRITAL Y PROVINCIAL CERCADO","5.- Abandonar, verter o disponer residuos sólidos en lugares no autorizados por la municipalidad o prohibidos por la normativa vigente","Locales comerciales individuales"]
[5,"DISTRITAL Y PROVINCIAL CERCADO","5.- Abandonar, verter o disponer residuos sólidos en lugares no autorizados por la municipalidad o prohibidos por la normativa vigente","Instituciones públicas y privadas"]
[5,"DISTRITAL Y PROVINCIAL CERCADO","5.- Abandonar, verter o disponer residuos sólidos en lugares no autorizados por la municipalidad o prohibidos por la normativa vigente","Locales comerciales agrupados"]
[6,"DISTRITAL Y PROVINCIAL CERCADO","6.- Entregar los residuos sólidos a personas o empresas distintas de las municipalidades, de las EO-RS debidamente autorizadas o de las organizaciones de recicladores formalizados que presten el servicio de recolección selectiva de residuos sólidos municipales.","Unidades inmobiliarias"]
[6,"DISTRITAL Y PROVINCIAL CERCADO","6.- Entregar los residuos sólidos a personas o empresas distintas de las municipalidades, de las EO-RS debidamente autorizadas o de las organizaciones de recicladores formalizados que presten el servicio de recolección selectiva de residuos sólidos municipales.","Locales comerciales individuales"]
[6,"DISTRITAL Y PROVINCIAL CERCADO","6.- Entregar los residuos sólidos a personas o empresas distintas de las municipalidades, de las EO-RS debidamente autorizadas o de las organizaciones de recicladores formalizados que presten el servicio de recolección selectiva de residuos sólidos municipales.","Instituciones públicas y privadas"]
[6,"DISTRITAL Y PROVINCIAL CERCADO","6.- Entregar los residuos sólidos a personas o empresas distintas de las municipalidades, de las EO-RS debidamente autorizadas o de las organizaciones de recicladores formalizados que presten el servicio de recolección selectiva de residuos sólidos municipales.","Locales comerciales agrupados"]
[7,"DISTRITAL Y PROVINCIAL CERCADO","7.- Entregar los residuos municipales especiales generados a personas distintas a una EO-RS o a la municipalidad.","Locales comerciales individuales"]
[7,"DISTRITAL Y PROVINCIAL CERCADO","7.- Entregar los residuos municipales especiales generados a personas distintas a una EO-RS o a la municipalidad.","Locales de eventos masivos"]
[7,"DISTRITAL Y PROVINCIAL CERCADO","7.- Entregar los residuos municipales especiales generados a personas distintas a una EO-RS o a la municipalidad.","Locales comerciales agrupados"]
[8,"DISTRITAL Y PROVINCIAL CERCADO","8.- No implementar, en las unidades inmobiliarias, áreas internas destinadas al almacenamiento de residuos sólidos previo a su entrega al servicio de limpieza pública prestado por la municipalidad o por la EO-RS","Unidades inmobiliarias"]
[8,"DISTRITAL Y PROVINCIAL CERCADO","8.- No implementar, en las unidades inmobiliarias, áreas internas destinadas al almacenamiento de residuos sólidos previo a su entrega al servicio de limpieza pública prestado por la municipalidad o por la EO-RS","Instituciones públicas y privadas"]
[9,"DISTRITAL Y PROVINCIAL CERCADO","9.- No realizar la recolección selectiva de residuos sólidos, de acuerdo a las disposiciones emitidas por la autoridad municipal correspondiente.","Reciclador independiente"]
[9,"DISTRITAL Y PROVINCIAL CERCADO","9.- No realizar la recolección selectiva de residuos sólidos, de acuerdo a las disposiciones emitidas por la autoridad municipal correspondiente.","Asociación de recicladores formalizados."]
[10,"DISTRITAL Y PROVINCIAL CERCADO","10.- Practicar de manera informal la segregación, recolección, reaprovechamiento, reciclaje y comercialización de residuos sólidos.","Reciclador independiente"]
[10,"DISTRITAL Y PROVINCIAL CERCADO","10.- Practicar de manera informal la segregación, recolección, reaprovechamiento, reciclaje y comercialización de residuos sólidos.","Asociación de recicladores formalizados."]
[11,"DISTRITAL Y PROVINCIAL CERCADO","11.- Usar vehículos no autorizados para la actividad de reciclaje.","Reciclador independiente"]
[11,"DISTRITAL Y PROVINCIAL CERCADO","11.- Usar vehículos no autorizados para la actividad de reciclaje.","Asociación de recicladores formalizados."]
[12,"DISTRITAL Y PROVINCIAL CERCADO","12.- Realizar la recolección selectiva de residuos sólidos a través de menores de edad.","Reciclador independiente"]
[12,"DISTRITAL Y PROVINCIAL CERCADO","12.- Realizar la recolección selectiva de residuos sólidos a través de menores de edad.","Asociación de recicladores formalizados."]
[13,"DISTRITAL Y PROVINCIAL CERCADO","13.- Realizar la recolección selectiva de residuos sólidos peligrosos.","Reciclador independiente"]
[13,"DISTRITAL Y PROVINCIAL CERCADO","13.- Realizar la recolección selectiva de residuos sólidos peligrosos.","Asociación de recicladores formalizados."]
[14,"DISTRITAL Y PROVINCIAL CERCADO","14.- Realizar la segregación en las celdas sanitarias en los rellenos sanitarios.","Reciclador independiente"]
[14,"DISTRITAL Y PROVINCIAL CERCADO","14.- Realizar la segregación en las celdas sanitarias en los rellenos sanitarios.","Asociación de recicladores formalizados."]
[15,"DISTRITAL Y PROVINCIAL CERCADO","15.- Realizar la segregación en los vehículos recolectores y plantas de transferencia de residuos sólidos.","Reciclador independiente"]
[15,"DISTRITAL Y PROVINCIAL CERCADO","15.- Realizar la segregación en los vehículos recolectores y plantas de transferencia de residuos sólidos.","Asociación de recicladores formalizados."]
[16,"DISTRITAL Y PROVINCIAL CERCADO","16.- Comercializar los residuos sólidos reaprovechables con fines de adulteración o piratería.","Reciclador independiente"]
[16,"DISTRITAL Y PROVINCIAL CERCADO","16.- Comercializar los residuos sólidos reaprovechables con fines de adulteración o piratería.","Asociación de recicladores formalizados."]
[17,"DISTRITAL Y PROVINCIAL CERCADO","17.-Solicitar residuos sólidos reaprovechables al alumnado de instituciones educativas, cuando estos residuos no han sido generados al interior de estas instituciones educativas.","Reciclador independiente"]
[17,"DISTRITAL Y PROVINCIAL CERCADO","17.-Solicitar residuos sólidos reaprovechables al alumnado de instituciones educativas, cuando estos residuos no han sido generados al interior de estas instituciones educativas.","Asociación de recicladores formalizados."]
[18,"DISTRITAL Y PROVINCIAL CERCADO","18.- No controlar los riesgos sanitarios y ambientales durante la ruta de la actividad de comercialización de los residuos sólidos, según su jurisdicción.","Asociación de recicladores formalizados."]
[18,"DISTRITAL Y PROVINCIAL CERCADO","18.- No controlar los riesgos sanitarios y ambientales durante la ruta de la actividad de comercialización de los residuos sólidos, según su jurisdicción.","Empresas Operadoras de Residuos Sólidos autorizadas"]
[19,"DISTRITAL Y PROVINCIAL CERCADO","19.- No controlar las emisiones de humos, gases y demás descargas contaminantes que podrían afectar el ambiente.","Generador de ruidos y emisiones de cualquier fuente"]
[20,"DISTRITAL Y PROVINCIAL CERCADO","20.- Generar ruidos de cualquier fuente sujeta a la competencia de la EFA Local que sobrepasen los valores establecidos en los Estándares de Calidad Ambiental para ruido, de acuerdo a la zonificación de la municipalidad.","Generador de ruidos y emisiones de cualquier fuente"]
[21,"PROVINCIAL","21.- Prestar servicios de manejo de residuos sólidos a través de empresas operadoras de residuos sólidos no autorizadas.","Municipalidades"]
[22,"PROVINCIAL","22.- No realizar el barrido y limpieza de las vías, plazas y demás áreas públicas en el distrito.","Municipalidades"]
[22,"PROVINCIAL","22.- No realizar el barrido y limpieza de las vías, plazas y demás áreas públicas en el distrito.","Empresas Operadoras de Residuos Sólidos autorizadas"]
[23,"PROVINCIAL","23.- No realizar la recolección selectiva y transporte de residuos sólidos en el distrito.","Municipalidades"]
[23,"PROVINCIAL","23.- No realizar la recolección selectiva y transporte de residuos sólidos en el distrito.","Empresas Operadoras de Residuos Sólidos autorizadas"]
[24,"PROVINCIAL","24.- No implementar contenedores debidamente acondicionados para el almacenamiento de residuos generados en espacios públicos, de acuerdo a lo establecido en la normativa vigente.","Municipalidades"]
[24,"PROVINCIAL","24.- No implementar contenedores debidamente acondicionados para el almacenamiento de residuos generados en espacios públicos, de acuerdo a lo establecido en la normativa vigente.","Empresas Operadoras de Residuos Sólidos autorizadas"]
[25,"PROVINCIAL","25.- No adoptar medidas para evitar que la capacidad de carga de los dispositivos de almacenamiento sea rebasada o para facilitar la operación de carga, descarga y transporte de los residuos sólidos.","Municipalidades"]
[25,"PROVINCIAL","25.- No adoptar medidas para evitar que la capacidad de carga de los dispositivos de almacenamiento sea rebasada o para facilitar la operación de carga, descarga y transporte de los residuos sólidos.","Empresas Operadoras de Residuos Sólidos autorizadas"]
[26,"PROVINCIAL","26.- No implementar Programas de Segregación en la Fuente y Recolección Selectiva de los residuos sólidos, de acuerdo a lo establecido en la normativa vigente","Municipalidades"]
[26,"PROVINCIAL","26.- No implementar Programas de Segregación en la Fuente y Recolección Selectiva de los residuos sólidos, de acuerdo a lo establecido en la normativa vigente","Empresas Operadoras de Residuos Sólidos autorizadas"]
[27,"PROVINCIAL","27.- No realizar la recolección o transporte de residuos sólidos no aprovechables en la frecuencia mínima correspondiente a tres (3) veces por semana en el distrito.","Municipalidades"]
[27,"PROVINCIAL","27.- No realizar la recolección o transporte de residuos sólidos no aprovechables en la frecuencia mínima correspondiente a tres (3) veces por semana en el distrito.","Empresas Operadoras de Residuos Sólidos autorizadas"]
[28,"PROVINCIAL","28.- Acondicionar residuos sólidos distintos a los inorgánicos no peligrosos recuperados en el marco de los Programas de Segregación en la Fuente y Recolección Selectiva de los Residuos Sólidos","Municipalidades"]
[28,"PROVINCIAL","28.- Acondicionar residuos sólidos distintos a los inorgánicos no peligrosos recuperados en el marco de los Programas de Segregación en la Fuente y Recolección Selectiva de los Residuos Sólidos","Empresas Operadoras de Residuos Sólidos autorizadas"]
[29,"PROVINCIAL","29.- No difundir el horario y frecuencia de recolección establecidos por la munipalidad, de acuerdo a lo establecido en la normativa vigente.","Municipalidades"]
[29,"PROVINCIAL","29.- No difundir el horario y frecuencia de recolección establecidos por la munipalidad, de acuerdo a lo establecido en la normativa vigente.","Empresas Operadoras de Residuos Sólidos autorizadas"]
[30,"PROVINCIAL","30.- Realizar la recolección de residuos sólidos en rutas, horarios y frecuencias distintas a las aprobadas y difundidas a los generadores por la municipalidad.","Municipalidades"]
[30,"PROVINCIAL","30.- Realizar la recolección de residuos sólidos en rutas, horarios y frecuencias distintas a las aprobadas y difundidas a los generadores por la municipalidad.","Empresas Operadoras de Residuos Sólidos autorizadas"]
[31,"PROVINCIAL","31.- No manejar de forma selectiva y separada los residuos sólidos peligrosos, como parte del servicio de limpieza pública.","Municipalidades"]
[31,"PROVINCIAL","31.- No manejar de forma selectiva y separada los residuos sólidos peligrosos, como parte del servicio de limpieza pública.","Empresas Operadoras de Residuos Sólidos autorizadas"]
[32,"PROVINCIAL","32.- No realizar la valorización prioritariamente, de los residuos orgánicos provenientes del mantenimiento de áreas verdes y mercados municipales, así como de los residuos orgánicos domiciliarios.\n","Municipalidades"]
[32,"PROVINCIAL","32.- No realizar la valorización prioritariamente, de los residuos orgánicos provenientes del mantenimiento de áreas verdes y mercados municipales, así como de los residuos orgánicos domiciliarios.\n","Empresas Operadoras de Residuos Sólidos autorizadas"]
[33,"PROVINCIAL","33.- No ejecutar programas para la formalización de recicladores, operadores y demás entidades que intervienen en el manejo de los residuos sólidos sin las autorizaciones correspondientes.","Municipalidades"]
[34,"PROVINCIAL","34.- Prestar los servicios de limpieza de vías y espacios públicos, recolección y transporte, acondicionamiento sin estar inscrito en el Registro de Empresas Operadoras de Residuos Sólidos del MINAM.","Empresas Operadoras de Residuos Sólidos autorizadas"]
[35,"PROVINCIAL","35.- Realizar el transporte de residuos sólidos peligrosos sin contar con la autorización respectiva emitida por la municipalidad provincial.","Empresas Operadoras de Residuos Sólidos autorizadas"]
[36,"PROVINCIAL","36.- No suscribir los manifiestos de residuos peligrosos.","Empresas Operadoras de Residuos Sólidos autorizadas"]
[37,"PROVINCIAL","37.- No presentar el Informe de operador de los residuos que han manejado o comercializado, en el plazo y modo establecido en la normativa vigente.","Empresas Operadoras de Residuos Sólidos autorizadas"]
[38,"PROVINCIAL","38.- No contar con un programa de saneamiento ambiental de acuerdo a sus operaciones.","Empresas Operadoras de Residuos Sólidos autorizadas"]
[39,"PROVINCIAL","39.- No contar con un registro sobre los residuos que manejan","Empresas Operadoras de Residuos Sólidos autorizadas"]
[40,"PROVINCIAL","40.- No registrar los incidentes, de acuerdo a lo establecido en la normativa vigente.","Empresas Operadoras de Residuos Sólidos autorizadas"]
[41,"PROVINCIAL","41.- No contar con un ingeniero sanitario u otro profesional con especialización y experiencia en gestión y manejo de residuos que esté calificado para hacerse cargo de la dirección técnica de las operaciones según corresponda.","Empresas Operadoras de Residuos Sólidos autorizadas"]
[42,"PROVINCIAL","42.- No contar con una póliza de seguro que cubra los daños materiales, ambientales, y a terceros, derivados del manejo de residuos peligrosos.","Empresas Operadoras de Residuos Sólidos autorizadas"]
[43,"PROVINCIAL","43.- No adoptar medidas para el control de riesgos sanitarios y ambientales durante la actividad de recolección y transporte de residuos sólidos.","Empresas Operadoras de Residuos Sólidos autorizadas"]
[44,"PROVINCIAL","44.- Transportar los residuos sólidos sin considerar su naturaleza física, química y biológica, características de peligrosidad e incompatibilidad con otros residuos.","Empresas Operadoras de Residuos Sólidos autorizadas"]
[45,"PROVINCIAL","45.- No realizar el mantenimiento preventivo de los equipos y vehículos que empleen para el transporte de residuos.","Empresas Operadoras de Residuos Sólidos autorizadas"]
[46,"PROVINCIAL","46.- No contar con la señalética visible del tipo de residuo que transportan.","Empresas Operadoras de Residuos Sólidos autorizadas"]
[47,"PROVINCIAL","47.- Utilizar los vehículos para el manejo de residuos sólidos biocontaminados con otros fines distintos a los que fueron autorizados.","Empresas Operadoras de Residuos Sólidos autorizadas"]
[48,"PROVINCIAL","48.- Circular produciendo contaminación en un índice superior a los límites máximos permisibles de emisiones atmosféricas para vehículos automotores","Parque automotor"]
[49,"PROVINCIAL","49.- Circular produciendo ruidos que superen el Estándar de Calidad Ambiental para ruido, de acuerdo a la zonificación establecida por la municipalidad local.","Parque automotor"]
[25,"Provincial","25.- No realizar la recolección y transporte de residuos sólidos no aprovechables en la frecuencia mínima correspondiente a tres (3) veces por semana en el distrito.","Gestores informales de residuos sólidos"]
[25,"Provincial","25.- No realizar la recolección y transporte de residuos sólidos no aprovechables en la frecuencia mínima correspondiente a tres (3) veces por semana en el distrito.","Reaprovechamiento y comercialización de RRSS"]
[26,"Provincial","26.- Prestar servicios de residuos sólidos a través de personas o empresas operadoras no autorizadas.","Gestores informales de residuos sólidos"]
[26,"Provincial","26.- Prestar servicios de residuos sólidos a través de personas o empresas operadoras no autorizadas.","Reaprovechamiento y comercialización de RRSS"]
[27,"Provincial","27.- Realizar la recolección de residuos sólidos en rutas, horarios y frecuencias distintas a las aprobadas y difundidas a los generadores por la municipalidad.","Gestores informales de residuos sólidos"]
[27,"Provincial","27.- Realizar la recolección de residuos sólidos en rutas, horarios y frecuencias distintas a las aprobadas y difundidas a los generadores por la municipalidad.","Reaprovechamiento y comercialización de RRSS"]
[28,"Provincial","28.- No manejar de forma selectiva y separada los residuos sólidos peligrosos, como parte del servicio de limpieza pública.","Gestores informales de residuos sólidos"]
[28,"Provincial","28.- No manejar de forma selectiva y separada los residuos sólidos peligrosos, como parte del servicio de limpieza pública.","Reaprovechamiento y comercialización de RRSS"]
[29,"Provincial","29.- Realizar la transferencia de residuos sólidos municipales en sitios diferentes de las plantas de transferencia.","Gestores informales de residuos sólidos"]
[29,"Provincial","29.- Realizar la transferencia de residuos sólidos municipales en sitios diferentes de las plantas de transferencia.","Reaprovechamiento y comercialización de RRSS"]
[30,"Provincial","30.- Almacenar residuos sólidos por más de doce (12) horas posteriores a su transferencia del vehículo de menor al de mayor capacidad, impidiendo que continúen con su proceso de transporte.","Gestores informales de residuos sólidos"]
[30,"Provincial","30.- Almacenar residuos sólidos por más de doce (12) horas posteriores a su transferencia del vehículo de menor al de mayor capacidad, impidiendo que continúen con su proceso de transporte.","Reaprovechamiento y comercialización de RRSS"]
[31,"Provincial","31.- Realizar la prestación del servicio de limpieza pública sin estar inscrito en el Registro de Empresas Operadoras de Residuos Sólidos del MINAM.","Gestores informales de residuos sólidos"]
[31,"Provincial","31.- Realizar la prestación del servicio de limpieza pública sin estar inscrito en el Registro de Empresas Operadoras de Residuos Sólidos del MINAM.","Reaprovechamiento y comercialización de RRSS"]
[32,"Provincial","32.- No controlar los riesgos sanitarios y ambientales durante la ruta de la actividad de comercialización de los residuos sólidos bajo jurisdicción.","Gestores informales de residuos sólidos"]
[32,"Provincial","32.- No controlar los riesgos sanitarios y ambientales durante la ruta de la actividad de comercialización de los residuos sólidos bajo jurisdicción.","Reaprovechamiento y comercialización de RRSS"]
[33,"Provincial","33.- Realizar el transporte de residuos sólidos peligrosos sin contar con la autorización respectiva emitida por la municipalidad provincial.","Gestores informales de residuos sólidos"]
[33,"Provincial","33.- Realizar el transporte de residuos sólidos peligrosos sin contar con la autorización respectiva emitida por la municipalidad provincial.","Reaprovechamiento y comercialización de RRSS"]
[34,"Provincial","34.- No suscribir los manifiestos de residuos peligrosos.","Gestores informales de residuos sólidos"]
[34,"Provincial","34.- No suscribir los manifiestos de residuos peligrosos.","Reaprovechamiento y comercialización de RRSS"]
[35,"Provincial","35.- No presentar el Informe de operador de los residuos que han manejado o comercializado.","Gestores informales de residuos sólidos"]
[35,"Provincial","35.- No presentar el Informe de operador de los residuos que han manejado o comercializado.","Reaprovechamiento y comercialización de RRSS"]
[36,"Provincial","36.- No contar con un programa de saneamiento ambiental de acuerdo a sus operaciones.","Gestores informales de residuos sólidos"]
[36,"Provincial","36.- No contar con un programa de saneamiento ambiental de acuerdo a sus operaciones.","Reaprovechamiento y comercialización de RRSS"]
[37,"Provincial","37.- No contar con un registro de incidentes establecidos en la normativa","Gestores informales de residuos sólidos"]
[37,"Provincial","37.- No contar con un registro de incidentes establecidos en la normativa","Reaprovechamiento y comercialización de RRSS"]
[38,"Provincial","38.- No contar con una póliza de seguro que cubra los daños materiales, ambientales y a terceros, derivados del manejo de residuos peligrosos.","Gestores informales de residuos sólidos"]
[38,"Provincial","38.- No contar con una póliza de seguro que cubra los daños materiales, ambientales y a terceros, derivados del manejo de residuos peligrosos.","Reaprovechamiento y comercialización de RRSS"]
[39,"Provincial","39.- No adoptar medidas para el control de riesgos sanitarios y ambientales durante la actividad de recolección y transporte de residuos sólidos.","Gestores informales de residuos sólidos"]
[39,"Provincial","39.- No adoptar medidas para el control de riesgos sanitarios y ambientales durante la actividad de recolección y transporte de residuos sólidos.","Reaprovechamiento y comercialización de RRSS"]
[40,"Provincial","40.- Transportar los residuos sólidos sin considerar su naturaleza física, química y biológica, características de peligrosidad e incompatibilidad con otros residuos.","Parque automotor"]
[41,"Provincial","41.- No realizar el mantenimiento preventivo de los equipos y vehículos que empleen para el transporte de residuos.","Parque automotor"]

{"sheet":"ADMINISTRADO","index":5,"n_rows":179,"n_cols":9,"rows_kept":179,"cut":false,"hidden":true,"merged":[]}
["CODIGO","TIPO EFA","GENERAL","ESPECIFICO","INFRACCIÓN","COSTO EVITADO","PONDERADOR","BENEFICIO ILÍCITO","ADMINISTRADO"]
[1,"DISTRITAL Y PROVINCIAL CERCADO","Unidades inmobiliarias","Unipersonal","1.- No segregar en la fuente de generación los residuos sólidos no peligrosos generados de acuerdo a sus características físicas, químicas y biológicas, manteniendo la segregación hasta la entrega al servicio municipal correspondiente.",1790,0.01,17.900000000000002,"Generadores de RRSS Municipales"]
[1,"DISTRITAL Y PROVINCIAL CERCADO","Unidades inmobiliarias","Unifamiliar","1.- No segregar en la fuente de generación los residuos sólidos no peligrosos generados de acuerdo a sus características físicas, químicas y biológicas, manteniendo la segregación hasta la entrega al servicio municipal correspondiente.",1790,0.04,71.600000000000009,"Generadores de RRSS Municipales"]
[1,"DISTRITAL Y PROVINCIAL CERCADO","Unidades inmobiliarias","Multifamiliares","1.- No segregar en la fuente de generación los residuos sólidos no peligrosos generados de acuerdo a sus características físicas, químicas y biológicas, manteniendo la segregación hasta la entrega al servicio municipal correspondiente.",1790,0.09,161.1,"Generadores de RRSS Municipales"]
[1,"DISTRITAL Y PROVINCIAL CERCADO","Unidades inmobiliarias","Conjuntos residenciales","1.- No segregar en la fuente de generación los residuos sólidos no peligrosos generados de acuerdo a sus características físicas, químicas y biológicas, manteniendo la segregación hasta la entrega al servicio municipal correspondiente.",1790,0.16,286.40000000000003,"Generadores de RRSS Municipales"]
[1,"DISTRITAL Y PROVINCIAL CERCADO","Locales comerciales individuales","Comercio ambulatorio","1.- No segregar en la fuente de generación los residuos sólidos no peligrosos generados de acuerdo a sus características físicas, químicas y biológicas, manteniendo la segregación hasta la entrega al servicio municipal correspondiente.",1790,0.02,35.800000000000004,"Generadores de RRSS Municipales"]
[1,"DISTRITAL Y PROVINCIAL CERCADO","Locales comerciales individuales","Tienda independiente, cafeteria, comida al paso, y otros similares.","1.- No segregar en la fuente de generación los residuos sólidos no peligrosos generados de acuerdo a sus características físicas, químicas y biológicas, manteniendo la segregación hasta la entrega al servicio municipal correspondiente.",1790,0.05,89.5,"Generadores de RRSS Municipales"]
[1,"DISTRITAL Y PROVINCIAL CERCADO","Locales comerciales individuales","Un tenedor","1.- No segregar en la fuente de generación los residuos sólidos no peligrosos generados de acuerdo a sus características físicas, químicas y biológicas, manteniendo la segregación hasta la entrega al servicio municipal correspondiente.",1790,0.04,71.600000000000009,"Generadores de RRSS Municipales"]
[1,"DISTRITAL Y PROVINCIAL CERCADO","Locales comerciales individuales","Dos tenedores","1.- No segregar en la fuente de generación los residuos sólidos no peligrosos generados de acuerdo a sus características físicas, químicas y biológicas, manteniendo la segregación hasta la entrega al servicio municipal correspondiente.",1790,0.09,161.1,"Generadores de RRSS Municipales"]
[1,"DISTRITAL Y PROVINCIAL CERCADO","Locales comerciales individuales","Tres tenedores","1.- No segregar en la fuente de generación los residuos sólidos no peligrosos generados de acuerdo a sus características físicas, químicas y biológicas, manteniendo la segregación hasta la entrega al servicio municipal correspondiente.",1790,0.16,286.40000000000003,"Generadores de RRSS Municipales"]
[1,"DISTRITAL Y PROVINCIAL CERCADO","Locales comerciales individuales","Cuatro tenedores","1.- No segregar en la fuente de generación los residuos sólidos no peligrosos generados de acuerdo a sus características físicas, químicas y biológicas, manteniendo la segregación hasta la entrega al servicio municipal correspondiente.",1790,0.25,447.5,"Generadores de RRSS Municipales"]
[1,"DISTRITAL Y PROVINCIAL CERCADO","Locales comerciales individuales","Cinco tenedores","1.- No segregar en la fuente de generación los residuos sólidos no peligrosos generados de acuerdo a sus características físicas, químicas y biológicas, manteniendo la segregación hasta la entrega al servicio municipal correspondiente.",1790,0.36,644.4,"Generadores de RRSS Municipales"]
[1,"DISTRITAL Y PROVINCIAL CERCADO","Instituciones públicas y privadas","Entidades públicas y privadas","1.- No segregar en la fuente de generación los residuos sólidos no peligrosos generados de acuerdo a sus características físicas, químicas y biológicas, manteniendo la segregación hasta la entrega al servicio municipal correspondiente.",1790,0.33,590.70000000000005,"Generadores de RRSS Municipales"]
[1,"DISTRITAL Y PROVINCIAL CERCADO","Locales comerciales agrupados","Mercadillo vecinal (hasta 149 puestos)","1.- No segregar en la fuente de generación los residuos sólidos no peligrosos generados de acuerdo a sus características físicas, químicas y biológicas, manteniendo la segregación hasta la entrega al servicio municipal correspondiente.",1790,0.08,143.20000000000002,"Generadores de RRSS Municipales"]
[1,"DISTRITAL Y PROVINCIAL CERCADO","Locales comerciales agrupados","Mercado zonal minorista (entre 150 y 499 puestos)","1.- No segregar en la fuente de generación los residuos sólidos no peligrosos generados de acuerdo a sus características físicas, químicas y biológicas, manteniendo la segregación hasta la entrega al servicio municipal correspondiente.",1790,0.17,304.3,"Generadores de RRSS Municipales"]
[1,"DISTRITAL Y PROVINCIAL CERCADO","Locales comerciales agrupados","Mercado minorista metropolitano (más de 500 puestos)","1.- No segregar en la fuente de generación los residuos sólidos no peligrosos generados de acuerdo a sus características físicas, químicas y biológicas, manteniendo la segregación hasta la entrega al servicio municipal correspondiente.",1790,0.28000000000000003,501.20000000000005,"Generadores de RRSS Municipales"]
[1,"DISTRITAL Y PROVINCIAL CERCADO","Locales comerciales agrupados","Mercado mayorista","1.- No segregar en la fuente de generación los residuos sólidos no peligrosos generados de acuerdo a sus características físicas, químicas y biológicas, manteniendo la segregación hasta la entrega al servicio municipal correspondiente.",1790,0.41,733.9,"Generadores de RRSS Municipales"]
[2,"DISTRITAL Y PROVINCIAL CERCADO","Unidades inmobiliarias","Unipersonal","2.- No segregar en la fuente los residuos sólidos peligrosos generados de acuerdo a sus características físicas, químicas y biológicas, manteniendo la segregación hasta la entrega al servicio municipal correspondiente.",1790,0.01,17.900000000000002,"Generador de RRSS Municipales"]
[2,"DISTRITAL Y PROVINCIAL CERCADO","Unidades inmobiliarias","Unifamiliar","2.- No segregar en la fuente los residuos sólidos peligrosos generados de acuerdo a sus características físicas, químicas y biológicas, manteniendo la segregación hasta la entrega al servicio municipal correspondiente.",1790,0.04,71.600000000000009,"Generador de RRSS Municipales"]
[2,"DISTRITAL Y PROVINCIAL CERCADO","Unidades inmobiliarias","Multifamiliares","2.- No segregar en la fuente los residuos sólidos peligrosos generados de acuerdo a sus características físicas, químicas y biológicas, manteniendo la segregación hasta la entrega al servicio municipal correspondiente.",1790,0.09,161.1,"Generador de RRSS Municipales"]
[2,"DISTRITAL Y PROVINCIAL CERCADO","Unidades inmobiliarias","Conjuntos residenciales","2.- No segregar en la fuente los residuos sólidos peligrosos generados de acuerdo a sus características físicas, químicas y biológicas, manteniendo la segregación hasta la entrega al servicio municipal correspondiente.",1790,0.16,286.40000000000003,"Generador de RRSS Municipales"]
[2,"DISTRITAL Y PROVINCIAL CERCADO","Locales comerciales individuales","Comercio ambulatorio","2.- No segregar en la fuente los residuos sólidos peligrosos generados de acuerdo a sus características físicas, químicas y biológicas, manteniendo la segregación hasta la entrega al servicio municipal correspondiente.",1790,0.02,35.800000000000004,"Generador de RRSS Municipales"]
[2,"DISTRITAL Y PROVINCIAL CERCADO","Locales comerciales individuales","Tienda independiente, cafeteria, comida al paso, y otros similares.","2.- No segregar en la fuente los residuos sólidos peligrosos generados de acuerdo a sus características físicas, químicas y biológicas, manteniendo la segregación hasta la entrega al servicio municipal correspondiente.",1790,0.05,89.5,"Generador de RRSS Municipales"]
[2,"DISTRITAL Y PROVINCIAL CERCADO","Locales comerciales individuales","Un tenedor","2.- No segregar en la fuente los residuos sólidos peligrosos generados de acuerdo a sus características físicas, químicas y biológicas, manteniendo la segregación hasta la entrega al servicio municipal correspondiente.",1790,0.04,71.600000000000009,"Generador de RRSS Municipales"]
[2,"DISTRITAL Y PROVINCIAL CERCADO","Locales comerciales individuales","Dos tenedores","2.- No segregar en la fuente los residuos sólidos peligrosos generados de acuerdo a sus características físicas, químicas y biológicas, manteniendo la segregación hasta la entrega al servicio municipal correspondiente.",1790,0.09,161.1,"Generador de RRSS Municipales"]
[2,"DISTRITAL Y PROVINCIAL CERCADO","Locales comerciales individuales","Tres tenedores","2.- No segregar en la fuente los residuos sólidos peligrosos generados de acuerdo a sus características físicas, químicas y biológicas, manteniendo la segregación hasta la entrega al servicio municipal correspondiente.",1790,0.16,286.40000000000003,"Generador de RRSS Municipales"]
[2,"DISTRITAL Y PROVINCIAL CERCADO","Locales comerciales individuales","Cuatro tenedores","2.- No segregar en la fuente los residuos sólidos peligrosos generados de acuerdo a sus características físicas, químicas y biológicas, manteniendo la segregación hasta la entrega al servicio municipal correspondiente.",1790,0.25,447.5,"Generador de RRSS Municipales"]
[2,"DISTRITAL Y PROVINCIAL CERCADO","Locales comerciales individuales","Cinco tenedores","2.- No segregar en la fuente los residuos sólidos peligrosos generados de acuerdo a sus características físicas, químicas y biológicas, manteniendo la segregación hasta la entrega al servicio municipal correspondiente.",1790,0.36,644.4,"Generador de RRSS Municipales"]
[2,"DISTRITAL Y PROVINCIAL CERCADO","Instituciones públicas y privadas","Entidades públicas y privadas","2.- No segregar en la fuente los residuos sólidos peligrosos generados de acuerdo a sus características físicas, químicas y biológicas, manteniendo la segregación hasta la entrega al servicio municipal correspondiente.",1790,0.33,590.70000000000005,"Generador de RRSS Municipales"]
[2,"DISTRITAL Y PROVINCIAL CERCADO","Locales comerciales agrupados","Mercadillo vecinal (hasta 149 puestos)","2.- No segregar en la fuente los residuos sólidos peligrosos generados de acuerdo a sus características físicas, químicas y biológicas, manteniendo la segregación hasta la entrega al servicio municipal correspondiente.",1790,0.08,143.20000000000002,"Generador de RRSS Municipales"]
[2,"DISTRITAL Y PROVINCIAL CERCADO","Locales comerciales agrupados","Mercado zonal minorista (entre 150 y 499 puestos)","2.- No segregar en la fuente los residuos sólidos peligrosos generados de acuerdo a sus características físicas, químicas y biológicas, manteniendo la segregación hasta la entrega al servicio municipal correspondiente.",1790,0.17,304.3,"Generador de RRSS Municipales"]
[2,"DISTRITAL Y PROVINCIAL CERCADO","Locales comerciales agrupados","Mercado minorista metropolitano (más de 500 puestos)","2.- No segregar en la fuente los residuos sólidos peligrosos generados de acuerdo a sus características físicas, químicas y biológicas, manteniendo la segregación hasta la entrega al servicio municipal correspondiente.",1790,0.28000000000000003,501.20000000000005,"Generador de RRSS Municipales"]
[2,"DISTRITAL Y PROVINCIAL CERCADO","Locales comerciales agrupados","Mercado mayorista","2.- No segregar en la fuente los residuos sólidos peligrosos generados de acuerdo a sus características físicas, químicas y biológicas, manteniendo la segregación hasta la entrega al servicio municipal correspondiente.",1790,0.41,733.9,"Generador de RRSS Municipales"]
[3,"DISTRITAL Y PROVINCIAL CERCADO","Unidades inmobiliarias","Unipersonal","3.- Almacenar los residuos sólidos generados sin haberlos segregado previamente, en espacios no exclusivos para ese fin o sin considerar sus características particulares, peligrosidad, incompatibilidad con otros residuos o reacciones con los recipientes que los contienen.",1670,0.01,16.7,"Generador de RRSS Municipales"]
[3,"DISTRITAL Y PROVINCIAL CERCADO","Unidades inmobiliarias","Unifamiliar","3.- Almacenar los residuos sólidos generados sin haberlos segregado previamente, en espacios no exclusivos para ese fin o sin considerar sus características particulares, peligrosidad, incompatibilidad con otros residuos o reacciones con los recipientes que los contienen.",1670,0.04,66.8,"Generador de RRSS Municipales"]
[3,"DISTRITAL Y PROVINCIAL CERCADO","Unidades inmobiliarias","Multifamiliares","3.- Almacenar los residuos sólidos generados sin haberlos segregado previamente, en espacios no exclusivos para ese fin o sin considerar sus características particulares, peligrosidad, incompatibilidad con otros residuos o reacciones con los recipientes que los contienen.",1670,0.09,150.29999999999998,"Generador de RRSS Municipales"]
[3,"DISTRITAL Y PROVINCIAL CERCADO","Unidades inmobiliarias","Conjuntos residenciales","3.- Almacenar los residuos sólidos generados sin haberlos segregado previamente, en espacios no exclusivos para ese fin o sin considerar sus características particulares, peligrosidad, incompatibilidad con otros residuos o reacciones con los recipientes que los contienen.",1670,0.16,267.2,"Generador de RRSS Municipales"]
[3,"DISTRITAL Y PROVINCIAL CERCADO","Locales comerciales individuales","Comercio ambulatorio","3.- Almacenar los residuos sólidos generados sin haberlos segregado previamente, en espacios no exclusivos para ese fin o sin considerar sus características particulares, peligrosidad, incompatibilidad con otros residuos o reacciones con los recipientes que los contienen.",1670,0.02,33.4,"Generador de RRSS Municipales"]
[3,"DISTRITAL Y PROVINCIAL CERCADO","Locales comerciales individuales","Tienda independiente, cafeteria, comida al paso, y otros similares.","3.- Almacenar los residuos sólidos generados sin haberlos segregado previamente, en espacios no exclusivos para ese fin o sin considerar sus características particulares, peligrosidad, incompatibilidad con otros residuos o reacciones con los recipientes que los contienen.",1670,0.05,83.5,"Generador de RRSS Municipales"]
[3,"DISTRITAL Y PROVINCIAL CERCADO","Locales comerciales individuales","Un tenedor","3.- Almacenar los residuos sólidos generados sin haberlos segregado previamente, en espacios no exclusivos para ese fin o sin considerar sus características particulares, peligrosidad, incompatibilidad con otros residuos o reacciones con los recipientes que los contienen.",1670,0.04,66.8,"Generador de RRSS Municipales"]
[3,"DISTRITAL Y PROVINCIAL CERCADO","Locales comerciales individuales","Dos tenedores","3.- Almacenar los residuos sólidos generados sin haberlos segregado previamente, en espacios no exclusivos para ese fin o sin considerar sus características particulares, peligrosidad, incompatibilidad con otros residuos o reacciones con los recipientes que los contienen.",1670,0.09,150.29999999999998,"Generador de RRSS Municipales"]
[3,"DISTRITAL Y PROVINCIAL CERCADO","Locales comerciales individuales","Tres tenedores","3.- Almacenar los residuos sólidos generados sin haberlos segregado previamente, en espacios no exclusivos para ese fin o sin considerar sus características particulares, peligrosidad, incompatibilidad con otros residuos o reacciones con los recipientes que los contienen.",1670,0.16,267.2,"Generador de RRSS Municipales"]
[3,"DISTRITAL Y PROVINCIAL CERCADO","Locales comerciales individuales","Cuatro tenedores","3.- Almacenar los residuos sólidos generados sin haberlos segregado previamente, en espacios no exclusivos para ese fin o sin considerar sus características particulares, peligrosidad, incompatibilidad con otros residuos o reacciones con los recipientes que los contienen.",1670,0.25,417.5,"Generador de RRSS Municipales"]
[3,"DISTRITAL Y PROVINCIAL CERCADO","Locales comerciales individuales","Cinco tenedores","3.- Almacenar los residuos sólidos generados sin haberlos segregado previamente, en espacios no exclusivos para ese fin o sin considerar sus características particulares, peligrosidad, incompatibilidad con otros residuos o reacciones con los recipientes que los contienen.",1670,0.36,601.19999999999993,"Generador de RRSS Municipales"]
[3,"DISTRITAL Y PROVINCIAL CERCADO","Instituciones públicas y privadas","Entidades públicas y privadas","3.- Almacenar los residuos sólidos generados sin haberlos segregado previamente, en espacios no exclusivos para ese fin o sin considerar sus características particulares, peligrosidad, incompatibilidad con otros residuos o reacciones con los recipientes que los contienen.",1670,0.33,551.1,"Generador de RRSS Municipales"]
[3,"DISTRITAL Y PROVINCIAL CERCADO","Locales comerciales agrupados","Mercadillo vecinal (hasta 149 puestos)","3.- Almacenar los residuos sólidos generados sin haberlos segregado previamente, en espacios no exclusivos para ese fin o sin considerar sus características particulares, peligrosidad, incompatibilidad con otros residuos o reacciones con los recipientes que los contienen.",1670,0.08,133.6,"Generador de RRSS Municipales"]
[3,"DISTRITAL Y PROVINCIAL CERCADO","Locales comerciales agrupados","Mercado zonal minorista (entre 150 y 499 puestos)","3.- Almacenar los residuos sólidos generados sin haberlos segregado previamente, en espacios no exclusivos para ese fin o sin considerar sus características particulares, peligrosidad, incompatibilidad con otros residuos o reacciones con los recipientes que los contienen.",1670,0.17,283.90000000000003,"Generador de RRSS Municipales"]
[3,"DISTRITAL Y PROVINCIAL CERCADO","Locales comerciales agrupados","Mercado minorista metropolitano (más de 500 puestos)","3.- Almacenar los residuos sólidos generados sin haberlos segregado previamente, en espacios no exclusivos para ese fin o sin considerar sus características particulares, peligrosidad, incompatibilidad con otros residuos o reacciones con los recipientes que los contienen.",1670,0.28000000000000003,467.6,"Generador de RRSS Municipales"]
[3,"DISTRITAL Y PROVINCIAL CERCADO","Locales comerciales agrupados","Mercado mayorista","3.- Almacenar los residuos sólidos generados sin haberlos segregado previamente, en espacios no exclusivos para ese fin o sin considerar sus características particulares, peligrosidad, incompatibilidad con otros residuos o reacciones con los recipientes que los contienen.",1670,0.41,684.69999999999993,"Generador de RRSS Municipales"]
[4,"DISTRITAL Y PROVINCIAL CERCADO","Unidades inmobiliarias","Unipersonal","4.- Utilizar para el almacenamiento de residuos municipales, recipientes que no sean de material impermeable, liviano, resistente y de fácil manipulación.",500,0.01,5,"Generador de RRSS Municipales"]
[4,"DISTRITAL Y PROVINCIAL CERCADO","Unidades inmobiliarias","Unifamiliar","4.- Utilizar para el almacenamiento de residuos municipales, recipientes que no sean de material impermeable, liviano, resistente y de fácil manipulación.",500,0.04,20,"Generador de RRSS Municipales"]
[4,"DISTRITAL Y PROVINCIAL CERCADO","Unidades inmobiliarias","Multifamiliares","4.- Utilizar para el almacenamiento de residuos municipales, recipientes que no sean de material impermeable, liviano, resistente y de fácil manipulación.",500,0.09,45,"Generador de RRSS Municipales"]
[4,"DISTRITAL Y PROVINCIAL CERCADO","Unidades inmobiliarias","Conjuntos residenciales","4.- Utilizar para el almacenamiento de residuos municipales, recipientes que no sean de material impermeable, liviano, resistente y de fácil manipulación.",500,0.16,80,"Generador de RRSS Municipales"]
[4,"DISTRITAL Y PROVINCIAL CERCADO","Locales comerciales individuales","Comercio ambulatorio","4.- Utilizar para el almacenamiento de residuos municipales, recipientes que no sean de material impermeable, liviano, resistente y de fácil manipulación.",500,0.02,10,"Generador de RRSS Municipales"]
[4,"DISTRITAL Y PROVINCIAL CERCADO","Locales comerciales individuales","Tienda independiente, cafeteria, comida al paso, y otros similares.","4.- Utilizar para el almacenamiento de residuos municipales, recipientes que no sean de material impermeable, liviano, resistente y de fácil manipulación.",500,0.05,25,"Generador de RRSS Municipales"]
[4,"DISTRITAL Y PROVINCIAL CERCADO","Locales comerciales individuales","Un tenedor","4.- Utilizar para el almacenamiento de residuos municipales, recipientes que no sean de material impermeable, liviano, resistente y de fácil manipulación.",500,0.04,20,"Generador de RRSS Municipales"]
[4,"DISTRITAL Y PROVINCIAL CERCADO","Locales comerciales individuales","Dos tenedores","4.- Utilizar para el almacenamiento de residuos municipales, recipientes que no sean de material impermeable, liviano, resistente y de fácil manipulación.",500,0.09,45,"Generador de RRSS Municipales"]
[4,"DISTRITAL Y PROVINCIAL CERCADO","Locales comerciales individuales","Tres tenedores","4.- Utilizar para el almacenamiento de residuos municipales, recipientes que no sean de material impermeable, liviano, resistente y de fácil manipulación.",500,0.16,80,"Generador de RRSS Municipales"]
[4,"DISTRITAL Y PROVINCIAL CERCADO","Locales comerciales individuales","Cuatro tenedores","4.- Utilizar para el almacenamiento de residuos municipales, recipientes que no sean de material impermeable, liviano, resistente y de fácil manipulación.",500,0.25,125,"Generador de RRSS Municipales"]
[4,"DISTRITAL Y PROVINCIAL CERCADO","Locales comerciales individuales","Cinco tenedores","4.- Utilizar para el almacenamiento de residuos municipales, recipientes que no sean de material impermeable, liviano, resistente y de fácil manipulación.",500,0.36,180,"Generador de RRSS Municipales"]
[4,"DISTRITAL Y PROVINCIAL CERCADO","Instituciones públicas y privadas","Entidades públicas y privadas","4.- Utilizar para el almacenamiento de residuos municipales, recipientes que no sean de material impermeable, liviano, resistente y de fácil manipulación.",500,0.33,165,"Generador de RRSS Municipales"]
[4,"DISTRITAL Y PROVINCIAL CERCADO","Locales comerciales agrupados","Mercadillo vecinal (hasta 149 puestos)","4.- Utilizar para el almacenamiento de residuos municipales, recipientes que no sean de material impermeable, liviano, resistente y de fácil manipulación.",500,0.08,40,"Generador de RRSS Municipales"]
[4,"DISTRITAL Y PROVINCIAL CERCADO","Locales comerciales agrupados","Mercado zonal minorista (entre 150 y 499 puestos)","4.- Utilizar para el almacenamiento de residuos municipales, recipientes que no sean de material impermeable, liviano, resistente y de fácil manipulación.",500,0.17,85,"Generador de RRSS Municipales"]
[4,"DISTRITAL Y PROVINCIAL CERCADO","Locales comerciales agrupados","Mercado minorista metropolitano (más de 500 puestos)","4.- Utilizar para el almacenamiento de residuos municipales, recipientes que no sean de material impermeable, liviano, resistente y de fácil manipulación.",500,0.28000000000000003,140,"Generador de RRSS Municipales"]
[4,"DISTRITAL Y PROVINCIAL CERCADO","Locales comerciales agrupados","Mercado mayorista","4.- Utilizar para el almacenamiento de residuos municipales, recipientes que no sean de material impermeable, liviano, resistente y de fácil manipulación.",500,0.41,205,"Generador de RRSS Municipales"]
[5,"DISTRITAL Y PROVINCIAL CERCADO","Unidades inmobiliarias","Unipersonal","5.- Abandonar, verter o disponer residuos sólidos en lugares no autorizados por la municipalidad o prohibidos por la normativa vigente",2936,0.01,29.36,"Generador de RRSS Municipales"]
[5,"DISTRITAL Y PROVINCIAL CERCADO","Unidades inmobiliarias","Unifamiliar","5.- Abandonar, verter o disponer residuos sólidos en lugares no autorizados por la municipalidad o prohibidos por la normativa vigente",2936,0.04,117.44,"Generador de RRSS Municipales"]
[5,"DISTRITAL Y PROVINCIAL CERCADO","Unidades inmobiliarias","Multifamiliares","5.- Abandonar, verter o disponer residuos sólidos en lugares no autorizados por la municipalidad o prohibidos por la normativa vigente",2936,0.09,264.24,"Generador de RRSS Municipales"]
[5,"DISTRITAL Y PROVINCIAL CERCADO","Unidades inmobiliarias","Conjuntos residenciales","5.- Abandonar, verter o disponer residuos sólidos en lugares no autorizados por la municipalidad o prohibidos por la normativa vigente",2936,0.16,469.76,"Generador de RRSS Municipales"]
[5,"DISTRITAL Y PROVINCIAL CERCADO","Locales comerciales individuales","Comercio ambulatorio","5.- Abandonar, verter o disponer residuos sólidos en lugares no autorizados por la municipalidad o prohibidos por la normativa vigente",2936,0.02,58.72,"Generador de RRSS Municipales"]
[5,"DISTRITAL Y PROVINCIAL CERCADO","Locales comerciales individuales","Tienda independiente, cafeteria, comida al paso, y otros similares.","5.- Abandonar, verter o disponer residuos sólidos en lugares no autorizados por la municipalidad o prohibidos por la normativa vigente",2936,0.05,146.80000000000001,"Generador de RRSS Municipales"]
[5,"DISTRITAL Y PROVINCIAL CERCADO","Locales comerciales individuales","Un tenedor","5.- Abandonar, verter o disponer residuos sólidos en lugares no autorizados por la municipalidad o prohibidos por la normativa vigente",2936,0.04,117.44,"Generador de RRSS Municipales"]
[5,"DISTRITAL Y PROVINCIAL CERCADO","Locales comerciales individuales","Dos tenedores","5.- Abandonar, verter o disponer residuos sólidos en lugares no autorizados por la municipalidad o prohibidos por la normativa vigente",2936,0.09,264.24,"Generador de RRSS Municipales"]
[5,"DISTRITAL Y PROVINCIAL CERCADO","Locales comerciales individuales","Tres tenedores","5.- Abandonar, verter o disponer residuos sólidos en lugares no autorizados por la municipalidad o prohibidos por la normativa vigente",2936,0.16,469.76,"Generador de RRSS Municipales"]
[5,"DISTRITAL Y PROVINCIAL CERCADO","Locales comerciales individuales","Cuatro tenedores","5.- Abandonar, verter o disponer residuos sólidos en lugares no autorizados por la municipalidad o prohibidos por la normativa vigente",2936,0.25,734,"Generador de RRSS Municipales"]
[5,"DISTRITAL Y PROVINCIAL CERCADO","Locales comerciales individuales","Cinco tenedores","5.- Abandonar, verter o disponer residuos sólidos en lugares no autorizados por la municipalidad o prohibidos por la normativa vigente",2936,0.36,1056.96,"Generador de RRSS Municipales"]
[5,"DISTRITAL Y PROVINCIAL CERCADO","Instituciones públicas y privadas","Entidades públicas y privadas","5.- Abandonar, verter o disponer residuos sólidos en lugares no autorizados por la municipalidad o prohibidos por la normativa vigente",2936,0.33,968.88,"Generador de RRSS Municipales"]
[5,"DISTRITAL Y PROVINCIAL CERCADO","Locales comerciales agrupados","Mercadillo vecinal (hasta 149 puestos)","5.- Abandonar, verter o disponer residuos sólidos en lugares no autorizados por la municipalidad o prohibidos por la normativa vigente",2936,0.08,234.88,"Generador de RRSS Municipales"]
[5,"DISTRITAL Y PROVINCIAL CERCADO","Locales comerciales agrupados","Mercado zonal minorista (entre 150 y 499 puestos)","5.- Abandonar, verter o disponer residuos sólidos en lugares no autorizados por la municipalidad o prohibidos por la normativa vigente",2936,0.17,499.12000000000006,"Generador de RRSS Municipales"]
[5,"DISTRITAL Y PROVINCIAL CERCADO","Locales comerciales agrupados","Mercado minorista metropolitano (más de 500 puestos)","5.- Abandonar, verter o disponer residuos sólidos en lugares no autorizados por la municipalidad o prohibidos por la normativa vigente",2936,0.28000000000000003,822.08,"Generador de RRSS Municipales"]
[5,"DISTRITAL Y PROVINCIAL CERCADO","Locales comerciales agrupados","Mercado mayorista","5.- Abandonar, verter o disponer residuos sólidos en lugares no autorizados por la municipalidad o prohibidos por la normativa vigente",2936,0.41,1203.76,"Generador de RRSS Municipales"]
[6,"DISTRITAL Y PROVINCIAL CERCADO","Unidades inmobiliarias","Unipersonal","6.- Entregar los residuos sólidos a personas o empresas distintas de las municipalidades, de las EO-RS debidamente autorizadas o de las organizaciones de recicladores formalizados que presten el servicio de recolección selectiva de residuos sólidos municipales.",1510,0.01,15.1,"Generador de RRSS Municipales"]
[6,"DISTRITAL Y PROVINCIAL CERCADO","Unidades inmobiliarias","Unifamiliar","6.- Entregar los residuos sólidos a personas o empresas distintas de las municipalidades, de las EO-RS debidamente autorizadas o de las organizaciones de recicladores formalizados que presten el servicio de recolección selectiva de residuos sólidos municipales.",1510,0.04,60.4,"Generador de RRSS Municipales"]
[6,"DISTRITAL Y PROVINCIAL CERCADO","Unidades inmobiliarias","Multifamiliares","6.- Entregar los residuos sólidos a personas o empresas distintas de las municipalidades, de las EO-RS debidamente autorizadas o de las organizaciones de recicladores formalizados que presten el servicio de recolección selectiva de residuos sólidos municipales.",1510,0.09,135.9,"Generador de RRSS Municipales"]
[6,"DISTRITAL Y PROVINCIAL CERCADO","Unidades inmobiliarias","Conjuntos residenciales","6.- Entregar los residuos sólidos a personas o empresas distintas de las municipalidades, de las EO-RS debidamente autorizadas o de las organizaciones de recicladores formalizados que presten el servicio de recolección selectiva de residuos sólidos municipales.",1510,0.16,241.6,"Generador de RRSS Municipales"]
[6,"DISTRITAL Y PROVINCIAL CERCADO","Locales comerciales individuales","Comercio ambulatorio","6.- Entregar los residuos sólidos a personas o empresas distintas de las municipalidades, de las EO-RS debidamente autorizadas o de las organizaciones de recicladores formalizados que presten el servicio de recolección selectiva de residuos sólidos municipales.",1510,0.02,30.2,"Generador de RRSS Municipales"]
[6,"DISTRITAL Y PROVINCIAL CERCADO","Locales comerciales individuales","Tienda independiente, cafeteria, comida al paso, y otros similares.","6.- Entregar los residuos sólidos a personas o empresas distintas de las municipalidades, de las EO-RS debidamente autorizadas o de las organizaciones de recicladores formalizados que presten el servicio de recolección selectiva de residuos sólidos municipales.",1510,0.05,75.5,"Generador de RRSS Municipales"]
[6,"DISTRITAL Y PROVINCIAL CERCADO","Locales comerciales individuales","Un tenedor","6.- Entregar los residuos sólidos a personas o empresas distintas de las municipalidades, de las EO-RS debidamente autorizadas o de las organizaciones de recicladores formalizados que presten el servicio de recolección selectiva de residuos sólidos municipales.",1510,0.04,60.4,"Generador de RRSS Municipales"]
[6,"DISTRITAL Y PROVINCIAL CERCADO","Locales comerciales individuales","Dos tenedores","6.- Entregar los residuos sólidos a personas o empresas distintas de las municipalidades, de las EO-RS debidamente autorizadas o de las organizaciones de recicladores formalizados que presten el servicio de recolección selectiva de residuos sólidos municipales.",1510,0.09,135.9,"Generador de RRSS Municipales"]
[6,"DISTRITAL Y PROVINCIAL CERCADO","Locales comerciales individuales","Tres tenedores","6.- Entregar los residuos sólidos a personas o empresas distintas de las municipalidades, de las EO-RS debidamente autorizadas o de las organizaciones de recicladores formalizados que presten el servicio de recolección selectiva de residuos sólidos municipales.",1510,0.16,241.6,"Generador de RRSS Municipales"]
[6,"DISTRITAL Y PROVINCIAL CERCADO","Locales comerciales individuales","Cuatro tenedores","6.- Entregar los residuos sólidos a personas o empresas distintas de las municipalidades, de las EO-RS debidamente autorizadas o de las organizaciones de recicladores formalizados que presten el servicio de recolección selectiva de residuos sólidos municipales.",1510,0.25,377.5,"Generador de RRSS Municipales"]
[6,"DISTRITAL Y PROVINCIAL CERCADO","Locales comerciales individuales","Cinco tenedores","6.- Entregar los residuos sólidos a personas o empresas distintas de las municipalidades, de las EO-RS debidamente autorizadas o de las organizaciones de recicladores formalizados que presten el servicio de recolección selectiva de residuos sólidos municipales.",1510,0.36,543.6,"Generador de RRSS Municipales"]
[6,"DISTRITAL Y PROVINCIAL CERCADO","Instituciones públicas y privadas","Entidades públicas y privadas","6.- Entregar los residuos sólidos a personas o empresas distintas de las municipalidades, de las EO-RS debidamente autorizadas o de las organizaciones de recicladores formalizados que presten el servicio de recolección selectiva de residuos sólidos municipales.",1510,0.33,498.3,"Generador de RRSS Municipales"]
[6,"DISTRITAL Y PROVINCIAL CERCADO","Locales comerciales agrupados","Mercadillo vecinal (hasta 149 puestos)","6.- Entregar los residuos sólidos a personas o empresas distintas de las municipalidades, de las EO-RS debidamente autorizadas o de las organizaciones de recicladores formalizados que presten el servicio de recolección selectiva de residuos sólidos municipales.",1510,0.08,120.8,"Generador de RRSS Municipales"]
[6,"DISTRITAL Y PROVINCIAL CERCADO","Locales comerciales agrupados","Mercado zonal minorista (entre 150 y 499 puestos)","6.- Entregar los residuos sólidos a personas o empresas distintas de las municipalidades, de las EO-RS debidamente autorizadas o de las organizaciones de recicladores formalizados que presten el servicio de recolección selectiva de residuos sólidos municipales.",1510,0.17,256.70000000000005,"Generador de RRSS Municipales"]
[6,"DISTRITAL Y PROVINCIAL CERCADO","Locales comerciales agrupados","Mercado minorista metropolitano (más de 500 puestos)","6.- Entregar los residuos sólidos a personas o empresas distintas de las municipalidades, de las EO-RS debidamente autorizadas o de las organizaciones de recicladores formalizados que presten el servicio de recolección selectiva de residuos sólidos municipales.",1510,0.28000000000000003,422.80000000000007,"Generador de RRSS Municipales"]
[6,"DISTRITAL Y PROVINCIAL CERCADO","Locales comerciales agrupados","Mercado mayorista","6.- Entregar los residuos sólidos a personas o empresas distintas de las municipalidades, de las EO-RS debidamente autorizadas o de las organizaciones de recicladores formalizados que presten el servicio de recolección selectiva de residuos sólidos municipales.",1510,0.41,619.09999999999991,"Generador de RRSS Municipales"]
[7,"DISTRITAL Y PROVINCIAL CERCADO","Locales comerciales individuales","Centros veterinarios","7.- Entregar los residuos municipales especiales generados a personas distintas a una EO-RS o a la municipalidad.",1661,0.05,83.050000000000011,"Generadores de RRSS Municipales Especiales"]
[7,"DISTRITAL Y PROVINCIAL CERCADO","Locales comerciales individuales","Laboratorios de ensayos ambientales y similares distintos a los clínicos.","7.- Entregar los residuos municipales especiales generados a personas distintas a una EO-RS o a la municipalidad.",1661,0.12,199.32,"Generadores de RRSS Municipales Especiales"]
[7,"DISTRITAL Y PROVINCIAL CERCADO","Locales comerciales individuales","Lubricentros","7.- Entregar los residuos municipales especiales generados a personas distintas a una EO-RS o a la municipalidad.",1661,0.21,348.81,"Generadores de RRSS Municipales Especiales"]
[7,"DISTRITAL Y PROVINCIAL CERCADO","Locales de eventos masivos","Conciertos, concentraciones, movilización temporal humana, ferias y otras similares.","7.- Entregar los residuos municipales especiales generados a personas distintas a una EO-RS o a la municipalidad.",1661,0.32,531.52,"Generadores de RRSS Municipales Especiales"]
[7,"DISTRITAL Y PROVINCIAL CERCADO","Locales comerciales agrupados","Galería comercial y ferial; centros comerciales y otros similares.","7.- Entregar los residuos municipales especiales generados a personas distintas a una EO-RS o a la municipalidad.",1661,0.45,747.45,"Generadores de RRSS Municipales Especiales"]
[8,"DISTRITAL Y PROVINCIAL CERCADO","Unidades inmobiliarias","Unifamiliar","8.- No implementar, en las unidades inmobiliarias, áreas internas destinadas al almacenamiento de residuos sólidos previo a su entrega al servicio de limpieza pública prestado por la municipalidad o por la EO-RS",1670,0.04,66.8,"Generadores de RRSS Municipales"]
[8,"DISTRITAL Y PROVINCIAL CERCADO","Unidades inmobiliarias","Multifamiliares","8.- No implementar, en las unidades inmobiliarias, áreas internas destinadas al almacenamiento de residuos sólidos previo a su entrega al servicio de limpieza pública prestado por la municipalidad o por la EO-RS",1670,0.09,150.29999999999998,"Generadores de RRSS Municipales"]
[8,"DISTRITAL Y PROVINCIAL CERCADO","Unidades inmobiliarias","Conjuntos residenciales","8.- No implementar, en las unidades inmobiliarias, áreas internas destinadas al almacenamiento de residuos sólidos previo a su entrega al servicio de limpieza pública prestado por la municipalidad o por la EO-RS",1670,0.16,267.2,"Generadores de RRSS Municipales"]
[8,"DISTRITAL Y PROVINCIAL CERCADO","Instituciones públicas y privadas","Entidades públicas y privadas","8.- No implementar, en las unidades inmobiliarias, áreas internas destinadas al almacenamiento de residuos sólidos previo a su entrega al servicio de limpieza pública prestado por la municipalidad o por la EO-RS",1670,0.33,551.1,"Generadores de RRSS Municipales"]
[9,"DISTRITAL Y PROVINCIAL CERCADO","Reciclador independiente","Reciclador independiente","9.- No realizar la recolección selectiva de residuos sólidos, de acuerdo a las disposiciones emitidas por la autoridad municipal correspondiente.",1638,0.01,16.38,"Recicladores y Asociación de Recicladores"]
[9,"DISTRITAL Y PROVINCIAL CERCADO","Asociación de recicladores formalizados.","Asociación de recicladores formalizados.","9.- No realizar la recolección selectiva de residuos sólidos, de acuerdo a las disposiciones emitidas por la autoridad municipal correspondiente.",1638,0.08,131.04,"Recicladores y Asociación de Recicladores"]
[10,"DISTRITAL Y PROVINCIAL CERCADO","Reciclador independiente","Reciclador independiente","10.- Practicar de manera informal la segregación, recolección, reaprovechamiento, reciclaje y comercialización de residuos sólidos.",1880,0.01,18.8,"Recicladores y Asociación de Recicladores"]
[10,"DISTRITAL Y PROVINCIAL CERCADO","Asociación de recicladores formalizados.","Asociación de recicladores formalizados.","10.- Practicar de manera informal la segregación, recolección, reaprovechamiento, reciclaje y comercialización de residuos sólidos.",1880,0.08,150.4,"Recicladores y Asociación de Recicladores"]
[11,"DISTRITAL Y PROVINCIAL CERCADO","Reciclador independiente","Reciclador independiente","11.- Usar vehículos no autorizados para la actividad de reciclaje.",1893,0.01,18.93,"Recicladores y Asociación de Recicladores"]
[11,"DISTRITAL Y PROVINCIAL CERCADO","Asociación de recicladores formalizados.","Asociación de recicladores formalizados.","11.- Usar vehículos no autorizados para la actividad de reciclaje.",1893,0.08,151.44,"Recicladores y Asociación de Recicladores"]
[12,"DISTRITAL Y PROVINCIAL CERCADO","Reciclador independiente","Reciclador independiente","12.- Realizar la recolección selectiva de residuos sólidos a través de menores de edad.",2457,0.01,24.57,"Recicladores y Asociación de Recicladores"]
[12,"DISTRITAL Y PROVINCIAL CERCADO","Asociación de recicladores formalizados.","Asociación de recicladores formalizados.","12.- Realizar la recolección selectiva de residuos sólidos a través de menores de edad.",2457,0.08,196.56,"Recicladores y Asociación de Recicladores"]
[13,"DISTRITAL Y PROVINCIAL CERCADO","Reciclador independiente","Reciclador independiente","13.- Realizar la recolección selectiva de residuos sólidos peligrosos.",2621,0.01,26.21,"Recicladores y Asociación de Recicladores"]
[13,"DISTRITAL Y PROVINCIAL CERCADO","Asociación de recicladores formalizados.","Asociación de recicladores formalizados.","13.- Realizar la recolección selectiva de residuos sólidos peligrosos.",2621,0.08,209.68,"Recicladores y Asociación de Recicladores"]
[14,"DISTRITAL Y PROVINCIAL CERCADO","Reciclador independiente","Reciclador independiente","14.- Realizar la segregación en las celdas sanitarias en los rellenos sanitarios.",2328,0.01,23.28,"Recicladores y Asociación de Recicladores"]
[14,"DISTRITAL Y PROVINCIAL CERCADO","Asociación de recicladores formalizados.","Asociación de recicladores formalizados.","14.- Realizar la segregación en las celdas sanitarias en los rellenos sanitarios.",2328,0.08,186.24,"Recicladores y Asociación de Recicladores"]
[15,"DISTRITAL Y PROVINCIAL CERCADO","Reciclador independiente","Reciclador independiente","15.- Realizar la segregación en los vehículos recolectores y plantas de transferencia de residuos sólidos.",2149,0.01,21.490000000000002,"Recicladores y Asociación de Recicladores"]
[15,"DISTRITAL Y PROVINCIAL CERCADO","Asociación de recicladores formalizados.","Asociación de recicladores formalizados.","15.- Realizar la segregación en los vehículos recolectores y plantas de transferencia de residuos sólidos.",2149,0.08,171.92000000000002,"Recicladores y Asociación de Recicladores"]
[16,"DISTRITAL Y PROVINCIAL CERCADO","Reciclador independiente","Reciclador independiente","16.- Comercializar los residuos sólidos reaprovechables con fines de adulteración o piratería.",750,0.01,7.5,"Recicladores y Asociación de Recicladores"]
[16,"DISTRITAL Y PROVINCIAL CERCADO","Asociación de recicladores formalizados.","Asociación de recicladores formalizados.","16.- Comercializar los residuos sólidos reaprovechables con fines de adulteración o piratería.",750,0.08,60,"Recicladores y Asociación de Recicladores"]
[17,"DISTRITAL Y PROVINCIAL CERCADO","Reciclador independiente","Reciclador independiente","17.-Solicitar residuos sólidos reaprovechables al alumnado de instituciones educativas, cuando estos residuos no han sido generados al interior de estas instituciones educativas.",2129,0.01,21.29,"Recicladores y Asociación de Recicladores"]
[17,"DISTRITAL Y PROVINCIAL CERCADO","Asociación de recicladores formalizados.","Asociación de recicladores formalizados.","17.-Solicitar residuos sólidos reaprovechables al alumnado de instituciones educativas, cuando estos residuos no han sido generados al interior de estas instituciones educativas.",2129,0.08,170.32,"Recicladores y Asociación de Recicladores"]
[18,"DISTRITAL Y PROVINCIAL CERCADO","Asociación de recicladores formalizados.","Asociación de recicladores formalizados.","18.- No controlar los riesgos sanitarios y ambientales durante la ruta de la actividad de comercialización de los residuos sólidos, según su jurisdicción.",682,0.28000000000000003,190.96,"Comercializadores de RRSS"]
[18,"DISTRITAL Y PROVINCIAL CERCADO","Empresas Operadoras de Residuos Sólidos autorizadas","Empresas Operadoras de Residuos Sólidos autorizadas con actividad secundaria de comercialización.","18.- No controlar los riesgos sanitarios y ambientales durante la ruta de la actividad de comercialización de los residuos sólidos, según su jurisdicción.",682,0.41,279.62,"Comercializadores de RRSS"]
[18,"DISTRITAL Y PROVINCIAL CERCADO","Empresas Operadoras de Residuos Sólidos autorizadas","Empresas Operadoras de Residuos Sólidos autorizadas con actividad principal de comercialización.","18.- No controlar los riesgos sanitarios y ambientales durante la ruta de la actividad de comercialización de los residuos sólidos, según su jurisdicción.",682,0.56000000000000005,381.92,"Comercializadores de RRSS"]
[19,"DISTRITAL Y PROVINCIAL CERCADO","Generador de ruidos y emisiones de cualquier fuente","Zona de protección especial","19.- No controlar las emisiones de humos, gases y demás descargas contaminantes que podrían afectar el ambiente.",500,0.01,5,"Generadores de ruidos y emisiones"]
[19,"DISTRITAL Y PROVINCIAL CERCADO","Generador de ruidos y emisiones de cualquier fuente","Zonas residenciales","19.- No controlar las emisiones de humos, gases y demás descargas contaminantes que podrían afectar el ambiente.",500,0.04,20,"Generadores de ruidos y emisiones"]
[19,"DISTRITAL Y PROVINCIAL CERCADO","Generador de ruidos y emisiones de cualquier fuente","Zonas comerciales","19.- No controlar las emisiones de humos, gases y demás descargas contaminantes que podrían afectar el ambiente.",500,0.09,45,"Generadores de ruidos y emisiones"]
[19,"DISTRITAL Y PROVINCIAL CERCADO","Generador de ruidos y emisiones de cualquier fuente","Zonas industriales","19.- No controlar las emisiones de humos, gases y demás descargas contaminantes que podrían afectar el ambiente.",500,0.16,80,"Generadores de ruidos y emisiones"]
[20,"DISTRITAL Y PROVINCIAL CERCADO","Generador de ruidos y emisiones de cualquier fuente","Zona de protección especial","20.- Generar ruidos de cualquier fuente sujeta a la competencia de la EFA Local que sobrepasen los valores establecidos en los Estándares de Calidad Ambiental para ruido, de acuerdo a la zonificación de la municipalidad.",450,0.01,4.5,"Generadores de ruidos y emisiones"]
[20,"DISTRITAL Y PROVINCIAL CERCADO","Generador de ruidos y emisiones de cualquier fuente","Zonas residenciales","20.- Generar ruidos de cualquier fuente sujeta a la competencia de la EFA Local que sobrepasen los valores establecidos en los Estándares de Calidad Ambiental para ruido, de acuerdo a la zonificación de la municipalidad.",450,0.04,18,"Generadores de ruidos y emisiones"]
[20,"DISTRITAL Y PROVINCIAL CERCADO","Generador de ruidos y emisiones de cualquier fuente","Zonas comerciales","20.- Generar ruidos de cualquier fuente sujeta a la competencia de la EFA Local que sobrepasen los valores establecidos en los Estándares de Calidad Ambiental para ruido, de acuerdo a la zonificación de la municipalidad.",450,0.09,40.5,"Generadores de ruidos y emisiones"]
[20,"DISTRITAL Y PROVINCIAL CERCADO","Generador de ruidos y emisiones de cualquier fuente","Zonas industriales","20.- Generar ruidos de cualquier fuente sujeta a la competencia de la EFA Local que sobrepasen los valores establecidos en los Estándares de Calidad Ambiental para ruido, de acuerdo a la zonificación de la municipalidad.",450,0.16,72,"Generadores de ruidos y emisiones"]
[21,"PROVINCIAL","Municipalidades","Municipalidades distritales","21.- Prestar servicios de manejo de residuos sólidos a través de empresas operadoras de residuos sólidos no autorizadas.",1893,0.73,1381.8899999999999,"Gestores de manejo de RRSS municipales"]
[22,"PROVINCIAL","Municipalidades","Municipalidades distritales","22.- No realizar el barrido y limpieza de las vías, plazas y demás áreas públicas en el distrito.",1536,0.73,1121.28,"Gestores de manejo de RRSS municipales"]
[22,"PROVINCIAL","Empresas Operadoras de Residuos Sólidos autorizadas","Empresas Operadoras de Residuos Sólidos autorizadas","22.- No realizar el barrido y limpieza de las vías, plazas y demás áreas públicas en el distrito.",1536,0.92,1413.1200000000001,"Gestores de manejo de RRSS municipales"]
[23,"PROVINCIAL","Municipalidades","Municipalidades distritales","23.- No realizar la recolección selectiva y transporte de residuos sólidos en el distrito.",1835,0.73,1339.55,"Gestores de manejo de RRSS municipales"]
[23,"PROVINCIAL","Empresas Operadoras de Residuos Sólidos autorizadas","Empresas Operadoras de Residuos Sólidos autorizadas","23.- No realizar la recolección selectiva y transporte de residuos sólidos en el distrito.",1835,0.92,1688.2,"Gestores de manejo de RRSS municipales"]
[24,"PROVINCIAL","Municipalidades","Municipalidades distritales","24.- No implementar contenedores debidamente acondicionados para el almacenamiento de residuos generados en espacios públicos, de acuerdo a lo establecido en la normativa vigente.",1837,0.73,1341.01,"Gestores de manejo de RRSS municipales"]
[24,"PROVINCIAL","Empresas Operadoras de Residuos Sólidos autorizadas","Empresas Operadoras de Residuos Sólidos autorizadas","24.- No implementar contenedores debidamente acondicionados para el almacenamiento de residuos generados en espacios públicos, de acuerdo a lo establecido en la normativa vigente.",1837,0.92,1690.04,"Gestores de manejo de RRSS municipales"]
[25,"PROVINCIAL","Municipalidades","Municipalidades distritales","25.- No adoptar medidas para evitar que la capacidad de carga de los dispositivos de almacenamiento sea rebasada o para facilitar la operación de carga, descarga y transporte de los residuos sólidos.",800,0.73,584,"Gestores de manejo de RRSS municipales"]
[25,"PROVINCIAL","Empresas Operadoras de Residuos Sólidos autorizadas","Empresas Operadoras de Residuos Sólidos autorizadas","25.- No adoptar medidas para evitar que la capacidad de carga de los dispositivos de almacenamiento sea rebasada o para facilitar la operación de carga, descarga y transporte de los residuos sólidos.",800,0.92,736,"Gestores de manejo de RRSS municipales"]
[26,"PROVINCIAL","Municipalidades","Municipalidades distritales","26.- No implementar Programas de Segregación en la Fuente y Recolección Selectiva de los residuos sólidos, de acuerdo a lo establecido en la normativa vigente",2864.99,0.73,2091.4426999999996,"Gestores de manejo de RRSS municipales"]
[26,"PROVINCIAL","Empresas Operadoras de Residuos Sólidos autorizadas","Empresas Operadoras de Residuos Sólidos autorizadas","26.- No implementar Programas de Segregación en la Fuente y Recolección Selectiva de los residuos sólidos, de acuerdo a lo establecido en la normativa vigente",2864.99,0.92,2635.7907999999998,"Gestores de manejo de RRSS municipales"]
[27,"PROVINCIAL","Municipalidades","Municipalidades distritales","27.- No realizar la recolección o transporte de residuos sólidos no aprovechables en la frecuencia mínima correspondiente a tres (3) veces por semana en el distrito.",2200,0.73,1606,"Gestores de manejo de RRSS municipales"]
[27,"PROVINCIAL","Empresas Operadoras de Residuos Sólidos autorizadas","Empresas Operadoras de Residuos Sólidos autorizadas","27.- No realizar la recolección o transporte de residuos sólidos no aprovechables en la frecuencia mínima correspondiente a tres (3) veces por semana en el distrito.",2200,0.92,2024,"Gestores de manejo de RRSS municipales"]
[28,"PROVINCIAL","Municipalidades","Municipalidades distritales","28.- Acondicionar residuos sólidos distintos a los inorgánicos no peligrosos recuperados en el marco de los Programas de Segregación en la Fuente y Recolección Selectiva de los Residuos Sólidos",1629.8,0.73,1189.7539999999999,"Gestores de manejo de RRSS municipales"]
[28,"PROVINCIAL","Empresas Operadoras de Residuos Sólidos autorizadas","Empresas Operadoras de Residuos Sólidos autorizadas","28.- Acondicionar residuos sólidos distintos a los inorgánicos no peligrosos recuperados en el marco de los Programas de Segregación en la Fuente y Recolección Selectiva de los Residuos Sólidos",1629.8,0.92,1499.4159999999999,"Gestores de manejo de RRSS municipales"]
[29,"PROVINCIAL","Municipalidades","Municipalidades distritales","29.- No difundir el horario y frecuencia de recolección establecidos por la munipalidad, de acuerdo a lo establecido en la normativa vigente.",2200,0.73,1606,"Gestores de manejo de RRSS municipales"]
[29,"PROVINCIAL","Empresas Operadoras de Residuos Sólidos autorizadas","Empresas Operadoras de Residuos Sólidos autorizadas","29.- No difundir el horario y frecuencia de recolección establecidos por la munipalidad, de acuerdo a lo establecido en la normativa vigente.",2200,0.92,2024,"Gestores de manejo de RRSS municipales"]
[30,"PROVINCIAL","Municipalidades","Municipalidades distritales","30.- Realizar la recolección de residuos sólidos en rutas, horarios y frecuencias distintas a las aprobadas y difundidas a los generadores por la municipalidad.",2200,0.73,1606,"Gestores de manejo de RRSS municipales"]
[30,"PROVINCIAL","Empresas Operadoras de Residuos Sólidos autorizadas","Empresas Operadoras de Residuos Sólidos autorizadas","30.- Realizar la recolección de residuos sólidos en rutas, horarios y frecuencias distintas a las aprobadas y difundidas a los generadores por la municipalidad.",2200,0.92,2024,"Gestores de manejo de RRSS municipales"]
[31,"PROVINCIAL","Municipalidades","Municipalidades distritales","31.- No manejar de forma selectiva y separada los residuos sólidos peligrosos, como parte del servicio de limpieza pública.",1690,0.73,1233.7,"Gestores de manejo de RRSS municipales"]
[31,"PROVINCIAL","Empresas Operadoras de Residuos Sólidos autorizadas","Empresas Operadoras de Residuos Sólidos autorizadas","31.- No manejar de forma selectiva y separada los residuos sólidos peligrosos, como parte del servicio de limpieza pública.",1690,0.92,1554.8,"Gestores de manejo de RRSS municipales"]
[32,"PROVINCIAL","Municipalidades","Municipalidades distritales","32.- No realizar la valorización prioritariamente, de los residuos orgánicos provenientes del mantenimiento de áreas verdes y mercados municipales, así como de los residuos orgánicos domiciliarios.\n",2478,0.73,1808.94,"Gestores de manejo de RRSS municipales"]
[32,"PROVINCIAL","Empresas Operadoras de Residuos Sólidos autorizadas","Empresas Operadoras de Residuos Sólidos autorizadas","32.- No realizar la valorización prioritariamente, de los residuos orgánicos provenientes del mantenimiento de áreas verdes y mercados municipales, así como de los residuos orgánicos domiciliarios.\n",2478,0.92,2279.7600000000002,"Gestores de manejo de RRSS municipales"]
[33,"PROVINCIAL","Municipalidades","Municipalidades distritales","33.- No ejecutar programas para la formalización de recicladores, operadores y demás entidades que intervienen en el manejo de los residuos sólidos sin las autorizaciones correspondientes.",3008,0.73,2195.84,"Gestores de manejo de RRSS municipales"]
[34,"PROVINCIAL","Empresas Operadoras de Residuos Sólidos autorizadas","Empresas Operadoras de Residuos Sólidos autorizadas","34.- Prestar los servicios de limpieza de vías y espacios públicos, recolección y transporte, acondicionamiento sin estar inscrito en el Registro de Empresas Operadoras de Residuos Sólidos del MINAM.",1068,0.92,982.56000000000006,"Gestores de manejo de RRSS municipales"]
[35,"PROVINCIAL","Empresas Operadoras de Residuos Sólidos autorizadas","Empresas Operadoras de Residuos Sólidos autorizadas","35.- Realizar el transporte de residuos sólidos peligrosos sin contar con la autorización respectiva emitida por la municipalidad provincial.",1893,0.92,1741.5600000000002,"Gestores de manejo de RRSS municipales"]
[36,"PROVINCIAL","Empresas Operadoras de Residuos Sólidos autorizadas","Empresas Operadoras de Residuos Sólidos autorizadas","36.- No suscribir los manifiestos de residuos peligrosos.",430,0.92,395.6,"Gestores de manejo de RRSS municipales"]
[37,"PROVINCIAL","Empresas Operadoras de Residuos Sólidos autorizadas","Empresas Operadoras de Residuos Sólidos autorizadas","37.- No presentar el Informe de operador de los residuos que han manejado o comercializado, en el plazo y modo establecido en la normativa vigente.",200,0.92,184,"Gestores de manejo de RRSS municipales"]
[38,"PROVINCIAL","Empresas Operadoras de Residuos Sólidos autorizadas","Empresas Operadoras de Residuos Sólidos autorizadas","38.- No contar con un programa de saneamiento ambiental de acuerdo a sus operaciones.",1000,0.92,920,"Gestores de manejo de RRSS municipales"]
[39,"PROVINCIAL","Empresas Operadoras de Residuos Sólidos autorizadas","Empresas Operadoras de Residuos Sólidos autorizadas","39.- No contar con un registro sobre los residuos que manejan",75,0.92,69,"Gestores de manejo de RRSS municipales"]
[40,"PROVINCIAL","Empresas Operadoras de Residuos Sólidos autorizadas","Empresas Operadoras de Residuos Sólidos autorizadas","40.- No registrar los incidentes, de acuerdo a lo establecido en la normativa vigente.",75,0.92,69,"Gestores de manejo de RRSS municipales"]
[41,"PROVINCIAL","Empresas Operadoras de Residuos Sólidos autorizadas","Empresas Operadoras de Residuos Sólidos autorizadas","41.- No contar con un ingeniero sanitario u otro profesional con especialización y experiencia en gestión y manejo de residuos que esté calificado para hacerse cargo de la dirección técnica de las operaciones según corresponda.",2125,0.92,1955,"Gestores de manejo de RRSS municipales"]
[42,"PROVINCIAL","Empresas Operadoras de Residuos Sólidos autorizadas","Empresas Operadoras de Residuos Sólidos autorizadas","42.- No contar con una póliza de seguro que cubra los daños materiales, ambientales, y a terceros, derivados del manejo de residuos peligrosos.",109,0.92,100.28,"Gestores de manejo de RRSS municipales"]
[43,"PROVINCIAL","Empresas Operadoras de Residuos Sólidos autorizadas","Empresas Operadoras de Residuos Sólidos autorizadas","43.- No adoptar medidas para el control de riesgos sanitarios y ambientales durante la actividad de recolección y transporte de residuos sólidos.",682,0.92,627.44000000000005,"Gestores de manejo de RRSS municipales"]
[44,"PROVINCIAL","Empresas Operadoras de Residuos Sólidos autorizadas","Empresas Operadoras de Residuos Sólidos autorizadas","44.- Transportar los residuos sólidos sin considerar su naturaleza física, química y biológica, características de peligrosidad e incompatibilidad con otros residuos.",2068,0.92,1902.5600000000002,"Gestores de manejo de RRSS municipales"]
[45,"PROVINCIAL","Empresas Operadoras de Residuos Sólidos autorizadas","Empresas Operadoras de Residuos Sólidos autorizadas","45.- No realizar el mantenimiento preventivo de los equipos y vehículos que empleen para el transporte de residuos.",588,0.92,540.96,"Gestores de manejo de RRSS municipales"]
[46,"PROVINCIAL","Empresas Operadoras de Residuos Sólidos autorizadas","Empresas Operadoras de Residuos Sólidos autorizadas","46.- No contar con la señalética visible del tipo de residuo que transportan.",273,0.92,251.16000000000003,"Gestores de manejo de RRSS municipales"]
[47,"PROVINCIAL","Empresas Operadoras de Residuos Sólidos autorizadas","Empresas Operadoras de Residuos Sólidos autorizadas","47.- Utilizar los vehículos para el manejo de residuos sólidos biocontaminados con otros fines distintos a los que fueron autorizados.",1893,0.92,1741.5600000000002,"Gestores de manejo de RRSS municipales"]
[48,"PROVINCIAL","Parque automotor","Vehículos livianos","48.- Circular produciendo contaminación en un índice superior a los límites máximos permisibles de emisiones atmosféricas para vehículos automotores",608,0.25,152,"Generadores de ruidos y emisiones"]
[48,"PROVINCIAL","Parque automotor","Vehículos menores","48.- Circular produciendo contaminación en un índice superior a los límites máximos permisibles de emisiones atmosféricas para vehículos automotores",608,0.36,218.88,"Generadores de ruidos y emisiones"]
[48,"PROVINCIAL","Parque automotor","Vehículos pesados","48.- Circular produciendo contaminación en un índice superior a los límites máximos permisibles de emisiones atmosféricas para vehículos automotores",608,0.49,297.92,"Generadores de ruidos y emisiones"]
[49,"PROVINCIAL","Parque automotor","Vehículos livianos","49.- Circular produciendo ruidos que superen el Estándar de Calidad Ambiental para ruido, de acuerdo a la zonificación establecida por la municipalidad local.",608,0.25,152,"Generadores de ruidos y emisiones"]
[49,"PROVINCIAL","Parque automotor","Vehículos menores","49.- Circular produciendo ruidos que superen el Estándar de Calidad Ambiental para ruido, de acuerdo a la zonificación establecida por la municipalidad local.",608,0.36,218.88,"Generadores de ruidos y emisiones"]
[49,"PROVINCIAL","Parque automotor","Vehículos pesados","49.- Circular produciendo ruidos que superen el Estándar de Calidad Ambiental para ruido, de acuerdo a la zonificación establecida por la municipalidad local.",608,0.49,297.92,"Generadores de ruidos y emisiones"]

{"sheet":"UBIGEO","index":6,"n_rows":1875,"n_cols":3,"rows_kept":1875,"cut":false,"hidden":true,"merged":[]}
["DEPARTAMENTO","PROVINCIA","Distrito"]
["AMAZONAS","CHACHAPOYAS","CHACHAPOYAS"]
["AMAZONAS","CHACHAPOYAS","ASUNCION"]
["AMAZONAS","CHACHAPOYAS","BALSAS"]
["AMAZONAS","CHACHAPOYAS","CHETO"]
["AMAZONAS","CHACHAPOYAS","CHILIQUIN"]
["AMAZONAS","CHACHAPOYAS","CHUQUIBAMBA"]
["AMAZONAS","CHACHAPOYAS","GRANADA"]
["AMAZONAS","CHACHAPOYAS","HUANCAS"]
["AMAZONAS","CHACHAPOYAS","LA JALCA"]
["AMAZONAS","CHACHAPOYAS","LEIMEBAMBA"]
["AMAZONAS","CHACHAPOYAS","LEVANTO"]
["AMAZONAS","CHACHAPOYAS","MAGDALENA"]
["AMAZONAS","CHACHAPOYAS","MARISCAL CASTILLA"]
["AMAZONAS","CHACHAPOYAS","MOLINOPAMPA"]
["AMAZONAS","CHACHAPOYAS","MONTEVIDEO"]
["AMAZONAS","CHACHAPOYAS","OLLEROS"]
["AMAZONAS","CHACHAPOYAS","QUINJALCA"]
["AMAZONAS","CHACHAPOYAS","SAN FRANCISCO DE DAGUAS"]
["AMAZONAS","CHACHAPOYAS","SAN ISIDRO DE MAINO"]
["AMAZONAS","CHACHAPOYAS","SOLOCO"]
["AMAZONAS","CHACHAPOYAS","SONCHE"]
["AMAZONAS","BAGUA","BAGUA"]
["AMAZONAS","BAGUA","ARAMANGO"]
["AMAZONAS","BAGUA","COPALLIN"]
["AMAZONAS","BAGUA","EL PARCO"]
["AMAZONAS","BAGUA","IMAZA"]
["AMAZONAS","BAGUA","LA PECA"]
["AMAZONAS","BONGARA","JUMBILLA"]
["AMAZONAS","BONGARA","CHISQUILLA"]
["AMAZONAS","BONGARA","CHURUJA"]
["AMAZONAS","BONGARA","COROSHA"]
["AMAZONAS","BONGARA","CUISPES"]
["AMAZONAS","BONGARA","FLORIDA"]
["AMAZONAS","BONGARA","JAZAN"]
["AMAZONAS","BONGARA","RECTA"]
["AMAZONAS","BONGARA","SAN CARLOS"]
["AMAZONAS","BONGARA","SHIPASBAMBA"]
["AMAZONAS","BONGARA","VALERA"]
["AMAZONAS","BONGARA","YAMBRASBAMBA"]
["AMAZONAS","CONDORCANQUI","NIEVA"]
["AMAZONAS","CONDORCANQUI","EL CENEPA"]
["AMAZONAS","CONDORCANQUI","RIO SANTIAGO"]
["AMAZONAS","LUYA","LAMUD"]
["AMAZONAS","LUYA","CAMPORREDONDO"]
["AMAZONAS","LUYA","COCABAMBA"]
["AMAZONAS","LUYA","COLCAMAR"]
["AMAZONAS","LUYA","CONILA"]
["AMAZONAS","LUYA","INGUILPATA"]
["AMAZONAS","LUYA","LONGUITA"]
["AMAZONAS","LUYA","LONYA CHICO"]
["AMAZONAS","LUYA","LUYA"]
["AMAZONAS","LUYA","LUYA VIEJO"]
["AMAZONAS","LUYA","MARIA"]
["AMAZONAS","LUYA","OCALLI"]
["AMAZONAS","LUYA","OCUMAL"]
["AMAZONAS","LUYA","PISUQUIA"]
["AMAZONAS","LUYA","PROVIDENCIA"]
["AMAZONAS","LUYA","SAN CRISTOBAL"]
["AMAZONAS","LUYA","SAN FRANCISCO DEL YESO"]
["AMAZONAS","LUYA","SAN JERONIMO"]
["AMAZONAS","LUYA","SAN JUAN DE LOPECANCHA"]
["AMAZONAS","LUYA","SANTA CATALINA"]
["AMAZONAS","LUYA","SANTO TOMAS"]
["AMAZONAS","LUYA","TINGO"]
["AMAZONAS","LUYA","TRITA"]
["AMAZONAS","RODRIGUEZ DE MENDOZA","SAN NICOLAS"]
["AMAZONAS","RODRIGUEZ DE MENDOZA","CHIRIMOTO"]
["AMAZONAS","RODRIGUEZ DE MENDOZA","COCHAMAL"]
["AMAZONAS","RODRIGUEZ DE MENDOZA","HUAMBO"]
["AMAZONAS","RODRIGUEZ DE MENDOZA","LIMABAMBA"]
["AMAZONAS","RODRIGUEZ DE MENDOZA","LONGAR"]
["AMAZONAS","RODRIGUEZ DE MENDOZA","MARISCAL BENAVIDES"]
["AMAZONAS","RODRIGUEZ DE MENDOZA","MILPUC"]
["AMAZONAS","RODRIGUEZ DE MENDOZA","OMIA"]
["AMAZONAS","RODRIGUEZ DE MENDOZA","SANTA ROSA"]
["AMAZONAS","RODRIGUEZ DE MENDOZA","TOTORA"]
["AMAZONAS","RODRIGUEZ DE MENDOZA","VISTA ALEGRE"]
["AMAZONAS","UTCUBAMBA","BAGUA GRANDE"]
["AMAZONAS","UTCUBAMBA","CAJARURO"]
["AMAZONAS","UTCUBAMBA","CUMBA"]
["AMAZONAS","UTCUBAMBA","EL MILAGRO"]
["AMAZONAS","UTCUBAMBA","JAMALCA"]
["AMAZONAS","UTCUBAMBA","LONYA GRANDE"]
["AMAZONAS","UTCUBAMBA","YAMON"]
["ANCASH","HUARAZ","HUARAZ"]
["ANCASH","HUARAZ","COCHABAMBA"]
["ANCASH","HUARAZ","COLCABAMBA"]
["ANCASH","HUARAZ","HUANCHAY"]
["ANCASH","HUARAZ","INDEPENDENCIA"]
["ANCASH","HUARAZ","JANGAS"]
["ANCASH","HUARAZ","LA LIBERTAD"]
["ANCASH","HUARAZ","OLLEROS"]
["ANCASH","HUARAZ","PAMPAS GRANDE"]
["ANCASH","HUARAZ","PARIACOTO"]
["ANCASH","HUARAZ","PIRA"]
["ANCASH","HUARAZ","TARICA"]
["ANCASH","AIJA","AIJA"]
["ANCASH","AIJA","CORIS"]
["ANCASH","AIJA","HUACLLAN"]
["ANCASH","AIJA","LA MERCED"]
["ANCASH","AIJA","SUCCHA"]
["ANCASH","ANTONIO RAYMONDI","LLAMELLIN"]
["ANCASH","ANTONIO RAYMONDI","ACZO"]
["ANCASH","ANTONIO RAYMONDI","CHACCHO"]
["ANCASH","ANTONIO RAYMONDI","CHINGAS"]
["ANCASH","ANTONIO RAYMONDI","MIRGAS"]
["ANCASH","ANTONIO RAYMONDI","SAN JUAN DE RONTOY"]
["ANCASH","ASUNCION","CHACAS"]
["ANCASH","ASUNCION","ACOCHACA"]
["ANCASH","BOLOGNESI","CHIQUIAN"]
["ANCASH","BOLOGNESI","ABELARDO PARDO LEZAMETA"]
["ANCASH","BOLOGNESI","ANTONIO RAYMONDI"]
["ANCASH","BOLOGNESI","AQUIA"]
["ANCASH","BOLOGNESI","CAJACAY"]
["ANCASH","BOLOGNESI","CANIS"]
["ANCASH","BOLOGNESI","COLQUIOC"]
["ANCASH","BOLOGNESI","HUALLANCA"]
["ANCASH","BOLOGNESI","HUASTA"]
["ANCASH","BOLOGNESI","HUAYLLACAYAN"]
["ANCASH","BOLOGNESI","LA PRIMAVERA"]
["ANCASH","BOLOGNESI","MANGAS"]
["ANCASH","BOLOGNESI","PACLLON"]
["ANCASH","BOLOGNESI","SAN MIGUEL DE CORPANQUI"]
["ANCASH","BOLOGNESI","TICLLOS"]
["ANCASH","CARHUAZ","CARHUAZ"]
["ANCASH","CARHUAZ","ACOPAMPA"]
["ANCASH","CARHUAZ","AMASHCA"]
["ANCASH","CARHUAZ","ANTA"]
["ANCASH","CARHUAZ","ATAQUERO"]
["ANCASH","CARHUAZ","MARCARA"]
["ANCASH","CARHUAZ","PARIAHUANCA"]
["ANCASH","CARHUAZ","SAN MIGUEL DE ACO"]
["ANCASH","CARHUAZ","SHILLA"]
["ANCASH","CARHUAZ","TINCO"]
["ANCASH","CARHUAZ","YUNGAR"]
["ANCASH","CARLOS FERMIN FITZCARRALD","SAN LUIS"]
["ANCASH","CARLOS FERMIN FITZCARRALD","SAN NICOLAS"]
["ANCASH","CARLOS FERMIN FITZCARRALD","YAUYA"]
["ANCASH","CASMA","CASMA"]
["ANCASH","CASMA","BUENA VISTA ALTA"]
["ANCASH","CASMA","COMANDANTE NOEL"]
["ANCASH","CASMA","YAUTAN"]
["ANCASH","CORONGO","CORONGO"]
["ANCASH","CORONGO","ACO"]
["ANCASH","CORONGO","BAMBAS"]
["ANCASH","CORONGO","CUSCA"]
["ANCASH","CORONGO","LA PAMPA"]
["ANCASH","CORONGO","YANAC"]
["ANCASH","CORONGO","YUPAN"]
["ANCASH","HUARI","HUARI"]
["ANCASH","HUARI","ANRA"]
["ANCASH","HUARI","CAJAY"]
["ANCASH","HUARI","CHAVIN DE HUANTAR"]
["ANCASH","HUARI","HUACACHI"]
["ANCASH","HUARI","HUACCHIS"]
["ANCASH","HUARI","HUACHIS"]
["ANCASH","HUARI","HUANTAR"]
["ANCASH","HUARI","MASIN"]
["ANCASH","HUARI","PAUCAS"]
["ANCASH","HUARI","PONTO"]
["ANCASH","HUARI","RAHUAPAMPA"]
["ANCASH","HUARI","RAPAYAN"]
["ANCASH","HUARI","SAN MARCOS"]
["ANCASH","HUARI","SAN PEDRO DE CHANA"]
["ANCASH","HUARI","UCO"]
["ANCASH","HUARMEY","HUARMEY"]
["ANCASH","HUARMEY","COCHAPETI"]
["ANCASH","HUARMEY","CULEBRAS"]
["ANCASH","HUARMEY","HUAYAN"]
["ANCASH","HUARMEY","MALVAS"]
["ANCASH","HUAYLAS","CARAZ"]
["ANCASH","HUAYLAS","HUALLANCA"]
["ANCASH","HUAYLAS","HUATA"]
["ANCASH","HUAYLAS","HUAYLAS"]
["ANCASH","HUAYLAS","MATO"]
["ANCASH","HUAYLAS","PAMPAROMAS"]
["ANCASH","HUAYLAS","PUEBLO LIBRE"]
["ANCASH","HUAYLAS","SANTA CRUZ"]
["ANCASH","HUAYLAS","SANTO TORIBIO"]
["ANCASH","HUAYLAS","YURACMARCA"]
["ANCASH","MARISCAL LUZURIAGA","PISCOBAMBA"]
["ANCASH","MARISCAL LUZURIAGA","CASCA"]
["ANCASH","MARISCAL LUZURIAGA","ELEAZAR GUZMAN BARRON"]
["ANCASH","MARISCAL LUZURIAGA","FIDEL OLIVAS ESCUDERO"]
["ANCASH","MARISCAL LUZURIAGA","LLAMA"]
["ANCASH","MARISCAL LUZURIAGA","LLUMPA"]
["ANCASH","MARISCAL LUZURIAGA","LUCMA"]
["ANCASH","MARISCAL LUZURIAGA","MUSGA"]
["ANCASH","OCROS","OCROS"]
["ANCASH","OCROS","ACAS"]
["ANCASH","OCROS","CAJAMARQUILLA"]
["ANCASH","OCROS","CARHUAPAMPA"]
["ANCASH","OCROS","COCHAS"]
["ANCASH","OCROS","CONGAS"]
["ANCASH","OCROS","LLIPA"]
["ANCASH","OCROS","SAN CRISTOBAL DE RAJAN"]
["ANCASH","OCROS","SAN PEDRO"]
["ANCASH","OCROS","SANTIAGO DE CHILCAS"]
["ANCASH","PALLASCA","CABANA"]
["ANCASH","PALLASCA","BOLOGNESI"]
["ANCASH","PALLASCA","CONCHUCOS"]
["ANCASH","PALLASCA","HUACASCHUQUE"]
["ANCASH","PALLASCA","HUANDOVAL"]
["ANCASH","PALLASCA","LACABAMBA"]
["ANCASH","PALLASCA","LLAPO"]
["ANCASH","PALLASCA","PALLASCA"]
["ANCASH","PALLASCA","PAMPAS"]
["ANCASH","PALLASCA","SANTA ROSA"]
["ANCASH","PALLASCA","TAUCA"]
["ANCASH","POMABAMBA","POMABAMBA"]
["ANCASH","POMABAMBA","HUAYLLAN"]
["ANCASH","POMABAMBA","PAROBAMBA"]
["ANCASH","POMABAMBA","QUINUABAMBA"]
["ANCASH","RECUAY","RECUAY"]
["ANCASH","RECUAY","CATAC"]
["ANCASH","RECUAY","COTAPARACO"]
["ANCASH","RECUAY","HUAYLLAPAMPA"]
["ANCASH","RECUAY","LLACLLIN"]
["ANCASH","RECUAY","MARCA"]
["ANCASH","RECUAY","PAMPAS CHICO"]
["ANCASH","RECUAY","PARARIN"]
["ANCASH","RECUAY","TAPACOCHA"]
["ANCASH","RECUAY","TICAPAMPA"]
["ANCASH","SANTA","CHIMBOTE"]
["ANCASH","SANTA","CACERES DEL PERU"]
["ANCASH","SANTA","COISHCO"]
["ANCASH","SANTA","MACATE"]
["ANCASH","SANTA","MORO"]
["ANCASH","SANTA","NEPEÑA"]
["ANCASH","SANTA","SAMANCO"]
["ANCASH","SANTA","SANTA"]
["ANCASH","SANTA","NUEVO CHIMBOTE"]
["ANCASH","SIHUAS","SIHUAS"]
["ANCASH","SIHUAS","ACOBAMBA"]
["ANCASH","SIHUAS","ALFONSO UGARTE"]
["ANCASH","SIHUAS","CASHAPAMPA"]
["ANCASH","SIHUAS","CHINGALPO"]
["ANCASH","SIHUAS","HUAYLLABAMBA"]
["ANCASH","SIHUAS","QUICHES"]
["ANCASH","SIHUAS","RAGASH"]
["ANCASH","SIHUAS","SAN JUAN"]
["ANCASH","SIHUAS","SICSIBAMBA"]
["ANCASH","YUNGAY","YUNGAY"]
["ANCASH","YUNGAY","CASCAPARA"]
["ANCASH","YUNGAY","MANCOS"]
["ANCASH","YUNGAY","MATACOTO"]
["ANCASH","YUNGAY","QUILLO"]
["ANCASH","YUNGAY","RANRAHIRCA"]
["ANCASH","YUNGAY","SHUPLUY"]
["ANCASH","YUNGAY","YANAMA"]
["APURIMAC","ABANCAY","ABANCAY"]
["APURIMAC","ABANCAY","CHACOCHE"]
["APURIMAC","ABANCAY","CIRCA"]
["APURIMAC","ABANCAY","CURAHUASI"]
["APURIMAC","ABANCAY","HUANIPACA"]
["APURIMAC","ABANCAY","LAMBRAMA"]
["APURIMAC","ABANCAY","PICHIRHUA"]
["APURIMAC","ABANCAY","SAN PEDRO DE CACHORA"]
["APURIMAC","ABANCAY","TAMBURCO"]
["APURIMAC","ANDAHUAYLAS","ANDAHUAYLAS"]
["APURIMAC","ANDAHUAYLAS","ANDARAPA"]
["APURIMAC","ANDAHUAYLAS","CHIARA"]
["APURIMAC","ANDAHUAYLAS","HUANCARAMA"]
["APURIMAC","ANDAHUAYLAS","HUANCARAY"]
["APURIMAC","ANDAHUAYLAS","HUAYANA"]
["APURIMAC","ANDAHUAYLAS","KISHUARA"]
["APURIMAC","ANDAHUAYLAS","PACOBAMBA"]
["APURIMAC","ANDAHUAYLAS","PACUCHA"]
["APURIMAC","ANDAHUAYLAS","PAMPACHIRI"]
["APURIMAC","ANDAHUAYLAS","POMACOCHA"]
["APURIMAC","ANDAHUAYLAS","SAN ANTONIO DE CACHI"]
["APURIMAC","ANDAHUAYLAS","SAN JERONIMO"]
["APURIMAC","ANDAHUAYLAS","SAN MIGUEL DE CHACCRAMPA"]
["APURIMAC","ANDAHUAYLAS","SANTA MARIA DE CHICMO"]
["APURIMAC","ANDAHUAYLAS","TALAVERA"]
["APURIMAC","ANDAHUAYLAS","TUMAY HUARACA"]
["APURIMAC","ANDAHUAYLAS","TURPO"]
["APURIMAC","ANDAHUAYLAS","KAQUIABAMBA"]
["APURIMAC","ANDAHUAYLAS","JOSE MARIA ARGUEDAS"]
["APURIMAC","ANTABAMBA","ANTABAMBA"]
["APURIMAC","ANTABAMBA","EL ORO"]
["APURIMAC","ANTABAMBA","HUAQUIRCA"]
["APURIMAC","ANTABAMBA","JUAN ESPINOZA MEDRANO"]
["APURIMAC","ANTABAMBA","OROPESA"]
["APURIMAC","ANTABAMBA","PACHACONAS"]
["APURIMAC","ANTABAMBA","SABAINO"]
["APURIMAC","AYMARAES","CHALHUANCA"]
["APURIMAC","AYMARAES","CAPAYA"]
["APURIMAC","AYMARAES","CARAYBAMBA"]
["APURIMAC","AYMARAES","CHAPIMARCA"]
["APURIMAC","AYMARAES","COLCABAMBA"]
["APURIMAC","AYMARAES","COTARUSE"]
["APURIMAC","AYMARAES","IHUAYLLO"]
["APURIMAC","AYMARAES","JUSTO APU SAHUARAURA"]
["APURIMAC","AYMARAES","LUCRE"]
["APURIMAC","AYMARAES","POCOHUANCA"]
["APURIMAC","AYMARAES","SAN JUAN DE CHACÑA"]
["APURIMAC","AYMARAES","SAÑAYCA"]
["APURIMAC","AYMARAES","SORAYA"]
["APURIMAC","AYMARAES","TAPAIRIHUA"]
["APURIMAC","AYMARAES","TINTAY"]
["APURIMAC","AYMARAES","TORAYA"]
["APURIMAC","AYMARAES","YANACA"]
["APURIMAC","COTABAMBAS","TAMBOBAMBA"]
["APURIMAC","COTABAMBAS","COTABAMBAS"]
["APURIMAC","COTABAMBAS","COYLLURQUI"]
["APURIMAC","COTABAMBAS","HAQUIRA"]
["APURIMAC","COTABAMBAS","MARA"]
["APURIMAC","COTABAMBAS","CHALLHUAHUACHO"]
["APURIMAC","CHINCHEROS","CHINCHEROS"]
["APURIMAC","CHINCHEROS","ANCO-HUALLO"]
["APURIMAC","CHINCHEROS","COCHARCAS"]
["APURIMAC","CHINCHEROS","HUACCANA"]
["APURIMAC","CHINCHEROS","OCOBAMBA"]
["APURIMAC","CHINCHEROS","ONGOY"]
["APURIMAC","CHINCHEROS","URANMARCA"]
["APURIMAC","CHINCHEROS","RANRACANCHA"]
["APURIMAC","CHINCHEROS","ROCCHACC"]
["APURIMAC","CHINCHEROS","EL PORVENIR"]
["APURIMAC","CHINCHEROS","LOS CHANKAS"]
["APURIMAC","GRAU","CHUQUIBAMBILLA"]
["APURIMAC","GRAU","CURPAHUASI"]
["APURIMAC","GRAU","GAMARRA"]
["APURIMAC","GRAU","HUAYLLATI"]
["APURIMAC","GRAU","MAMARA"]
["APURIMAC","GRAU","MICAELA BASTIDAS"]
["APURIMAC","GRAU","PATAYPAMPA"]
["APURIMAC","GRAU","PROGRESO"]
["APURIMAC","GRAU","SAN ANTONIO"]
["APURIMAC","GRAU","SANTA ROSA"]
["APURIMAC","GRAU","TURPAY"]
["APURIMAC","GRAU","VILCABAMBA"]
["APURIMAC","GRAU","VIRUNDO"]
["APURIMAC","GRAU","CURASCO"]
["AREQUIPA","AREQUIPA","AREQUIPA"]
["AREQUIPA","AREQUIPA","ALTO SELVA ALEGRE"]
["AREQUIPA","AREQUIPA","CAYMA"]
["AREQUIPA","AREQUIPA","CERRO COLORADO"]
["AREQUIPA","AREQUIPA","CHARACATO"]
["AREQUIPA","AREQUIPA","CHIGUATA"]
["AREQUIPA","AREQUIPA","JACOBO HUNTER"]
["AREQUIPA","AREQUIPA","LA JOYA"]
["AREQUIPA","AREQUIPA","MARIANO MELGAR"]
["AREQUIPA","AREQUIPA","MIRAFLORES"]
["AREQUIPA","AREQUIPA","MOLLEBAYA"]
["AREQUIPA","AREQUIPA","PAUCARPATA"]
["AREQUIPA","AREQUIPA","POCSI"]
["AREQUIPA","AREQUIPA","POLOBAYA"]
["AREQUIPA","AREQUIPA","QUEQUEÑA"]
["AREQUIPA","AREQUIPA","SABANDIA"]
["AREQUIPA","AREQUIPA","SACHACA"]
["AREQUIPA","AREQUIPA","SAN JUAN DE SIGUAS"]
["AREQUIPA","AREQUIPA","SAN JUAN DE TARUCANI"]
["AREQUIPA","AREQUIPA","SANTA ISABEL DE SIGUAS"]
["AREQUIPA","AREQUIPA","SANTA RITA DE SIGUAS"]
["AREQUIPA","AREQUIPA","SOCABAYA"]
["AREQUIPA","AREQUIPA","TIABAYA"]
["AREQUIPA","AREQUIPA","UCHUMAYO"]
["AREQUIPA","AREQUIPA","VITOR"]
["AREQUIPA","AREQUIPA","YANAHUARA"]
["AREQUIPA","AREQUIPA","YARABAMBA"]
["AREQUIPA","AREQUIPA","YURA"]
["AREQUIPA","AREQUIPA","JOSE LUIS BUSTAMANTE Y RIVERO"]
["AREQUIPA","CAMANA","CAMANA"]
["AREQUIPA","CAMANA","JOSE MARIA QUIMPER"]
["AREQUIPA","CAMANA","MARIANO NICOLAS VALCARCEL"]
["AREQUIPA","CAMANA","MARISCAL CACERES"]
["AREQUIPA","CAMANA","NICOLAS DE PIEROLA"]
["AREQUIPA","CAMANA","OCOÑA"]
["AREQUIPA","CAMANA","QUILCA"]
["AREQUIPA","CAMANA","SAMUEL PASTOR"]
["AREQUIPA","CARAVELI","CARAVELI"]
["AREQUIPA","CARAVELI","ACARI"]
["AREQUIPA","CARAVELI","ATICO"]
["AREQUIPA","CARAVELI","ATIQUIPA"]
["AREQUIPA","CARAVELI","BELLA UNION"]
["AREQUIPA","CARAVELI","CAHUACHO"]
["AREQUIPA","CARAVELI","CHALA"]
["AREQUIPA","CARAVELI","CHAPARRA"]
["AREQUIPA","CARAVELI","HUANUHUANU"]
["AREQUIPA","CARAVELI","JAQUI"]
["AREQUIPA","CARAVELI","LOMAS"]
["AREQUIPA","CARAVELI","QUICACHA"]
["AREQUIPA","CARAVELI","YAUCA"]
["AREQUIPA","CASTILLA","APLAO"]
["AREQUIPA","CASTILLA","ANDAGUA"]
["AREQUIPA","CASTILLA","AYO"]
["AREQUIPA","CASTILLA","CHACHAS"]
["AREQUIPA","CASTILLA","CHILCAYMARCA"]
["AREQUIPA","CASTILLA","CHOCO"]
["AREQUIPA","CASTILLA","HUANCARQUI"]
["AREQUIPA","CASTILLA","MACHAGUAY"]
["AREQUIPA","CASTILLA","ORCOPAMPA"]
["AREQUIPA","CASTILLA","PAMPACOLCA"]
["AREQUIPA","CASTILLA","TIPAN"]
["AREQUIPA","CASTILLA","UÑON"]
["AREQUIPA","CASTILLA","URACA"]
["AREQUIPA","CASTILLA","VIRACO"]
["AREQUIPA","CAYLLOMA","CHIVAY"]
["AREQUIPA","CAYLLOMA","ACHOMA"]
["AREQUIPA","CAYLLOMA","CABANACONDE"]
["AREQUIPA","CAYLLOMA","CALLALLI"]
["AREQUIPA","CAYLLOMA","CAYLLOMA"]
["AREQUIPA","CAYLLOMA","COPORAQUE"]
["AREQUIPA","CAYLLOMA","HUAMBO"]
["AREQUIPA","CAYLLOMA","HUANCA"]
["AREQUIPA","CAYLLOMA","ICHUPAMPA"]
["AREQUIPA","CAYLLOMA","LARI"]
["AREQUIPA","CAYLLOMA","LLUTA"]
["AREQUIPA","CAYLLOMA","MACA"]
["AREQUIPA","CAYLLOMA","MADRIGAL"]
["AREQUIPA","CAYLLOMA","SAN ANTONIO DE CHUCA"]
["AREQUIPA","CAYLLOMA","SIBAYO"]
["AREQUIPA","CAYLLOMA","TAPAY"]
["AREQUIPA","CAYLLOMA","TISCO"]
["AREQUIPA","CAYLLOMA","TUTI"]
["AREQUIPA","CAYLLOMA","YANQUE"]
["AREQUIPA","CAYLLOMA","MAJES"]
["AREQUIPA","CONDESUYOS","CHUQUIBAMBA"]
["AREQUIPA","CONDESUYOS","ANDARAY"]
["AREQUIPA","CONDESUYOS","CAYARANI"]
["AREQUIPA","CONDESUYOS","CHICHAS"]
["AREQUIPA","CONDESUYOS","IRAY"]
["AREQUIPA","CONDESUYOS","RIO GRANDE"]
["AREQUIPA","CONDESUYOS","SALAMANCA"]
["AREQUIPA","CONDESUYOS","YANAQUIHUA"]
["AREQUIPA","ISLAY","MOLLENDO"]
["AREQUIPA","ISLAY","COCACHACRA"]
["AREQUIPA","ISLAY","DEAN VALDIVIA"]
["AREQUIPA","ISLAY","ISLAY"]
["AREQUIPA","ISLAY","MEJIA"]
["AREQUIPA","ISLAY","PUNTA DE BOMBON"]
["AREQUIPA","LA UNION","COTAHUASI"]
["AREQUIPA","LA UNION","ALCA"]
["AREQUIPA","LA UNION","CHARCANA"]
["AREQUIPA","LA UNION","HUAYNACOTAS"]
["AREQUIPA","LA UNION","PAMPAMARCA"]
["AREQUIPA","LA UNION","PUYCA"]
["AREQUIPA","LA UNION","QUECHUALLA"]
["AREQUIPA","LA UNION","SAYLA"]
["AREQUIPA","LA UNION","TAURIA"]
["AREQUIPA","LA UNION","TOMEPAMPA"]
["AREQUIPA","LA UNION","TORO"]
["AYACUCHO","HUAMANGA","AYACUCHO"]
["AYACUCHO","HUAMANGA","ACOCRO"]
["AYACUCHO","HUAMANGA","ACOS VINCHOS"]
["AYACUCHO","HUAMANGA","CARMEN ALTO"]
["AYACUCHO","HUAMANGA","CHIARA"]
["AYACUCHO","HUAMANGA","OCROS"]
["AYACUCHO","HUAMANGA","PACAYCASA"]
["AYACUCHO","HUAMANGA","QUINUA"]
["AYACUCHO","HUAMANGA","SAN JOSE DE TICLLAS"]
["AYACUCHO","HUAMANGA","SAN JUAN BAUTISTA"]
["AYACUCHO","HUAMANGA","SANTIAGO DE PISCHA"]
["AYACUCHO","HUAMANGA","SOCOS"]
["AYACUCHO","HUAMANGA","TAMBILLO"]
["AYACUCHO","HUAMANGA","VINCHOS"]
["AYACUCHO","HUAMANGA","JESUS NAZARENO"]
["AYACUCHO","HUAMANGA","ANDRES AVELINO CACERES DORREGARAY"]
["AYACUCHO","CANGALLO","CANGALLO"]
["AYACUCHO","CANGALLO","CHUSCHI"]
["AYACUCHO","CANGALLO","LOS MOROCHUCOS"]
["AYACUCHO","CANGALLO","MARIA PARADO DE BELLIDO"]
["AYACUCHO","CANGALLO","PARAS"]
["AYACUCHO","CANGALLO","TOTOS"]
["AYACUCHO","HUANCA SANCOS","SANCOS"]
["AYACUCHO","HUANCA SANCOS","CARAPO"]
["AYACUCHO","HUANCA SANCOS","SACSAMARCA"]
["AYACUCHO","HUANCA SANCOS","SANTIAGO DE LUCANAMARCA"]
["AYACUCHO","HUANTA","HUANTA"]
["AYACUCHO","HUANTA","AYAHUANCO"]
["AYACUCHO","HUANTA","HUAMANGUILLA"]
["AYACUCHO","HUANTA","IGUAIN"]
["AYACUCHO","HUANTA","LURICOCHA"]
["AYACUCHO","HUANTA","SANTILLANA"]
["AYACUCHO","HUANTA","SIVIA"]
["AYACUCHO","HUANTA","LLOCHEGUA"]
["AYACUCHO","HUANTA","CANAYRE"]
["AYACUCHO","HUANTA","UCHURACCAY"]
["AYACUCHO","HUANTA","PUCACOLPA"]
["AYACUCHO","HUANTA","CHACA"]
["AYACUCHO","LA MAR","SAN MIGUEL"]
["AYACUCHO","LA MAR","ANCO"]
["AYACUCHO","LA MAR","AYNA"]
["AYACUCHO","LA MAR","CHILCAS"]
["AYACUCHO","LA MAR","CHUNGUI"]
["AYACUCHO","LA MAR","LUIS CARRANZA"]
["AYACUCHO","LA MAR","SANTA ROSA"]
["AYACUCHO","LA MAR","TAMBO"]
["AYACUCHO","LA MAR","SAMUGARI"]
["AYACUCHO","LA MAR","ANCHIHUAY"]
["AYACUCHO","LA MAR","ORONCCOY"]
["AYACUCHO","LUCANAS","PUQUIO"]
["AYACUCHO","LUCANAS","AUCARA"]
["AYACUCHO","LUCANAS","CABANA"]
["AYACUCHO","LUCANAS","CARMEN SALCEDO"]
["AYACUCHO","LUCANAS","CHAVIÑA"]
["AYACUCHO","LUCANAS","CHIPAO"]
["AYACUCHO","LUCANAS","HUAC-HUAS"]
["AYACUCHO","LUCANAS","LARAMATE"]
["AYACUCHO","LUCANAS","LEONCIO PRADO"]
["AYACUCHO","LUCANAS","LLAUTA"]
["AYACUCHO","LUCANAS","LUCANAS"]
["AYACUCHO","LUCANAS","OCAÑA"]
["AYACUCHO","LUCANAS","OTOCA"]
["AYACUCHO","LUCANAS","SAISA"]
["AYACUCHO","LUCANAS","SAN CRISTOBAL"]
["AYACUCHO","LUCANAS","SAN JUAN"]
["AYACUCHO","LUCANAS","SAN PEDRO"]
["AYACUCHO","LUCANAS","SAN PEDRO DE PALCO"]
["AYACUCHO","LUCANAS","SANCOS"]
["AYACUCHO","LUCANAS","SANTA ANA DE HUAYCAHUACHO"]
["AYACUCHO","LUCANAS","SANTA LUCIA"]
["AYACUCHO","PARINACOCHAS","CORACORA"]
["AYACUCHO","PARINACOCHAS","CHUMPI"]
["AYACUCHO","PARINACOCHAS","CORONEL CASTAÑEDA"]
["AYACUCHO","PARINACOCHAS","PACAPAUSA"]
["AYACUCHO","PARINACOCHAS","PULLO"]
["AYACUCHO","PARINACOCHAS","PUYUSCA"]
["AYACUCHO","PARINACOCHAS","SAN FRANCISCO DE RAVACAYCO"]
["AYACUCHO","PARINACOCHAS","UPAHUACHO"]
["AYACUCHO","PAUCAR DEL SARA SARA","PAUSA"]
["AYACUCHO","PAUCAR DEL SARA SARA","COLTA"]
["AYACUCHO","PAUCAR DEL SARA SARA","CORCULLA"]
["AYACUCHO","PAUCAR DEL SARA SARA","LAMPA"]
["AYACUCHO","PAUCAR DEL SARA SARA","MARCABAMBA"]
["AYACUCHO","PAUCAR DEL SARA SARA","OYOLO"]
["AYACUCHO","PAUCAR DEL SARA SARA","PARARCA"]
["AYACUCHO","PAUCAR DEL SARA SARA","SAN JAVIER DE ALPABAMBA"]
["AYACUCHO","PAUCAR DEL SARA SARA","SAN JOSE DE USHUA"]
["AYACUCHO","PAUCAR DEL SARA SARA","SARA SARA"]
["AYACUCHO","SUCRE","QUEROBAMBA"]
["AYACUCHO","SUCRE","BELEN"]
["AYACUCHO","SUCRE","CHALCOS"]
["AYACUCHO","SUCRE","CHILCAYOC"]
["AYACUCHO","SUCRE","HUACAÑA"]
["AYACUCHO","SUCRE","MORCOLLA"]
["AYACUCHO","SUCRE","PAICO"]
["AYACUCHO","SUCRE","SAN PEDRO DE LARCAY"]
["AYACUCHO","SUCRE","SAN SALVADOR DE QUIJE"]
["AYACUCHO","SUCRE","SANTIAGO DE PAUCARAY"]
["AYACUCHO","SUCRE","SORAS"]
["AYACUCHO","VICTOR FAJARDO","HUANCAPI"]
["AYACUCHO","VICTOR FAJARDO","ALCAMENCA"]
["AYACUCHO","VICTOR FAJARDO","APONGO"]
["AYACUCHO","VICTOR FAJARDO","ASQUIPATA"]
["AYACUCHO","VICTOR FAJARDO","CANARIA"]
["AYACUCHO","VICTOR FAJARDO","CAYARA"]
["AYACUCHO","VICTOR FAJARDO","COLCA"]
["AYACUCHO","VICTOR FAJARDO","HUAMANQUIQUIA"]
["AYACUCHO","VICTOR FAJARDO","HUANCARAYLLA"]
["AYACUCHO","VICTOR FAJARDO","HUALLA"]
["AYACUCHO","VICTOR FAJARDO","SARHUA"]
["AYACUCHO","VICTOR FAJARDO","VILCANCHOS"]
["AYACUCHO","VILCAS HUAMAN","VILCAS HUAMAN"]
["AYACUCHO","VILCAS HUAMAN","ACCOMARCA"]
["AYACUCHO","VILCAS HUAMAN","CARHUANCA"]
["AYACUCHO","VILCAS HUAMAN","CONCEPCION"]
["AYACUCHO","VILCAS HUAMAN","HUAMBALPA"]
["AYACUCHO","VILCAS HUAMAN","INDEPENDENCIA"]
["AYACUCHO","VILCAS HUAMAN","SAURAMA"]
["AYACUCHO","VILCAS HUAMAN","VISCHONGO"]
["CAJAMARCA","CAJAMARCA","CAJAMARCA"]
["CAJAMARCA","CAJAMARCA","ASUNCION"]
["CAJAMARCA","CAJAMARCA","CHETILLA"]
["CAJAMARCA","CAJAMARCA","COSPAN"]
["CAJAMARCA","CAJAMARCA","ENCAÑADA"]
["CAJAMARCA","CAJAMARCA","JESUS"]
["CAJAMARCA","CAJAMARCA","LLACANORA"]
["CAJAMARCA","CAJAMARCA","LOS BAÑOS DEL INCA"]
["CAJAMARCA","CAJAMARCA","MAGDALENA"]
["CAJAMARCA","CAJAMARCA","MATARA"]
["CAJAMARCA","CAJAMARCA","NAMORA"]
["CAJAMARCA","CAJAMARCA","SAN JUAN"]
["CAJAMARCA","CAJABAMBA","CAJABAMBA"]
["CAJAMARCA","CAJABAMBA","CACHACHI"]
["CAJAMARCA","CAJABAMBA","CONDEBAMBA"]
["CAJAMARCA","CAJABAMBA","SITACOCHA"]
["CAJAMARCA","CELENDIN","CELENDIN"]
["CAJAMARCA","CELENDIN","CHUMUCH"]
["CAJAMARCA","CELENDIN","CORTEGANA"]
["CAJAMARCA","CELENDIN","HUASMIN"]
["CAJAMARCA","CELENDIN","JORGE CHAVEZ"]
["CAJAMARCA","CELENDIN","JOSE GALVEZ"]
["CAJAMARCA","CELENDIN","MIGUEL IGLESIAS"]
["CAJAMARCA","CELENDIN","OXAMARCA"]
["CAJAMARCA","CELENDIN","SOROCHUCO"]
["CAJAMARCA","CELENDIN","SUCRE"]
["CAJAMARCA","CELENDIN","UTCO"]
["CAJAMARCA","CELENDIN","LA LIBERTAD DE PALLAN"]
["CAJAMARCA","CHOTA","CHOTA"]
["CAJAMARCA","CHOTA","ANGUIA"]
["CAJAMARCA","CHOTA","CHADIN"]
["CAJAMARCA","CHOTA","CHIGUIRIP"]
["CAJAMARCA","CHOTA","CHIMBAN"]
["CAJAMARCA","CHOTA","CHOROPAMPA"]
["CAJAMARCA","CHOTA","COCHABAMBA"]
["CAJAMARCA","CHOTA","CONCHAN"]
["CAJAMARCA","CHOTA","HUAMBOS"]
["CAJAMARCA","CHOTA","LAJAS"]
["CAJAMARCA","CHOTA","LLAMA"]
["CAJAMARCA","CHOTA","MIRACOSTA"]
["CAJAMARCA","CHOTA","PACCHA"]
["CAJAMARCA","CHOTA","PION"]
["CAJAMARCA","CHOTA","QUEROCOTO"]
["CAJAMARCA","CHOTA","SAN JUAN DE LICUPIS"]
["CAJAMARCA","CHOTA","TACABAMBA"]
["CAJAMARCA","CHOTA","TOCMOCHE"]
["CAJAMARCA","CHOTA","CHALAMARCA"]
["CAJAMARCA","CONTUMAZA","CONTUMAZA"]
["CAJAMARCA","CONTUMAZA","CHILETE"]
["CAJAMARCA","CONTUMAZA","CUPISNIQUE"]
["CAJAMARCA","CONTUMAZA","GUZMANGO"]
["CAJAMARCA","CONTUMAZA","SAN BENITO"]
["CAJAMARCA","CONTUMAZA","SANTA CRUZ DE TOLED"]
["CAJAMARCA","CONTUMAZA","TANTARICA"]
["CAJAMARCA","CONTUMAZA","YONAN"]
["CAJAMARCA","CUTERVO","CUTERVO"]
["CAJAMARCA","CUTERVO","CALLAYUC"]
["CAJAMARCA","CUTERVO","CHOROS"]
["CAJAMARCA","CUTERVO","CUJILLO"]
["CAJAMARCA","CUTERVO","LA RAMADA"]
["CAJAMARCA","CUTERVO","PIMPINGOS"]
["CAJAMARCA","CUTERVO","QUEROCOTILLO"]
["CAJAMARCA","CUTERVO","SAN ANDRES DE CUTERVO"]
["CAJAMARCA","CUTERVO","SAN JUAN DE CUTERVO"]
["CAJAMARCA","CUTERVO","SAN LUIS DE LUCMA"]
["CAJAMARCA","CUTERVO","SANTA CRUZ"]
["CAJAMARCA","CUTERVO","SANTO DOMINGO DE LA CAPILLA"]
["CAJAMARCA","CUTERVO","SANTO TOMAS"]
["CAJAMARCA","CUTERVO","SOCOTA"]
["CAJAMARCA","CUTERVO","TORIBIO CASANOVA"]
["CAJAMARCA","HUALGAYOC","BAMBAMARCA"]
["CAJAMARCA","HUALGAYOC","CHUGUR"]
["CAJAMARCA","HUALGAYOC","HUALGAYOC"]
["CAJAMARCA","JAEN","JAEN"]
["CAJAMARCA","JAEN","BELLAVISTA"]
["CAJAMARCA","JAEN","CHONTALI"]
["CAJAMARCA","JAEN","COLASAY"]
["CAJAMARCA","JAEN","HUABAL"]
["CAJAMARCA","JAEN","LAS PIRIAS"]
["CAJAMARCA","JAEN","POMAHUACA"]
["CAJAMARCA","JAEN","PUCARA"]
["CAJAMARCA","JAEN","SALLIQUE"]
["CAJAMARCA","JAEN","SAN FELIPE"]
["CAJAMARCA","JAEN","SAN JOSE DEL ALTO"]
["CAJAMARCA","JAEN","SANTA ROSA"]
["CAJAMARCA","SAN IGNACIO","SAN IGNACIO"]
["CAJAMARCA","SAN IGNACIO","CHIRINOS"]
["CAJAMARCA","SAN IGNACIO","HUARANGO"]
["CAJAMARCA","SAN IGNACIO","LA COIPA"]
["CAJAMARCA","SAN IGNACIO","NAMBALLE"]
["CAJAMARCA","SAN IGNACIO","SAN JOSE DE LOURDES"]
["CAJAMARCA","SAN IGNACIO","TABACONAS"]
["CAJAMARCA","SAN MARCOS","PEDRO GALVEZ"]
["CAJAMARCA","SAN MARCOS","CHANCAY"]
["CAJAMARCA","SAN MARCOS","EDUARDO VILLANUEVA"]
["CAJAMARCA","SAN MARCOS","GREGORIO PITA"]
["CAJAMARCA","SAN MARCOS","ICHOCAN"]
["CAJAMARCA","SAN MARCOS","JOSE MANUEL QUIROZ"]
["CAJAMARCA","SAN MARCOS","JOSE SABOGAL"]
["CAJAMARCA","SAN MIGUEL","SAN MIGUEL"]
["CAJAMARCA","SAN MIGUEL","BOLIVAR"]
["CAJAMARCA","SAN MIGUEL","CALQUIS"]
["CAJAMARCA","SAN MIGUEL","CATILLUC"]
["CAJAMARCA","SAN MIGUEL","EL PRADO"]
["CAJAMARCA","SAN MIGUEL","LA FLORIDA"]
["CAJAMARCA","SAN MIGUEL","LLAPA"]
["CAJAMARCA","SAN MIGUEL","NANCHOC"]
["CAJAMARCA","SAN MIGUEL","NIEPOS"]
["CAJAMARCA","SAN MIGUEL","SAN GREGORIO"]
["CAJAMARCA","SAN MIGUEL","SAN SILVESTRE DE COCHAN"]
["CAJAMARCA","SAN MIGUEL","TONGOD"]
["CAJAMARCA","SAN MIGUEL","UNION AGUA BLANCA"]
["CAJAMARCA","SAN PABLO","SAN PABLO"]
["CAJAMARCA","SAN PABLO","SAN BERNARDINO"]
["CAJAMARCA","SAN PABLO","SAN LUIS"]
["CAJAMARCA","SAN PABLO","TUMBADEN"]
["CAJAMARCA","SANTA CRUZ","SANTA CRUZ"]
["CAJAMARCA","SANTA CRUZ","ANDABAMBA"]
["CAJAMARCA","SANTA CRUZ","CATACHE"]
["CAJAMARCA","SANTA CRUZ","CHANCAYBAÑOS"]
["CAJAMARCA","SANTA CRUZ","LA ESPERANZA"]
["CAJAMARCA","SANTA CRUZ","NINABAMBA"]
["CAJAMARCA","SANTA CRUZ","PULAN"]
["CAJAMARCA","SANTA CRUZ","SAUCEPAMPA"]
["CAJAMARCA","SANTA CRUZ","SEXI"]
["CAJAMARCA","SANTA CRUZ","UTICYACU"]
["CAJAMARCA","SANTA CRUZ","YAUYUCAN"]
["CALLAO","CALLAO","CALLAO"]
["CALLAO","CALLAO","BELLAVISTA"]
["CALLAO","CALLAO","CARMEN DE LA LEGUA REYNOSO"]
["CALLAO","CALLAO","LA PERLA"]
["CALLAO","CALLAO","LA PUNTA"]
["CALLAO","CALLAO","VENTANILLA"]
["CALLAO","CALLAO","MI PERU"]
["CUSCO","CUSCO","CUSCO"]
["CUSCO","CUSCO","CCORCA"]
["CUSCO","CUSCO","POROY"]
["CUSCO","CUSCO","SAN JERONIMO"]
["CUSCO","CUSCO","SAN SEBASTIAN"]
["CUSCO","CUSCO","SANTIAGO"]
["CUSCO","CUSCO","SAYLLA"]
["CUSCO","CUSCO","WANCHAQ"]
["CUSCO","ACOMAYO","ACOMAYO"]
["CUSCO","ACOMAYO","ACOPIA"]
["CUSCO","ACOMAYO","ACOS"]
["CUSCO","ACOMAYO","MOSOC LLACTA"]
["CUSCO","ACOMAYO","POMACANCHI"]
["CUSCO","ACOMAYO","RONDOCAN"]
["CUSCO","ACOMAYO","SANGARARA"]
["CUSCO","ANTA","ANTA"]
["CUSCO","ANTA","ANCAHUASI"]
["CUSCO","ANTA","CACHIMAYO"]
["CUSCO","ANTA","CHINCHAYPUJIO"]
["CUSCO","ANTA","HUAROCONDO"]
["CUSCO","ANTA","LIMATAMBO"]
["CUSCO","ANTA","MOLLEPATA"]
["CUSCO","ANTA","PUCYURA"]
["CUSCO","ANTA","ZURITE"]
["CUSCO","CALCA","CALCA"]
["CUSCO","CALCA","COYA"]
["CUSCO","CALCA","LAMAY"]
["CUSCO","CALCA","LARES"]
["CUSCO","CALCA","PISAC"]
["CUSCO","CALCA","SAN SALVADOR"]
["CUSCO","CALCA","TARAY"]
["CUSCO","CALCA","YANATILE"]
["CUSCO","CANAS","YANAOCA"]
["CUSCO","CANAS","CHECCA"]
["CUSCO","CANAS","KUNTURKANKI"]
["CUSCO","CANAS","LANGUI"]
["CUSCO","CANAS","LAYO"]
["CUSCO","CANAS","PAMPAMARCA"]
["CUSCO","CANAS","QUEHUE"]
["CUSCO","CANAS","TUPAC AMARU"]
["CUSCO","CANCHIS","SICUANI"]
["CUSCO","CANCHIS","CHECACUPE"]
["CUSCO","CANCHIS","COMBAPATA"]
["CUSCO","CANCHIS","MARANGANI"]
["CUSCO","CANCHIS","PITUMARCA"]
["CUSCO","CANCHIS","SAN PABLO"]
["CUSCO","CANCHIS","SAN PEDRO"]
["CUSCO","CANCHIS","TINTA"]
["CUSCO","CHUMBIVILCAS","SANTO TOMAS"]
["CUSCO","CHUMBIVILCAS","CAPACMARCA"]
["CUSCO","CHUMBIVILCAS","CHAMACA"]
["CUSCO","CHUMBIVILCAS","COLQUEMARCA"]
["CUSCO","CHUMBIVILCAS","LIVITACA"]
["CUSCO","CHUMBIVILCAS","LLUSCO"]
["CUSCO","CHUMBIVILCAS","QUIÑOTA"]
["CUSCO","CHUMBIVILCAS","VELILLE"]
["CUSCO","ESPINAR","ESPINAR"]
["CUSCO","ESPINAR","CONDOROMA"]
["CUSCO","ESPINAR","COPORAQUE"]
["CUSCO","ESPINAR","OCORURO"]
["CUSCO","ESPINAR","PALLPATA"]
["CUSCO","ESPINAR","PICHIGUA"]
["CUSCO","ESPINAR","SUYCKUTAMBO"]
["CUSCO","ESPINAR","ALTO PICHIGUA"]
["CUSCO","LA CONVENCION","SANTA ANA"]
["CUSCO","LA CONVENCION","ECHARATE"]
["CUSCO","LA CONVENCION","HUAYOPATA"]
["CUSCO","LA CONVENCION","MARANURA"]
["CUSCO","LA CONVENCION","OCOBAMBA"]
["CUSCO","LA CONVENCION","QUELLOUNO"]
["CUSCO","LA CONVENCION","KIMBIRI"]
["CUSCO","LA CONVENCION","SANTA TERESA"]
["CUSCO","LA CONVENCION","VILCABAMBA"]
["CUSCO","LA CONVENCION","PICHARI"]
["CUSCO","LA CONVENCION","INKAWASI"]
["CUSCO","LA CONVENCION","VILLA VIRGEN"]
["CUSCO","LA CONVENCION","VILLA KINTIARINA"]
["CUSCO","LA CONVENCION","MEGANTONI"]
["CUSCO","PARURO","PARURO"]
["CUSCO","PARURO","ACCHA"]
["CUSCO","PARURO","CCAPI"]
["CUSCO","PARURO","COLCHA"]
["CUSCO","PARURO","HUANOQUITE"]
["CUSCO","PARURO","OMACHA"]
["CUSCO","PARURO","PACCARITAMBO"]
["CUSCO","PARURO","PILLPINTO"]
["CUSCO","PARURO","YAURISQUE"]
["CUSCO","PAUCARTAMBO","PAUCARTAMBO"]
["CUSCO","PAUCARTAMBO","CAICAY"]
["CUSCO","PAUCARTAMBO","CHALLABAMBA"]
["CUSCO","PAUCARTAMBO","COLQUEPATA"]
["CUSCO","PAUCARTAMBO","HUANCARANI"]
["CUSCO","PAUCARTAMBO","KOSÑIPATA"]
["CUSCO","QUISPICANCHI","URCOS"]
["CUSCO","QUISPICANCHI","ANDAHUAYLILLAS"]
["CUSCO","QUISPICANCHI","CAMANTI"]
["CUSCO","QUISPICANCHI","CCARHUAYO"]
["CUSCO","QUISPICANCHI","CCATCA"]
["CUSCO","QUISPICANCHI","CUSIPATA"]
["CUSCO","QUISPICANCHI","HUARO"]
["CUSCO","QUISPICANCHI","LUCRE"]
["CUSCO","QUISPICANCHI","MARCAPATA"]
["CUSCO","QUISPICANCHI","OCONGATE"]
["CUSCO","QUISPICANCHI","OROPESA"]
["CUSCO","QUISPICANCHI","QUIQUIJANA"]
["CUSCO","URUBAMBA","URUBAMBA"]
["CUSCO","URUBAMBA","CHINCHERO"]
["CUSCO","URUBAMBA","HUAYLLABAMBA"]
["CUSCO","URUBAMBA","MACHUPICCHU"]
["CUSCO","URUBAMBA","MARAS"]
["CUSCO","URUBAMBA","OLLANTAYTAMBO"]
["CUSCO","URUBAMBA","YUCAY"]
["HUANCAVELICA","HUANCAVELICA","HUANCAVELICA"]
["HUANCAVELICA","HUANCAVELICA","ACOBAMBILLA"]
["HUANCAVELICA","HUANCAVELICA","ACORIA"]
["HUANCAVELICA","HUANCAVELICA","CONAYCA"]
["HUANCAVELICA","HUANCAVELICA","CUENCA"]
["HUANCAVELICA","HUANCAVELICA","HUACHOCOLPA"]
["HUANCAVELICA","HUANCAVELICA","HUAYLLAHUARA"]
["HUANCAVELICA","HUANCAVELICA","IZCUCHACA"]
["HUANCAVELICA","HUANCAVELICA","LARIA"]
["HUANCAVELICA","HUANCAVELICA","MANTA"]
["HUANCAVELICA","HUANCAVELICA","MARISCAL CACERES"]
["HUANCAVELICA","HUANCAVELICA","MOYA"]
["HUANCAVELICA","HUANCAVELICA","NUEVO OCCORO"]
["HUANCAVELICA","HUANCAVELICA","PALCA"]
["HUANCAVELICA","HUANCAVELICA","PILCHACA"]
["HUANCAVELICA","HUANCAVELICA","VILCA"]
["HUANCAVELICA","HUANCAVELICA","YAULI"]
["HUANCAVELICA","HUANCAVELICA","ASCENSION"]
["HUANCAVELICA","HUANCAVELICA","HUANDO"]
["HUANCAVELICA","ACOBAMBA","ACOBAMBA"]
["HUANCAVELICA","ACOBAMBA","ANDABAMBA"]
["HUANCAVELICA","ACOBAMBA","ANTA"]
["HUANCAVELICA","ACOBAMBA","CAJA"]
["HUANCAVELICA","ACOBAMBA","MARCAS"]
["HUANCAVELICA","ACOBAMBA","PAUCARA"]
["HUANCAVELICA","ACOBAMBA","POMACOCHA"]
["HUANCAVELICA","ACOBAMBA","ROSARIO"]
["HUANCAVELICA","ANGARAES","LIRCAY"]
["HUANCAVELICA","ANGARAES","ANCHONGA"]
["HUANCAVELICA","ANGARAES","CALLANMARCA"]
["HUANCAVELICA","ANGARAES","CCOCHACCASA"]
["HUANCAVELICA","ANGARAES","CHINCHO"]
["HUANCAVELICA","ANGARAES","CONGALLA"]
["HUANCAVELICA","ANGARAES","HUANCA-HUANCA"]
["HUANCAVELICA","ANGARAES","HUAYLLAY GRANDE"]
["HUANCAVELICA","ANGARAES","JULCAMARCA"]
["HUANCAVELICA","ANGARAES","SAN ANTONIO DE ANTAPARCO"]
["HUANCAVELICA","ANGARAES","SANTO TOMAS DE PATA"]
["HUANCAVELICA","ANGARAES","SECCLLA"]
["HUANCAVELICA","CASTROVIRREYNA","CASTROVIRREYNA"]
["HUANCAVELICA","CASTROVIRREYNA","ARMA"]
["HUANCAVELICA","CASTROVIRREYNA","AURAHUA"]
["HUANCAVELICA","CASTROVIRREYNA","CAPILLAS"]
["HUANCAVELICA","CASTROVIRREYNA","CHUPAMARCA"]
["HUANCAVELICA","CASTROVIRREYNA","COCAS"]
["HUANCAVELICA","CASTROVIRREYNA","HUACHOS"]
["HUANCAVELICA","CASTROVIRREYNA","HUAMATAMBO"]
["HUANCAVELICA","CASTROVIRREYNA","MOLLEPAMPA"]
["HUANCAVELICA","CASTROVIRREYNA","SAN JUAN"]
["HUANCAVELICA","CASTROVIRREYNA","SANTA ANA"]
["HUANCAVELICA","CASTROVIRREYNA","TANTARA"]
["HUANCAVELICA","CASTROVIRREYNA","TICRAPO"]
["HUANCAVELICA","CHURCAMPA","CHURCAMPA"]
["HUANCAVELICA","CHURCAMPA","ANCO"]
["HUANCAVELICA","CHURCAMPA","CHINCHIHUASI"]
["HUANCAVELICA","CHURCAMPA","EL CARMEN"]
["HUANCAVELICA","CHURCAMPA","LA MERCED"]
["HUANCAVELICA","CHURCAMPA","LOCROJA"]
["HUANCAVELICA","CHURCAMPA","PAUCARBAMBA"]
["HUANCAVELICA","CHURCAMPA","SAN MIGUEL DE MAYOCC"]
["HUANCAVELICA","CHURCAMPA","SAN PEDRO DE CORIS"]
["HUANCAVELICA","CHURCAMPA","PACHAMARCA"]
["HUANCAVELICA","CHURCAMPA","COSME"]
["HUANCAVELICA","HUAYTARA","HUAYTARA"]
["HUANCAVELICA","HUAYTARA","AYAVI"]
["HUANCAVELICA","HUAYTARA","CORDOVA"]
["HUANCAVELICA","HUAYTARA","HUAYACUNDO ARMA"]
["HUANCAVELICA","HUAYTARA","LARAMARCA"]
["HUANCAVELICA","HUAYTARA","OCOYO"]
["HUANCAVELICA","HUAYTARA","PILPICHACA"]
["HUANCAVELICA","HUAYTARA","QUERCO"]
["HUANCAVELICA","HUAYTARA","QUITO-ARMA"]
["HUANCAVELICA","HUAYTARA","SAN ANTONIO DE CUSICANCHA"]
["HUANCAVELICA","HUAYTARA","SAN FRANCISCO DE SANGAYAICO"]
["HUANCAVELICA","HUAYTARA","SAN ISIDRO"]
["HUANCAVELICA","HUAYTARA","SANTIAGO DE CHOCORVOS"]
["HUANCAVELICA","HUAYTARA","SANTIAGO DE QUIRAHUARA"]
["HUANCAVELICA","HUAYTARA","SANTO DOMINGO DE CAPILLAS"]
["HUANCAVELICA","HUAYTARA","TAMBO"]
["HUANCAVELICA","TAYACAJA","PAMPAS"]
["HUANCAVELICA","TAYACAJA","ACOSTAMBO"]
["HUANCAVELICA","TAYACAJA","ACRAQUIA"]
["HUANCAVELICA","TAYACAJA","AHUAYCHA"]
["HUANCAVELICA","TAYACAJA","COLCABAMBA"]
["HUANCAVELICA","TAYACAJA","DANIEL HERNANDEZ"]
["HUANCAVELICA","TAYACAJA","HUACHOCOLPA"]
["HUANCAVELICA","TAYACAJA","HUARIBAMBA"]
["HUANCAVELICA","TAYACAJA","ÑAHUIMPUQUIO"]
["HUANCAVELICA","TAYACAJA","PAZOS"]
["HUANCAVELICA","TAYACAJA","QUISHUAR"]
["HUANCAVELICA","TAYACAJA","SALCABAMBA"]
["HUANCAVELICA","TAYACAJA","SALCAHUASI"]
["HUANCAVELICA","TAYACAJA","SAN MARCOS DE ROCCHAC"]
["HUANCAVELICA","TAYACAJA","SURCUBAMBA"]
["HUANCAVELICA","TAYACAJA","TINTAY PUNCU"]
["HUANCAVELICA","TAYACAJA","QUICHUAS"]
["HUANCAVELICA","TAYACAJA","ANDAYMARCA"]
["HUANCAVELICA","TAYACAJA","ROBLE"]
["HUANCAVELICA","TAYACAJA","PICHOS"]
["HUANCAVELICA","TAYACAJA","SANTIAGO DE TUCUMA"]
["HUANUCO","HUANUCO","HUANUCO"]
["HUANUCO","HUANUCO","AMARILIS"]
["HUANUCO","HUANUCO","CHINCHAO"]
["HUANUCO","HUANUCO","CHURUBAMBA"]
["HUANUCO","HUANUCO","MARGOS"]
["HUANUCO","HUANUCO","QUISQUI"]
["HUANUCO","HUANUCO","SAN FRANCISCO DE CAYRAN"]
["HUANUCO","HUANUCO","SAN PEDRO DE CHAULAN"]
["HUANUCO","HUANUCO","SANTA MARIA DEL VALLE"]
["HUANUCO","HUANUCO","YARUMAYO"]
["HUANUCO","HUANUCO","PILLCO MARCA"]
["HUANUCO","HUANUCO","YACUS"]
["HUANUCO","HUANUCO","SAN PABLO DE PILLAO"]
["HUANUCO","AMBO","AMBO"]
["HUANUCO","AMBO","CAYNA"]
["HUANUCO","AMBO","COLPAS"]
["HUANUCO","AMBO","CONCHAMARCA"]
["HUANUCO","AMBO","HUACAR"]
["HUANUCO","AMBO","SAN FRANCISCO"]
["HUANUCO","AMBO","SAN RAFAEL"]
["HUANUCO","AMBO","TOMAY KICHWA"]
["HUANUCO","DOS DE MAYO","LA UNION"]
["HUANUCO","DOS DE MAYO","CHUQUIS"]
["HUANUCO","DOS DE MAYO","MARIAS"]
["HUANUCO","DOS DE MAYO","PACHAS"]
["HUANUCO","DOS DE MAYO","QUIVILLA"]
["HUANUCO","DOS DE MAYO","RIPAN"]
["HUANUCO","DOS DE MAYO","SHUNQUI"]
["HUANUCO","DOS DE MAYO","SILLAPATA"]
["HUANUCO","DOS DE MAYO","YANAS"]
["HUANUCO","HUACAYBAMBA","HUACAYBAMBA"]
["HUANUCO","HUACAYBAMBA","CANCHABAMBA"]
["HUANUCO","HUACAYBAMBA","COCHABAMBA"]
["HUANUCO","HUACAYBAMBA","PINRA"]
["HUANUCO","HUAMALIES","LLATA"]
["HUANUCO","HUAMALIES","ARANCAY"]
["HUANUCO","HUAMALIES","CHAVIN DE PARIARCA"]
["HUANUCO","HUAMALIES","JACAS GRANDE"]
["HUANUCO","HUAMALIES","JIRCAN"]
["HUANUCO","HUAMALIES","MIRAFLORES"]
["HUANUCO","HUAMALIES","MONZON"]
["HUANUCO","HUAMALIES","PUNCHAO"]
["HUANUCO","HUAMALIES","PUÑOS"]
["HUANUCO","HUAMALIES","SINGA"]
["HUANUCO","HUAMALIES","TANTAMAYO"]
["HUANUCO","LEONCIO PRADO","RUPA-RUPA"]
["HUANUCO","LEONCIO PRADO","DANIEL ALOMIA ROBLES"]
["HUANUCO","LEONCIO PRADO","HERMILIO VALDIZAN"]
["HUANUCO","LEONCIO PRADO","JOSE CRESPO Y CASTILLO"]
["HUANUCO","LEONCIO PRADO","LUYANDO"]
["HUANUCO","LEONCIO PRADO","MARIANO DAMASO BERAUN"]
["HUANUCO","LEONCIO PRADO","PUCAYACU"]
["HUANUCO","LEONCIO PRADO","CASTILLO GRANDE"]
["HUANUCO","LEONCIO PRADO","PUEBLO NUEVO"]
["HUANUCO","LEONCIO PRADO","SANTO DOMINGO DE ANDA"]
["HUANUCO","MARAÑON","HUACRACHUCO"]
["HUANUCO","MARAÑON","CHOLON"]
["HUANUCO","MARAÑON","SAN BUENAVENTURA"]
["HUANUCO","MARAÑON","LA MORADA"]
["HUANUCO","MARAÑON","SANTA ROSA DE ALTO YANAJANCA"]
["HUANUCO","PACHITEA","PANAO"]
["HUANUCO","PACHITEA","CHAGLLA"]
["HUANUCO","PACHITEA","MOLINO"]
["HUANUCO","PACHITEA","UMARI"]
["HUANUCO","PUERTO INCA","PUERTO INCA"]
["HUANUCO","PUERTO INCA","CODO DEL POZUZO"]
["HUANUCO","PUERTO INCA","HONORIA"]
["HUANUCO","PUERTO INCA","TOURNAVISTA"]
["HUANUCO","PUERTO INCA","YUYAPICHIS"]
["HUANUCO","LAURICOCHA","JESUS"]
["HUANUCO","LAURICOCHA","BAÑOS"]
["HUANUCO","LAURICOCHA","JIVIA"]
["HUANUCO","LAURICOCHA","QUEROPALCA"]
["HUANUCO","LAURICOCHA","RONDOS"]
["HUANUCO","LAURICOCHA","SAN FRANCISCO DE ASIS"]
["HUANUCO","LAURICOCHA","SAN MIGUEL DE CAURI"]
["HUANUCO","YAROWILCA","CHAVINILLO"]
["HUANUCO","YAROWILCA","CAHUAC"]
["HUANUCO","YAROWILCA","CHACABAMBA"]
["HUANUCO","YAROWILCA","APARICIO POMARES"]
["HUANUCO","YAROWILCA","JACAS CHICO"]
["HUANUCO","YAROWILCA","OBAS"]
["HUANUCO","YAROWILCA","PAMPAMARCA"]
["HUANUCO","YAROWILCA","CHORAS"]
["ICA","ICA","ICA"]
["ICA","ICA","LA TINGUIÑA"]
["ICA","ICA","LOS AQUIJES"]
["ICA","ICA","OCUCAJE"]
["ICA","ICA","PACHACUTEC"]
["ICA","ICA","PARCONA"]
["ICA","ICA","PUEBLO NUEVO"]
["ICA","ICA","SALAS"]
["ICA","ICA","SAN JOSE DE LOS MOLINOS"]
["ICA","ICA","SAN JUAN BAUTISTA"]
["ICA","ICA","SANTIAGO"]
["ICA","ICA","SUBTANJALLA"]
["ICA","ICA","TATE"]
["ICA","ICA","YAUCA DEL ROSARIO"]
["ICA","CHINCHA","CHINCHA ALTA"]
["ICA","CHINCHA","ALTO LARAN"]
["ICA","CHINCHA","CHAVIN"]
["ICA","CHINCHA","CHINCHA BAJA"]
["ICA","CHINCHA","EL CARMEN"]
["ICA","CHINCHA","GROCIO PRADO"]
["ICA","CHINCHA","PUEBLO NUEVO"]
["ICA","CHINCHA","SAN JUAN DE YANAC"]
["ICA","CHINCHA","SAN PEDRO DE HUACARPANA"]
["ICA","CHINCHA","SUNAMPE"]
["ICA","CHINCHA","TAMBO DE MORA"]
["ICA","NASCA","NASCA"]
["ICA","NASCA","CHANGUILLO"]
["ICA","NASCA","EL INGENIO"]
["ICA","NASCA","MARCONA"]
["ICA","NASCA","VISTA ALEGRE"]
["ICA","PALPA","PALPA"]
["ICA","PALPA","LLIPATA"]
["ICA","PALPA","RIO GRANDE"]
["ICA","PALPA","SANTA CRUZ"]
["ICA","PALPA","TIBILLO"]
["ICA","PISCO","PISCO"]
["ICA","PISCO","HUANCANO"]
["ICA","PISCO","HUMAY"]
["ICA","PISCO","INDEPENDENCIA"]
["ICA","PISCO","PARACAS"]
["ICA","PISCO","SAN ANDRES"]
["ICA","PISCO","SAN CLEMENTE"]
["ICA","PISCO","TUPAC AMARU INCA"]
["JUNIN","HUANCAYO","HUANCAYO"]
["JUNIN","HUANCAYO","CARHUACALLANGA"]
["JUNIN","HUANCAYO","CHACAPAMPA"]
["JUNIN","HUANCAYO","CHICCHE"]
["JUNIN","HUANCAYO","CHILCA"]
["JUNIN","HUANCAYO","CHONGOS ALTO"]
["JUNIN","HUANCAYO","CHUPURO"]
["JUNIN","HUANCAYO","COLCA"]
["JUNIN","HUANCAYO","CULLHUAS"]
["JUNIN","HUANCAYO","EL TAMBO"]
["JUNIN","HUANCAYO","HUACRAPUQUIO"]
["JUNIN","HUANCAYO","HUALHUAS"]
["JUNIN","HUANCAYO","HUANCAN"]
["JUNIN","HUANCAYO","HUASICANCHA"]
["JUNIN","HUANCAYO","HUAYUCACHI"]
["JUNIN","HUANCAYO","INGENIO"]
["JUNIN","HUANCAYO","PARIAHUANCA"]
["JUNIN","HUANCAYO","PILCOMAYO"]
["JUNIN","HUANCAYO","PUCARA"]
["JUNIN","HUANCAYO","QUICHUAY"]
["JUNIN","HUANCAYO","QUILCAS"]
["JUNIN","HUANCAYO","SAN AGUSTIN"]
["JUNIN","HUANCAYO","SAN JERONIMO DE TUNAN"]
["JUNIN","HUANCAYO","SAÑO"]
["JUNIN","HUANCAYO","SAPALLANGA"]
["JUNIN","HUANCAYO","SICAYA"]
["JUNIN","HUANCAYO","SANTO DOMINGO DE ACOBAMBA"]
["JUNIN","HUANCAYO","VIQUES"]
["JUNIN","CONCEPCION","CONCEPCION"]
["JUNIN","CONCEPCION","ACO"]
["JUNIN","CONCEPCION","ANDAMARCA"]
["JUNIN","CONCEPCION","CHAMBARA"]
["JUNIN","CONCEPCION","COCHAS"]
["JUNIN","CONCEPCION","COMAS"]
["JUNIN","CONCEPCION","HEROINAS TOLEDO"]
["JUNIN","CONCEPCION","MANZANARES"]
["JUNIN","CONCEPCION","MARISCAL CASTILLA"]
["JUNIN","CONCEPCION","MATAHUASI"]
["JUNIN","CONCEPCION","MITO"]
["JUNIN","CONCEPCION","NUEVE DE JULIO"]
["JUNIN","CONCEPCION","ORCOTUNA"]
["JUNIN","CONCEPCION","SAN JOSE DE QUERO"]
["JUNIN","CONCEPCION","SANTA ROSA DE OCOPA"]
["JUNIN","CHANCHAMAYO","CHANCHAMAYO"]
["JUNIN","CHANCHAMAYO","PERENE"]
["JUNIN","CHANCHAMAYO","PICHANAQUI"]
["JUNIN","CHANCHAMAYO","SAN LUIS DE SHUARO"]
["JUNIN","CHANCHAMAYO","SAN RAMON"]
["JUNIN","CHANCHAMAYO","VITOC"]
["JUNIN","JAUJA","JAUJA"]
["JUNIN","JAUJA","ACOLLA"]
["JUNIN","JAUJA","APATA"]
["JUNIN","JAUJA","ATAURA"]
["JUNIN","JAUJA","CANCHAYLLO"]
["JUNIN","JAUJA","CURICACA"]
["JUNIN","JAUJA","EL MANTARO"]
["JUNIN","JAUJA","HUAMALI"]
["JUNIN","JAUJA","HUARIPAMPA"]
["JUNIN","JAUJA","HUERTAS"]
["JUNIN","JAUJA","JANJAILLO"]
["JUNIN","JAUJA","JULCAN"]
["JUNIN","JAUJA","LEONOR ORDOÑEZ"]
["JUNIN","JAUJA","LLOCLLAPAMPA"]
["JUNIN","JAUJA","MARCO"]
["JUNIN","JAUJA","MASMA"]
["JUNIN","JAUJA","MASMA CHICCHE"]
["JUNIN","JAUJA","MOLINOS"]
["JUNIN","JAUJA","MONOBAMBA"]
["JUNIN","JAUJA","MUQUI"]
["JUNIN","JAUJA","MUQUIYAUYO"]
["JUNIN","JAUJA","PACA"]
["JUNIN","JAUJA","PACCHA"]
["JUNIN","JAUJA","PANCAN"]
["JUNIN","JAUJA","PARCO"]
["JUNIN","JAUJA","POMACANCHA"]
["JUNIN","JAUJA","RICRAN"]
["JUNIN","JAUJA","SAN LORENZO"]
["JUNIN","JAUJA","SAN PEDRO DE CHUNAN"]
["JUNIN","JAUJA","SAUSA"]
["JUNIN","JAUJA","SINCOS"]
["JUNIN","JAUJA","TUNAN MARCA"]
["JUNIN","JAUJA","YAULI"]
["JUNIN","JAUJA","YAUYOS"]
["JUNIN","JUNIN","JUNIN"]
["JUNIN","JUNIN","CARHUAMAYO"]
["JUNIN","JUNIN","ONDORES"]
["JUNIN","JUNIN","ULCUMAYO"]
["JUNIN","SATIPO","SATIPO"]
["JUNIN","SATIPO","COVIRIALI"]
["JUNIN","SATIPO","LLAYLLA"]
["JUNIN","SATIPO","MAZAMARI"]
["JUNIN","SATIPO","PAMPA HERMOSA"]
["JUNIN","SATIPO","PANGOA"]
["JUNIN","SATIPO","RIO NEGRO"]
["JUNIN","SATIPO","RIO TAMBO"]
["JUNIN","SATIPO","VIZCATAN DEL ENE"]
["JUNIN","TARMA","TARMA"]
["JUNIN","TARMA","ACOBAMBA"]
["JUNIN","TARMA","HUARICOLCA"]
["JUNIN","TARMA","HUASAHUASI"]
["JUNIN","TARMA","LA UNION"]
["JUNIN","TARMA","PALCA"]
["JUNIN","TARMA","PALCAMAYO"]
["JUNIN","TARMA","SAN PEDRO DE CAJAS"]
["JUNIN","TARMA","TAPO"]
["JUNIN","YAULI","LA OROYA"]
["JUNIN","YAULI","CHACAPALPA"]
["JUNIN","YAULI","HUAY-HUAY"]
["JUNIN","YAULI","MARCAPOMACOCHA"]
["JUNIN","YAULI","MOROCOCHA"]
["JUNIN","YAULI","PACCHA"]
["JUNIN","YAULI","SANTA BARBARA DE CARHUACAYAN"]
["JUNIN","YAULI","SANTA ROSA DE SACCO"]
["JUNIN","YAULI","SUITUCANCHA"]
["JUNIN","YAULI","YAULI"]
["JUNIN","CHUPACA","CHUPACA"]
["JUNIN","CHUPACA","AHUAC"]
["JUNIN","CHUPACA","CHONGOS BAJO"]
["JUNIN","CHUPACA","HUACHAC"]
["JUNIN","CHUPACA","HUAMANCACA CHICO"]
["JUNIN","CHUPACA","SAN JUAN DE ISCOS"]
["JUNIN","CHUPACA","SAN JUAN DE JARPA"]
["JUNIN","CHUPACA","TRES DE DICIEMBRE"]
["JUNIN","CHUPACA","YANACANCHA"]
["LA LIBERTAD","TRUJILLO","TRUJILLO"]
["LA LIBERTAD","TRUJILLO","EL PORVENIR"]
["LA LIBERTAD","TRUJILLO","FLORENCIA DE MORA"]
["LA LIBERTAD","TRUJILLO","HUANCHACO"]
["LA LIBERTAD","TRUJILLO","LA ESPERANZA"]
["LA LIBERTAD","TRUJILLO","LAREDO"]
["LA LIBERTAD","TRUJILLO","MOCHE"]
["LA LIBERTAD","TRUJILLO","POROTO"]
["LA LIBERTAD","TRUJILLO","SALAVERRY"]
["LA LIBERTAD","TRUJILLO","SIMBAL"]
["LA LIBERTAD","TRUJILLO","VICTOR LARCO HERRERA"]
["LA LIBERTAD","ASCOPE","ASCOPE"]
["LA LIBERTAD","ASCOPE","CHICAMA"]
["LA LIBERTAD","ASCOPE","CHOCOPE"]
["LA LIBERTAD","ASCOPE","MAGDALENA DE CAO"]
["LA LIBERTAD","ASCOPE","PAIJAN"]
["LA LIBERTAD","ASCOPE","RAZURI"]
["LA LIBERTAD","ASCOPE","SANTIAGO DE CAO"]
["LA LIBERTAD","ASCOPE","CASA GRANDE"]
["LA LIBERTAD","BOLIVAR","BOLIVAR"]
["LA LIBERTAD","BOLIVAR","BAMBAMARCA"]
["LA LIBERTAD","BOLIVAR","CONDORMARCA"]
["LA LIBERTAD","BOLIVAR","LONGOTEA"]
["LA LIBERTAD","BOLIVAR","UCHUMARCA"]
["LA LIBERTAD","BOLIVAR","UCUNCHA"]
["LA LIBERTAD","CHEPEN","CHEPEN"]
["LA LIBERTAD","CHEPEN","PACANGA"]
["LA LIBERTAD","CHEPEN","PUEBLO NUEVO"]
["LA LIBERTAD","JULCAN","JULCAN"]
["LA LIBERTAD","JULCAN","CALAMARCA"]
["LA LIBERTAD","JULCAN","CARABAMBA"]
["LA LIBERTAD","JULCAN","HUASO"]
["LA LIBERTAD","OTUZCO","OTUZCO"]
["LA LIBERTAD","OTUZCO","AGALLPAMPA"]
["LA LIBERTAD","OTUZCO","CHARAT"]
["LA LIBERTAD","OTUZCO","HUARANCHAL"]
["LA LIBERTAD","OTUZCO","LA CUESTA"]
["LA LIBERTAD","OTUZCO","MACHE"]
["LA LIBERTAD","OTUZCO","PARANDAY"]
["LA LIBERTAD","OTUZCO","SALPO"]
["LA LIBERTAD","OTUZCO","SINSICAP"]
["LA LIBERTAD","OTUZCO","USQUIL"]
["LA LIBERTAD","PACASMAYO","SAN PEDRO DE LLOC"]
["LA LIBERTAD","PACASMAYO","GUADALUPE"]
["LA LIBERTAD","PACASMAYO","JEQUETEPEQUE"]
["LA LIBERTAD","PACASMAYO","PACASMAYO"]
["LA LIBERTAD","PACASMAYO","SAN JOSE"]
["LA LIBERTAD","PATAZ","TAYABAMBA"]
["LA LIBERTAD","PATAZ","BULDIBUYO"]
["LA LIBERTAD","PATAZ","CHILLIA"]
["LA LIBERTAD","PATAZ","HUANCASPATA"]
["LA LIBERTAD","PATAZ","HUAYLILLAS"]
["LA LIBERTAD","PATAZ","HUAYO"]
["LA LIBERTAD","PATAZ","ONGON"]
["LA LIBERTAD","PATAZ","PARCOY"]
["LA LIBERTAD","PATAZ","PATAZ"]
["LA LIBERTAD","PATAZ","PIAS"]
["LA LIBERTAD","PATAZ","SANTIAGO DE CHALLAS"]
["LA LIBERTAD","PATAZ","TAURIJA"]
["LA LIBERTAD","PATAZ","URPAY"]
["LA LIBERTAD","SANCHEZ CARRION","HUAMACHUCO"]
["LA LIBERTAD","SANCHEZ CARRION","CHUGAY"]
["LA LIBERTAD","SANCHEZ CARRION","COCHORCO"]
["LA LIBERTAD","SANCHEZ CARRION","CURGOS"]
["LA LIBERTAD","SANCHEZ CARRION","MARCABAL"]
["LA LIBERTAD","SANCHEZ CARRION","SANAGORAN"]
["LA LIBERTAD","SANCHEZ CARRION","SARIN"]
["LA LIBERTAD","SANCHEZ CARRION","SARTIMBAMBA"]
["LA LIBERTAD","SANTIAGO DE CHUCO","SANTIAGO DE CHUCO"]
["LA LIBERTAD","SANTIAGO DE CHUCO","ANGASMARCA"]
["LA LIBERTAD","SANTIAGO DE CHUCO","CACHICADAN"]
["LA LIBERTAD","SANTIAGO DE CHUCO","MOLLEBAMBA"]
["LA LIBERTAD","SANTIAGO DE CHUCO","MOLLEPATA"]
["LA LIBERTAD","SANTIAGO DE CHUCO","QUIRUVILCA"]
["LA LIBERTAD","SANTIAGO DE CHUCO","SANTA CRUZ DE CHUCA"]
["LA LIBERTAD","SANTIAGO DE CHUCO","SITABAMBA"]
["LA LIBERTAD","GRAN CHIMU","CASCAS"]
["LA LIBERTAD","GRAN CHIMU","LUCMA"]
["LA LIBERTAD","GRAN CHIMU","MARMOT"]
["LA LIBERTAD","GRAN CHIMU","SAYAPULLO"]
["LA LIBERTAD","VIRU","VIRU"]
["LA LIBERTAD","VIRU","CHAO"]
["LA LIBERTAD","VIRU","GUADALUPITO"]
["LAMBAYEQUE","CHICLAYO","CHICLAYO"]
["LAMBAYEQUE","CHICLAYO","CHONGOYAPE"]
["LAMBAYEQUE","CHICLAYO","ETEN"]
["LAMBAYEQUE","CHICLAYO","ETEN PUERTO"]
["LAMBAYEQUE","CHICLAYO","JOSE LEONARDO ORTIZ"]
["LAMBAYEQUE","CHICLAYO","LA VICTORIA"]
["LAMBAYEQUE","CHICLAYO","LAGUNAS"]
["LAMBAYEQUE","CHICLAYO","MONSEFU"]
["LAMBAYEQUE","CHICLAYO","NUEVA ARICA"]
["LAMBAYEQUE","CHICLAYO","OYOTUN"]
["LAMBAYEQUE","CHICLAYO","PICSI"]
["LAMBAYEQUE","CHICLAYO","PIMENTEL"]
["LAMBAYEQUE","CHICLAYO","REQUE"]
["LAMBAYEQUE","CHICLAYO","SANTA ROSA"]
["LAMBAYEQUE","CHICLAYO","SAÑA"]
["LAMBAYEQUE","CHICLAYO","CAYALTI"]
["LAMBAYEQUE","CHICLAYO","PATAPO"]
["LAMBAYEQUE","CHICLAYO","POMALCA"]
["LAMBAYEQUE","CHICLAYO","PUCALA"]
["LAMBAYEQUE","CHICLAYO","TUMAN"]
["LAMBAYEQUE","FERREÑAFE","FERREÑAFE"]
["LAMBAYEQUE","FERREÑAFE","CAÑARIS"]
["LAMBAYEQUE","FERREÑAFE","INCAHUASI"]
["LAMBAYEQUE","FERREÑAFE","MANUEL ANTONIO MESONES MURO"]
["LAMBAYEQUE","FERREÑAFE","PITIPO"]
["LAMBAYEQUE","FERREÑAFE","PUEBLO NUEVO"]
["LAMBAYEQUE","LAMBAYEQUE","LAMBAYEQUE"]
["LAMBAYEQUE","LAMBAYEQUE","CHOCHOPE"]
["LAMBAYEQUE","LAMBAYEQUE","ILLIMO"]
["LAMBAYEQUE","LAMBAYEQUE","JAYANCA"]
["LAMBAYEQUE","LAMBAYEQUE","MOCHUMI"]
["LAMBAYEQUE","LAMBAYEQUE","MORROPE"]
["LAMBAYEQUE","LAMBAYEQUE","MOTUPE"]
["LAMBAYEQUE","LAMBAYEQUE","OLMOS"]
["LAMBAYEQUE","LAMBAYEQUE","PACORA"]
["LAMBAYEQUE","LAMBAYEQUE","SALAS"]
["LAMBAYEQUE","LAMBAYEQUE","SAN JOSE"]
["LAMBAYEQUE","LAMBAYEQUE","TUCUME"]
["LIMA","LIMA","LIMA"]
["LIMA","LIMA","ANCON"]
["LIMA","LIMA","ATE"]
["LIMA","LIMA","BARRANCO"]
["LIMA","LIMA","BREÑA"]
["LIMA","LIMA","CARABAYLLO"]
["LIMA","LIMA","CHACLACAYO"]
["LIMA","LIMA","CHORRILLOS"]
["LIMA","LIMA","CIENEGUILLA"]
["LIMA","LIMA","COMAS"]
["LIMA","LIMA","EL AGUSTINO"]
["LIMA","LIMA","INDEPENDENCIA"]
["LIMA","LIMA","JESUS MARIA"]
["LIMA","LIMA","LA MOLINA"]
["LIMA","LIMA","LA VICTORIA"]
["LIMA","LIMA","LINCE"]
["LIMA","LIMA","LOS OLIVOS"]
["LIMA","LIMA","LURIGANCHO"]
["LIMA","LIMA","LURIN"]
["LIMA","LIMA","MAGDALENA DEL MAR"]
["LIMA","LIMA","PUEBLO LIBRE"]
["LIMA","LIMA","MIRAFLORES"]
["LIMA","LIMA","PACHACAMAC"]
["LIMA","LIMA","PUCUSANA"]
["LIMA","LIMA","PUENTE PIEDRA"]
["LIMA","LIMA","PUNTA HERMOSA"]
["LIMA","LIMA","PUNTA NEGRA"]
["LIMA","LIMA","RIMAC"]
["LIMA","LIMA","SAN BARTOLO"]
["LIMA","LIMA","SAN BORJA"]
["LIMA","LIMA","SAN ISIDRO"]
["LIMA","LIMA","SAN JUAN DE LURIGANCHO"]
["LIMA","LIMA","SAN JUAN DE MIRAFLORES"]
["LIMA","LIMA","SAN LUIS"]
["LIMA","LIMA","SAN MARTIN DE PORRES"]
["LIMA","LIMA","SAN MIGUEL"]
["LIMA","LIMA","SANTA ANITA"]
["LIMA","LIMA","SANTA MARIA DEL MAR"]
["LIMA","LIMA","SANTA ROSA"]
["LIMA","LIMA","SANTIAGO DE SURCO"]
["LIMA","LIMA","SURQUILLO"]
["LIMA","LIMA","VILLA EL SALVADOR"]
["LIMA","LIMA","VILLA MARIA DEL TRIUNFO"]
["LIMA","BARRANCA","BARRANCA"]
["LIMA","BARRANCA","PARAMONGA"]
["LIMA","BARRANCA","PATIVILCA"]
["LIMA","BARRANCA","SUPE"]
["LIMA","BARRANCA","SUPE PUERTO"]
["LIMA","CAJATAMBO","CAJATAMBO"]
["LIMA","CAJATAMBO","COPA"]
["LIMA","CAJATAMBO","GORGOR"]
["LIMA","CAJATAMBO","HUANCAPON"]
["LIMA","CAJATAMBO","MANAS"]
["LIMA","CANTA","CANTA"]
["LIMA","CANTA","ARAHUAY"]
["LIMA","CANTA","HUAMANTANGA"]
["LIMA","CANTA","HUAROS"]
["LIMA","CANTA","LACHAQUI"]
["LIMA","CANTA","SAN BUENAVENTURA"]
["LIMA","CANTA","SANTA ROSA DE QUIVES"]
["LIMA","CAÑETE","SAN VICENTE DE CAÑETE"]
["LIMA","CAÑETE","ASIA"]
["LIMA","CAÑETE","CALANGO"]
["LIMA","CAÑETE","CERRO AZUL"]
["LIMA","CAÑETE","CHILCA"]
["LIMA","CAÑETE","COAYLLO"]
["LIMA","CAÑETE","IMPERIAL"]
["LIMA","CAÑETE","LUNAHUANA"]
["LIMA","CAÑETE","MALA"]
["LIMA","CAÑETE","NUEVO IMPERIAL"]
["LIMA","CAÑETE","PACARAN"]
["LIMA","CAÑETE","QUILMANA"]
["LIMA","CAÑETE","SAN ANTONIO"]
["LIMA","CAÑETE","SAN LUIS"]
["LIMA","CAÑETE","SANTA CRUZ DE FLORES"]
["LIMA","CAÑETE","ZUÑIGA"]
["LIMA","HUARAL","HUARAL"]
["LIMA","HUARAL","ATAVILLOS ALTO"]
["LIMA","HUARAL","ATAVILLOS BAJO"]
["LIMA","HUARAL","AUCALLAMA"]
["LIMA","HUARAL","CHANCAY"]
["LIMA","HUARAL","IHUARI"]
["LIMA","HUARAL","LAMPIAN"]
["LIMA","HUARAL","PACARAOS"]
["LIMA","HUARAL","SAN MIGUEL DE ACOS"]
["LIMA","HUARAL","SANTA CRUZ DE ANDAMARCA"]
["LIMA","HUARAL","SUMBILCA"]
["LIMA","HUARAL","VEINTISIETE DE NOVIEMBRE"]
["LIMA","HUAROCHIRI","MATUCANA"]
["LIMA","HUAROCHIRI","ANTIOQUIA"]
["LIMA","HUAROCHIRI","CALLAHUANCA"]
["LIMA","HUAROCHIRI","CARAMPOMA"]
["LIMA","HUAROCHIRI","CHICLA"]
["LIMA","HUAROCHIRI","CUENCA"]
["LIMA","HUAROCHIRI","HUACHUPAMPA"]
["LIMA","HUAROCHIRI","HUANZA"]
["LIMA","HUAROCHIRI","HUAROCHIRI"]
["LIMA","HUAROCHIRI","LAHUAYTAMBO"]
["LIMA","HUAROCHIRI","LANGA"]
["LIMA","HUAROCHIRI","SAN PEDRO DE LARAOS"]
["LIMA","HUAROCHIRI","MARIATANA"]
["LIMA","HUAROCHIRI","RICARDO PALMA"]
["LIMA","HUAROCHIRI","SAN ANDRES DE TUPICOCHA"]
["LIMA","HUAROCHIRI","SAN ANTONIO"]
["LIMA","HUAROCHIRI","SAN BARTOLOME"]
["LIMA","HUAROCHIRI","SAN DAMIAN"]
["LIMA","HUAROCHIRI","SAN JUAN DE IRIS"]
["LIMA","HUAROCHIRI","SAN JUAN DE TANTARANCHE"]
["LIMA","HUAROCHIRI","SAN LORENZO DE QUINTI"]
["LIMA","HUAROCHIRI","SAN MATEO"]
["LIMA","HUAROCHIRI","SAN MATEO DE OTAO"]
["LIMA","HUAROCHIRI","SAN PEDRO DE CASTA"]
["LIMA","HUAROCHIRI","SAN PEDRO DE HUANCAYRE"]
["LIMA","HUAROCHIRI","SANGALLAYA"]
["LIMA","HUAROCHIRI","SANTA CRUZ DE COCACHACRA"]
["LIMA","HUAROCHIRI","SANTA EULALIA"]
["LIMA","HUAROCHIRI","SANTIAGO DE ANCHUCAYA"]
["LIMA","HUAROCHIRI","SANTIAGO DE TUNA"]
["LIMA","HUAROCHIRI","SANTO DOMINGO DE LOS OLLEROS"]
["LIMA","HUAROCHIRI","SURCO"]
["LIMA","HUAURA","HUACHO"]
["LIMA","HUAURA","AMBAR"]
["LIMA","HUAURA","CALETA DE CARQUIN"]
["LIMA","HUAURA","CHECRAS"]
["LIMA","HUAURA","HUALMAY"]
["LIMA","HUAURA","HUAURA"]
["LIMA","HUAURA","LEONCIO PRADO"]
["LIMA","HUAURA","PACCHO"]
["LIMA","HUAURA","SANTA LEONOR"]
["LIMA","HUAURA","SANTA MARIA"]
["LIMA","HUAURA","SAYAN"]
["LIMA","HUAURA","VEGUETA"]
["LIMA","OYON","OYON"]
["LIMA","OYON","ANDAJES"]
["LIMA","OYON","CAUJUL"]
["LIMA","OYON","COCHAMARCA"]
["LIMA","OYON","NAVAN"]
["LIMA","OYON","PACHANGARA"]
["LIMA","YAUYOS","YAUYOS"]
["LIMA","YAUYOS","ALIS"]
["LIMA","YAUYOS","ALLAUCA"]
["LIMA","YAUYOS","AYAVIRI"]
["LIMA","YAUYOS","AZANGARO"]
["LIMA","YAUYOS","CACRA"]
["LIMA","YAUYOS","CARANIA"]
["LIMA","YAUYOS","CATAHUASI"]
["LIMA","YAUYOS","CHOCOS"]
["LIMA","YAUYOS","COCHAS"]
["LIMA","YAUYOS","COLONIA"]
["LIMA","YAUYOS","HONGOS"]
["LIMA","YAUYOS","HUAMPARA"]
["LIMA","YAUYOS","HUANCAYA"]
["LIMA","YAUYOS","HUANGASCAR"]
["LIMA","YAUYOS","HUANTAN"]
["LIMA","YAUYOS","HUAÑEC"]
["LIMA","YAUYOS","LARAOS"]
["LIMA","YAUYOS","LINCHA"]
["LIMA","YAUYOS","MADEAN"]
["LIMA","YAUYOS","MIRAFLORES"]
["LIMA","YAUYOS","OMAS"]
["LIMA","YAUYOS","PUTINZA"]
["LIMA","YAUYOS","QUINCHES"]
["LIMA","YAUYOS","QUINOCAY"]
["LIMA","YAUYOS","SAN JOAQUIN"]
["LIMA","YAUYOS","SAN PEDRO DE PILAS"]
["LIMA","YAUYOS","TANTA"]
["LIMA","YAUYOS","TAURIPAMPA"]
["LIMA","YAUYOS","TOMAS"]
["LIMA","YAUYOS","TUPE"]
["LIMA","YAUYOS","VIÑAC"]
["LIMA","YAUYOS","VITIS"]
["LORETO","MAYNAS","IQUITOS"]
["LORETO","MAYNAS","ALTO NANAY"]
["LORETO","MAYNAS","FERNANDO LORES"]
["LORETO","MAYNAS","INDIANA"]
["LORETO","MAYNAS","LAS AMAZONAS"]
["LORETO","MAYNAS","MAZAN"]
["LORETO","MAYNAS","NAPO"]
["LORETO","MAYNAS","PUNCHANA"]
["LORETO","MAYNAS","TORRES CAUSANA"]
["LORETO","MAYNAS","BELEN"]
["LORETO","MAYNAS","SAN JUAN BAUTISTA"]
["LORETO","ALTO AMAZONAS","YURIMAGUAS"]
["LORETO","ALTO AMAZONAS","BALSAPUERTO"]
["LORETO","ALTO AMAZONAS","JEBEROS"]
["LORETO","ALTO AMAZONAS","LAGUNAS"]
["LORETO","ALTO AMAZONAS","SANTA CRUZ"]
["LORETO","ALTO AMAZONAS","TENIENTE CESAR LOPEZ ROJAS"]
["LORETO","LORETO","NAUTA"]
["LORETO","LORETO","PARINARI"]
["LORETO","LORETO","TIGRE"]
["LORETO","LORETO","TROMPETEROS"]
["LORETO","LORETO","URARINAS"]
["LORETO","MARISCAL RAMON CASTILLA","RAMON CASTILLA"]
["LORETO","MARISCAL RAMON CASTILLA","PEBAS"]
["LORETO","MARISCAL RAMON CASTILLA","YAVARI"]
["LORETO","MARISCAL RAMON CASTILLA","SAN PABLO"]
["LORETO","REQUENA","REQUENA"]
["LORETO","REQUENA","ALTO TAPICHE"]
["LORETO","REQUENA","CAPELO"]
["LORETO","REQUENA","EMILIO SAN MARTIN"]
["LORETO","REQUENA","MAQUIA"]
["LORETO","REQUENA","PUINAHUA"]
["LORETO","REQUENA","SAQUENA"]
["LORETO","REQUENA","SOPLIN"]
["LORETO","REQUENA","TAPICHE"]
["LORETO","REQUENA","JENARO HERRERA"]
["LORETO","REQUENA","YAQUERANA"]
["LORETO","UCAYALI","CONTAMANA"]
["LORETO","UCAYALI","INAHUAYA"]
["LORETO","UCAYALI","PADRE MARQUEZ"]
["LORETO","UCAYALI","PAMPA HERMOSA"]
["LORETO","UCAYALI","SARAYACU"]
["LORETO","UCAYALI","VARGAS GUERRA"]
["LORETO","DATEM DEL MARAÑON","BARRANCA"]
["LORETO","DATEM DEL MARAÑON","CAHUAPANAS"]
["LORETO","DATEM DEL MARAÑON","MANSERICHE"]
["LORETO","DATEM DEL MARAÑON","MORONA"]
["LORETO","DATEM DEL MARAÑON","PASTAZA"]
["LORETO","DATEM DEL MARAÑON","ANDOAS"]
["LORETO","PUTUMAYO","PUTUMAYO"]
["LORETO","PUTUMAYO","ROSA PANDURO"]
["LORETO","PUTUMAYO","TENIENTE MANUEL CLAVERO"]
["LORETO","PUTUMAYO","YAGUAS"]
["MADRE DE DIOS","TAMBOPATA","TAMBOPATA"]
["MADRE DE DIOS","TAMBOPATA","INAMBARI"]
["MADRE DE DIOS","TAMBOPATA","LAS PIEDRAS"]
["MADRE DE DIOS","TAMBOPATA","LABERINTO"]
["MADRE DE DIOS","MANU","MANU"]
["MADRE DE DIOS","MANU","FITZCARRALD"]
["MADRE DE DIOS","MANU","MADRE DE DIOS"]
["MADRE DE DIOS","MANU","HUEPETUHE"]
["MADRE DE DIOS","TAHUAMANU","IÑAPARI"]
["MADRE DE DIOS","TAHUAMANU","IBERIA"]
["MADRE DE DIOS","TAHUAMANU","TAHUAMANU"]
["MOQUEGUA","MARISCAL NIETO","MOQUEGUA"]
["MOQUEGUA","MARISCAL NIETO","CARUMAS"]
["MOQUEGUA","MARISCAL NIETO","CUCHUMBAYA"]
["MOQUEGUA","MARISCAL NIETO","SAMEGUA"]
["MOQUEGUA","MARISCAL NIETO","SAN CRISTOBAL"]
["MOQUEGUA","MARISCAL NIETO","TORATA"]
["MOQUEGUA","GENERAL SANCHEZ CERRO","OMATE"]
["MOQUEGUA","GENERAL SANCHEZ CERRO","CHOJATA"]
["MOQUEGUA","GENERAL SANCHEZ CERRO","COALAQUE"]
["MOQUEGUA","GENERAL SANCHEZ CERRO","ICHUÑA"]
["MOQUEGUA","GENERAL SANCHEZ CERRO","LA CAPILLA"]
["MOQUEGUA","GENERAL SANCHEZ CERRO","LLOQUE"]
["MOQUEGUA","GENERAL SANCHEZ CERRO","MATALAQUE"]
["MOQUEGUA","GENERAL SANCHEZ CERRO","PUQUINA"]
["MOQUEGUA","GENERAL SANCHEZ CERRO","QUINISTAQUILLAS"]
["MOQUEGUA","GENERAL SANCHEZ CERRO","UBINAS"]
["MOQUEGUA","GENERAL SANCHEZ CERRO","YUNGA"]
["MOQUEGUA","ILO","ILO"]
["MOQUEGUA","ILO","EL ALGARROBAL"]
["MOQUEGUA","ILO","PACOCHA"]
["PASCO","PASCO","CHAUPIMARCA"]
["PASCO","PASCO","HUACHON"]
["PASCO","PASCO","HUARIACA"]
["PASCO","PASCO","HUAYLLAY"]
["PASCO","PASCO","NINACACA"]
["PASCO","PASCO","PALLANCHACRA"]
["PASCO","PASCO","PAUCARTAMBO"]
["PASCO","PASCO","SAN FRANCISCO DE ASIS DE YARUSYACAN"]
["PASCO","PASCO","SIMON BOLIVAR"]
["PASCO","PASCO","TICLACAYAN"]
["PASCO","PASCO","TINYAHUARCO"]
["PASCO","PASCO","VICCO"]
["PASCO","PASCO","YANACANCHA"]
["PASCO","DANIEL ALCIDES CARRION","YANAHUANCA"]
["PASCO","DANIEL ALCIDES CARRION","CHACAYAN"]
["PASCO","DANIEL ALCIDES CARRION","GOYLLARISQUIZGA"]
["PASCO","DANIEL ALCIDES CARRION","PAUCAR"]
["PASCO","DANIEL ALCIDES CARRION","SAN PEDRO DE PILLAO"]
["PASCO","DANIEL ALCIDES CARRION","SANTA ANA DE TUSI"]
["PASCO","DANIEL ALCIDES CARRION","TAPUC"]
["PASCO","DANIEL ALCIDES CARRION","VILCABAMBA"]
["PASCO","OXAPAMPA","OXAPAMPA"]
["PASCO","OXAPAMPA","CHONTABAMBA"]
["PASCO","OXAPAMPA","HUANCABAMBA"]
["PASCO","OXAPAMPA","PALCAZU"]
["PASCO","OXAPAMPA","POZUZO"]
["PASCO","OXAPAMPA","PUERTO BERMUDEZ"]
["PASCO","OXAPAMPA","VILLA RICA"]
["PASCO","OXAPAMPA","CONSTITUCION"]
["PIURA","PIURA","PIURA"]
["PIURA","PIURA","CASTILLA"]
["PIURA","PIURA","CATACAOS"]
["PIURA","PIURA","CURA MORI"]
["PIURA","PIURA","EL TALLAN"]
["PIURA","PIURA","LA ARENA"]
["PIURA","PIURA","LA UNION"]
["PIURA","PIURA","LAS LOMAS"]
["PIURA","PIURA","TAMBO GRANDE"]
["PIURA","PIURA","VEINTISEIS DE OCTUBRE"]
["PIURA","AYABACA","AYABACA"]
["PIURA","AYABACA","FRIAS"]
["PIURA","AYABACA","JILILI"]
["PIURA","AYABACA","LAGUNAS"]
["PIURA","AYABACA","MONTERO"]
["PIURA","AYABACA","PACAIPAMPA"]
["PIURA","AYABACA","PAIMAS"]
["PIURA","AYABACA","SAPILLICA"]
["PIURA","AYABACA","SICCHEZ"]
["PIURA","AYABACA","SUYO"]
["PIURA","HUANCABAMBA","HUANCABAMBA"]
["PIURA","HUANCABAMBA","CANCHAQUE"]
["PIURA","HUANCABAMBA","EL CARMEN DE LA FRONTERA"]
["PIURA","HUANCABAMBA","HUARMACA"]
["PIURA","HUANCABAMBA","LALAQUIZ"]
["PIURA","HUANCABAMBA","SAN MIGUEL DE EL FAIQUE"]
["PIURA","HUANCABAMBA","SONDOR"]
["PIURA","HUANCABAMBA","SONDORILLO"]
["PIURA","MORROPON","CHULUCANAS"]
["PIURA","MORROPON","BUENOS AIRES"]
["PIURA","MORROPON","CHALACO"]
["PIURA","MORROPON","LA MATANZA"]
["PIURA","MORROPON","MORROPON"]
["PIURA","MORROPON","SALITRAL"]
["PIURA","MORROPON","SAN JUAN DE BIGOTE"]
["PIURA","MORROPON","SANTA CATALINA DE MOSSA"]
["PIURA","MORROPON","SANTO DOMINGO"]
["PIURA","MORROPON","YAMANGO"]
["PIURA","PAITA","PAITA"]
["PIURA","PAITA","AMOTAPE"]
["PIURA","PAITA","ARENAL"]
["PIURA","PAITA","COLAN"]
["PIURA","PAITA","LA HUACA"]
["PIURA","PAITA","TAMARINDO"]
["PIURA","PAITA","VICHAYAL"]
["PIURA","SULLANA","SULLANA"]
["PIURA","SULLANA","BELLAVISTA"]
["PIURA","SULLANA","IGNACIO ESCUDERO"]
["PIURA","SULLANA","LANCONES"]
["PIURA","SULLANA","MARCAVELICA"]
["PIURA","SULLANA","MIGUEL CHECA"]
["PIURA","SULLANA","QUERECOTILLO"]
["PIURA","SULLANA","SALITRAL"]
["PIURA","TALARA","PARIÑAS"]
["PIURA","TALARA","EL ALTO"]
["PIURA","TALARA","LA BREA"]
["PIURA","TALARA","LOBITOS"]
["PIURA","TALARA","LOS ORGANOS"]
["PIURA","TALARA","MANCORA"]
["PIURA","SECHURA","SECHURA"]
["PIURA","SECHURA","BELLAVISTA DE LA UNION"]
["PIURA","SECHURA","BERNAL"]
["PIURA","SECHURA","CRISTO NOS VALGA"]
["PIURA","SECHURA","VICE"]
["PIURA","SECHURA","RINCONADA LLICUAR"]
["PUNO","PUNO","PUNO"]
["PUNO","PUNO","ACORA"]
["PUNO","PUNO","AMANTANI"]
["PUNO","PUNO","ATUNCOLLA"]
["PUNO","PUNO","CAPACHICA"]
["PUNO","PUNO","CHUCUITO"]
["PUNO","PUNO","COATA"]
["PUNO","PUNO","HUATA"]
["PUNO","PUNO","MAÑAZO"]
["PUNO","PUNO","PAUCARCOLLA"]
["PUNO","PUNO","PICHACANI"]
["PUNO","PUNO","PLATERIA"]
["PUNO","PUNO","SAN ANTONIO"]
["PUNO","PUNO","TIQUILLACA"]
["PUNO","PUNO","VILQUE"]
["PUNO","AZANGARO","AZANGARO"]
["PUNO","AZANGARO","ACHAYA"]
["PUNO","AZANGARO","ARAPA"]
["PUNO","AZANGARO","ASILLO"]
["PUNO","AZANGARO","CAMINACA"]
["PUNO","AZANGARO","CHUPA"]
["PUNO","AZANGARO","JOSE DOMINGO CHOQUEHUANCA"]
["PUNO","AZANGARO","MUÑANI"]
["PUNO","AZANGARO","POTONI"]
["PUNO","AZANGARO","SAMAN"]
["PUNO","AZANGARO","SAN ANTON"]
["PUNO","AZANGARO","SAN JOSE"]
["PUNO","AZANGARO","SAN JUAN DE SALINAS"]
["PUNO","AZANGARO","SANTIAGO DE PUPUJA"]
["PUNO","AZANGARO","TIRAPATA"]
["PUNO","CARABAYA","MACUSANI"]
["PUNO","CARABAYA","AJOYANI"]
["PUNO","CARABAYA","AYAPATA"]
["PUNO","CARABAYA","COASA"]
["PUNO","CARABAYA","CORANI"]
["PUNO","CARABAYA","CRUCERO"]
["PUNO","CARABAYA","ITUATA"]
["PUNO","CARABAYA","OLLACHEA"]
["PUNO","CARABAYA","SAN GABAN"]
["PUNO","CARABAYA","USICAYOS"]
["PUNO","CHUCUITO","JULI"]
["PUNO","CHUCUITO","DESAGUADERO"]
["PUNO","CHUCUITO","HUACULLANI"]
["PUNO","CHUCUITO","KELLUYO"]
["PUNO","CHUCUITO","PISACOMA"]
["PUNO","CHUCUITO","POMATA"]
["PUNO","CHUCUITO","ZEPITA"]
["PUNO","EL COLLAO","ILAVE"]
["PUNO","EL COLLAO","CAPAZO"]
["PUNO","EL COLLAO","PILCUYO"]
["PUNO","EL COLLAO","SANTA ROSA"]
["PUNO","EL COLLAO","CONDURIRI"]
["PUNO","HUANCANE","HUANCANE"]
["PUNO","HUANCANE","COJATA"]
["PUNO","HUANCANE","HUATASANI"]
["PUNO","HUANCANE","INCHUPALLA"]
["PUNO","HUANCANE","PUSI"]
["PUNO","HUANCANE","ROSASPATA"]
["PUNO","HUANCANE","TARACO"]
["PUNO","HUANCANE","VILQUE CHICO"]
["PUNO","LAMPA","LAMPA"]
["PUNO","LAMPA","CABANILLA"]
["PUNO","LAMPA","CALAPUJA"]
["PUNO","LAMPA","NICASIO"]
["PUNO","LAMPA","OCUVIRI"]
["PUNO","LAMPA","PALCA"]
["PUNO","LAMPA","PARATIA"]
["PUNO","LAMPA","PUCARA"]
["PUNO","LAMPA","SANTA LUCIA"]
["PUNO","LAMPA","VILAVILA"]
["PUNO","MELGAR","AYAVIRI"]
["PUNO","MELGAR","ANTAUTA"]
["PUNO","MELGAR","CUPI"]
["PUNO","MELGAR","LLALLI"]
["PUNO","MELGAR","MACARI"]
["PUNO","MELGAR","NUÑOA"]
["PUNO","MELGAR","ORURILLO"]
["PUNO","MELGAR","SANTA ROSA"]
["PUNO","MELGAR","UMACHIRI"]
["PUNO","MOHO","MOHO"]
["PUNO","MOHO","CONIMA"]
["PUNO","MOHO","HUAYRAPATA"]
["PUNO","MOHO","TILALI"]
["PUNO","SAN ANTONIO DE PUTINA","PUTINA"]
["PUNO","SAN ANTONIO DE PUTINA","ANANEA"]
["PUNO","SAN ANTONIO DE PUTINA","PEDRO VILCA APAZA"]
["PUNO","SAN ANTONIO DE PUTINA","QUILCAPUNCU"]
["PUNO","SAN ANTONIO DE PUTINA","SINA"]
["PUNO","SAN ROMAN","JULIACA"]
["PUNO","SAN ROMAN","CABANA"]
["PUNO","SAN ROMAN","CABANILLAS"]
["PUNO","SAN ROMAN","CARACOTO"]
["PUNO","SAN ROMAN","SAN MIGUEL"]
["PUNO","SANDIA","SANDIA"]
["PUNO","SANDIA","CUYOCUYO"]
["PUNO","SANDIA","LIMBANI"]
["PUNO","SANDIA","PATAMBUCO"]
["PUNO","SANDIA","PHARA"]
["PUNO","SANDIA","QUIACA"]
["PUNO","SANDIA","SAN JUAN DEL ORO"]
["PUNO","SANDIA","YANAHUAYA"]
["PUNO","SANDIA","ALTO INAMBARI"]
["PUNO","SANDIA","SAN PEDRO DE PUTINA PUNCO"]
["PUNO","YUNGUYO","YUNGUYO"]
["PUNO","YUNGUYO","ANAPIA"]
["PUNO","YUNGUYO","COPANI"]
["PUNO","YUNGUYO","CUTURAPI"]
["PUNO","YUNGUYO","OLLARAYA"]
["PUNO","YUNGUYO","TINICACHI"]
["PUNO","YUNGUYO","UNICACHI"]
["SAN MARTIN","MOYOBAMBA","MOYOBAMBA"]
["SAN MARTIN","MOYOBAMBA","CALZADA"]
["SAN MARTIN","MOYOBAMBA","HABANA"]
["SAN MARTIN","MOYOBAMBA","JEPELACIO"]
["SAN MARTIN","MOYOBAMBA","SORITOR"]
["SAN MARTIN","MOYOBAMBA","YANTALO"]
["SAN MARTIN","BELLAVISTA","BELLAVISTA"]
["SAN MARTIN","BELLAVISTA","ALTO BIAVO"]
["SAN MARTIN","BELLAVISTA","BAJO BIAVO"]
["SAN MARTIN","BELLAVISTA","HUALLAGA"]
["SAN MARTIN","BELLAVISTA","SAN PABLO"]
["SAN MARTIN","BELLAVISTA","SAN RAFAEL"]
["SAN MARTIN","EL DORADO","SAN JOSE DE SISA"]
["SAN MARTIN","EL DORADO","AGUA BLANCA"]
["SAN MARTIN","EL DORADO","SAN MARTIN"]
["SAN MARTIN","EL DORADO","SANTA ROSA"]
["SAN MARTIN","EL DORADO","SHATOJA"]
["SAN MARTIN","HUALLAGA","SAPOSOA"]
["SAN MARTIN","HUALLAGA","ALTO SAPOSOA"]
["SAN MARTIN","HUALLAGA","EL ESLABON"]
["SAN MARTIN","HUALLAGA","PISCOYACU"]
["SAN MARTIN","HUALLAGA","SACANCHE"]
["SAN MARTIN","HUALLAGA","TINGO DE SAPOSOA"]
["SAN MARTIN","LAMAS","LAMAS"]
["SAN MARTIN","LAMAS","ALONSO DE ALVARADO"]
["SAN MARTIN","LAMAS","BARRANQUITA"]
["SAN MARTIN","LAMAS","CAYNARACHI"]
["SAN MARTIN","LAMAS","CUÑUMBUQUI"]
["SAN MARTIN","LAMAS","PINTO RECODO"]
["SAN MARTIN","LAMAS","RUMISAPA"]
["SAN MARTIN","LAMAS","SAN ROQUE DE CUMBAZA"]
["SAN MARTIN","LAMAS","SHANAO"]
["SAN MARTIN","LAMAS","TABALOSOS"]
["SAN MARTIN","LAMAS","ZAPATERO"]
["SAN MARTIN","MARISCAL CACERES","JUANJUI"]
["SAN MARTIN","MARISCAL CACERES","CAMPANILLA"]
["SAN MARTIN","MARISCAL CACERES","HUICUNGO"]
["SAN MARTIN","MARISCAL CACERES","PACHIZA"]
["SAN MARTIN","MARISCAL CACERES","PAJARILLO"]
["SAN MARTIN","PICOTA","PICOTA"]
["SAN MARTIN","PICOTA","BUENOS AIRES"]
["SAN MARTIN","PICOTA","CASPISAPA"]
["SAN MARTIN","PICOTA","PILLUANA"]
["SAN MARTIN","PICOTA","PUCACACA"]
["SAN MARTIN","PICOTA","SAN CRISTOBAL"]
["SAN MARTIN","PICOTA","SAN HILARION"]
["SAN MARTIN","PICOTA","SHAMBOYACU"]
["SAN MARTIN","PICOTA","TINGO DE PONASA"]
["SAN MARTIN","PICOTA","TRES UNIDOS"]
["SAN MARTIN","RIOJA","RIOJA"]
["SAN MARTIN","RIOJA","AWAJUN"]
["SAN MARTIN","RIOJA","ELIAS SOPLIN VARGAS"]
["SAN MARTIN","RIOJA","NUEVA CAJAMARCA"]
["SAN MARTIN","RIOJA","PARDO MIGUEL"]
["SAN MARTIN","RIOJA","POSIC"]
["SAN MARTIN","RIOJA","SAN FERNANDO"]
["SAN MARTIN","RIOJA","YORONGOS"]
["SAN MARTIN","RIOJA","YURACYACU"]
["SAN MARTIN","SAN MARTIN","TARAPOTO"]
["SAN MARTIN","SAN MARTIN","ALBERTO LEVEAU"]
["SAN MARTIN","SAN MARTIN","CACATACHI"]
["SAN MARTIN","SAN MARTIN","CHAZUTA"]
["SAN MARTIN","SAN MARTIN","CHIPURANA"]
["SAN MARTIN","SAN MARTIN","EL PORVENIR"]
["SAN MARTIN","SAN MARTIN","HUIMBAYOC"]
["SAN MARTIN","SAN MARTIN","JUAN GUERRA"]
["SAN MARTIN","SAN MARTIN","LA BANDA DE SHILCAYO"]
["SAN MARTIN","SAN MARTIN","MORALES"]
["SAN MARTIN","SAN MARTIN","PAPAPLAYA"]
["SAN MARTIN","SAN MARTIN","SAN ANTONIO"]
["SAN MARTIN","SAN MARTIN","SAUCE"]
["SAN MARTIN","SAN MARTIN","SHAPAJA"]
["SAN MARTIN","TOCACHE","TOCACHE"]
["SAN MARTIN","TOCACHE","NUEVO PROGRESO"]
["SAN MARTIN","TOCACHE","POLVORA"]
["SAN MARTIN","TOCACHE","SHUNTE"]
["SAN MARTIN","TOCACHE","UCHIZA"]
["TACNA","TACNA","TACNA"]
["TACNA","TACNA","ALTO DE LA ALIANZA"]
["TACNA","TACNA","CALANA"]
["TACNA","TACNA","CIUDAD NUEVA"]
["TACNA","TACNA","INCLAN"]
["TACNA","TACNA","PACHIA"]
["TACNA","TACNA","PALCA"]
["TACNA","TACNA","POCOLLAY"]
["TACNA","TACNA","SAMA"]
["TACNA","TACNA","CORONEL GREGORIO ALBARRACIN LANCHIPA"]
["TACNA","TACNA","LA YARADA LOS PALOS"]
["TACNA","CANDARAVE","CANDARAVE"]
["TACNA","CANDARAVE","CAIRANI"]
["TACNA","CANDARAVE","CAMILACA"]
["TACNA","CANDARAVE","CURIBAYA"]
["TACNA","CANDARAVE","HUANUARA"]
["TACNA","CANDARAVE","QUILAHUANI"]
["TACNA","JORGE BASADRE","LOCUMBA"]
["TACNA","JORGE BASADRE","ILABAYA"]
["TACNA","JORGE BASADRE","ITE"]
["TACNA","TARATA","TARATA"]
["TACNA","TARATA","HEROES ALBARRACIN"]
["TACNA","TARATA","ESTIQUE"]
["TACNA","TARATA","ESTIQUE-PAMPA"]
["TACNA","TARATA","SITAJARA"]
["TACNA","TARATA","SUSAPAYA"]
["TACNA","TARATA","TARUCACHI"]
["TACNA","TARATA","TICACO"]
["TUMBES","TUMBES","TUMBES"]
["TUMBES","TUMBES","CORRALES"]
["TUMBES","TUMBES","LA CRUZ"]
["TUMBES","TUMBES","PAMPAS DE HOSPITAL"]
["TUMBES","TUMBES","SAN JACINTO"]
["TUMBES","TUMBES","SAN JUAN DE LA VIRGEN"]
["TUMBES","CONTRALMIRANTE VILLAR","ZORRITOS"]
["TUMBES","CONTRALMIRANTE VILLAR","CASITAS"]
["TUMBES","CONTRALMIRANTE VILLAR","CANOAS DE PUNTA SAL"]
["TUMBES","ZARUMILLA","ZARUMILLA"]
["TUMBES","ZARUMILLA","AGUAS VERDES"]
["TUMBES","ZARUMILLA","MATAPALO"]
["TUMBES","ZARUMILLA","PAPAYAL"]
["UCAYALI","CORONEL PORTILLO","CALLERIA"]
["UCAYALI","CORONEL PORTILLO","CAMPOVERDE"]
["UCAYALI","CORONEL PORTILLO","IPARIA"]
["UCAYALI","CORONEL PORTILLO","MASISEA"]
["UCAYALI","CORONEL PORTILLO","YARINACOCHA"]
["UCAYALI","CORONEL PORTILLO","NUEVA REQUENA"]
["UCAYALI","CORONEL PORTILLO","MANANTAY"]
["UCAYALI","ATALAYA","RAIMONDI"]
["UCAYALI","ATALAYA","SEPAHUA"]
["UCAYALI","ATALAYA","TAHUANIA"]
["UCAYALI","ATALAYA","YURUA"]
["UCAYALI","PADRE ABAD","PADRE ABAD"]
["UCAYALI","PADRE ABAD","IRAZOLA"]
["UCAYALI","PADRE ABAD","CURIMANA"]
["UCAYALI","PADRE ABAD","NESHUYA"]
["UCAYALI","PADRE ABAD","ALEXANDER VON HUMBOLDT"]
["UCAYALI","PURUS","PURUS"]

{"sheet":"MUNICIPALIDAD","index":7,"n_rows":1875,"n_cols":4,"rows_kept":1875,"cut":false,"hidden":true,"merged":[]}
["TIPO MUNICIPIO","DEPARTAMENTO","PROVINCIA","DISTRITO"]
["PROVINCIAL","AMAZONAS","CHACHAPOYAS","CHACHAPOYAS"]
["DISTRITAL","AMAZONAS","CHACHAPOYAS","ASUNCION"]
["DISTRITAL","AMAZONAS","CHACHAPOYAS","BALSAS"]
["DISTRITAL","AMAZONAS","CHACHAPOYAS","CHETO"]
["DISTRITAL","AMAZONAS","CHACHAPOYAS","CHILIQUIN"]
["DISTRITAL","AMAZONAS","CHACHAPOYAS","CHUQUIBAMBA"]
["DISTRITAL","AMAZONAS","CHACHAPOYAS","GRANADA"]
["DISTRITAL","AMAZONAS","CHACHAPOYAS","HUANCAS"]
["DISTRITAL","AMAZONAS","CHACHAPOYAS","LA JALCA"]
["DISTRITAL","AMAZONAS","CHACHAPOYAS","LEIMEBAMBA"]
["DISTRITAL","AMAZONAS","CHACHAPOYAS","LEVANTO"]
["DISTRITAL","AMAZONAS","CHACHAPOYAS","MAGDALENA"]
["DISTRITAL","AMAZONAS","CHACHAPOYAS","MARISCAL CASTILLA"]
["DISTRITAL","AMAZONAS","CHACHAPOYAS","MOLINOPAMPA"]
["DISTRITAL","AMAZONAS","CHACHAPOYAS","MONTEVIDEO"]
["DISTRITAL","AMAZONAS","CHACHAPOYAS","OLLEROS"]
["DISTRITAL","AMAZONAS","CHACHAPOYAS","QUINJALCA"]
["DISTRITAL","AMAZONAS","CHACHAPOYAS","SAN FRANCISCO DE DAGUAS"]
["DISTRITAL","AMAZONAS","CHACHAPOYAS","SAN ISIDRO DE MAINO"]
["DISTRITAL","AMAZONAS","CHACHAPOYAS","SOLOCO"]
["DISTRITAL","AMAZONAS","CHACHAPOYAS","SONCHE"]
["PROVINCIAL","AMAZONAS","BAGUA","BAGUA"]
["DISTRITAL","AMAZONAS","BAGUA","ARAMANGO"]
["DISTRITAL","AMAZONAS","BAGUA","COPALLIN"]
["DISTRITAL","AMAZONAS","BAGUA","EL PARCO"]
["DISTRITAL","AMAZONAS","BAGUA","IMAZA"]
["DISTRITAL","AMAZONAS","BAGUA","LA PECA"]
["PROVINCIAL","AMAZONAS","BONGARA","JUMBILLA"]
["DISTRITAL","AMAZONAS","BONGARA","CHISQUILLA"]
["DISTRITAL","AMAZONAS","BONGARA","CHURUJA"]
["DISTRITAL","AMAZONAS","BONGARA","COROSHA"]
["DISTRITAL","AMAZONAS","BONGARA","CUISPES"]
["DISTRITAL","AMAZONAS","BONGARA","FLORIDA"]
["DISTRITAL","AMAZONAS","BONGARA","JAZAN"]
["DISTRITAL","AMAZONAS","BONGARA","RECTA"]
["DISTRITAL","AMAZONAS","BONGARA","SAN CARLOS"]
["DISTRITAL","AMAZONAS","BONGARA","SHIPASBAMBA"]
["DISTRITAL","AMAZONAS","BONGARA","VALERA"]
["DISTRITAL","AMAZONAS","BONGARA","YAMBRASBAMBA"]
["PROVINCIAL","AMAZONAS","CONDORCANQUI","NIEVA"]
["DISTRITAL","AMAZONAS","CONDORCANQUI","EL CENEPA"]
["DISTRITAL","AMAZONAS","CONDORCANQUI","RIO SANTIAGO"]
["PROVINCIAL","AMAZONAS","LUYA","LAMUD"]
["DISTRITAL","AMAZONAS","LUYA","CAMPORREDONDO"]
["DISTRITAL","AMAZONAS","LUYA","COCABAMBA"]
["DISTRITAL","AMAZONAS","LUYA","COLCAMAR"]
["DISTRITAL","AMAZONAS","LUYA","CONILA"]
["DISTRITAL","AMAZONAS","LUYA","INGUILPATA"]
["DISTRITAL","AMAZONAS","LUYA","LONGUITA"]
["DISTRITAL","AMAZONAS","LUYA","LONYA CHICO"]
["DISTRITAL","AMAZONAS","LUYA","LUYA"]
["DISTRITAL","AMAZONAS","LUYA","LUYA VIEJO"]
["DISTRITAL","AMAZONAS","LUYA","MARIA"]
["DISTRITAL","AMAZONAS","LUYA","OCALLI"]
["DISTRITAL","AMAZONAS","LUYA","OCUMAL"]
["DISTRITAL","AMAZONAS","LUYA","PISUQUIA"]
["DISTRITAL","AMAZONAS","LUYA","PROVIDENCIA"]
["DISTRITAL","AMAZONAS","LUYA","SAN CRISTOBAL"]
["DISTRITAL","AMAZONAS","LUYA","SAN FRANCISCO DEL YESO"]
["DISTRITAL","AMAZONAS","LUYA","SAN JERONIMO"]
["DISTRITAL","AMAZONAS","LUYA","SAN JUAN DE LOPECANCHA"]
["DISTRITAL","AMAZONAS","LUYA","SANTA CATALINA"]
["DISTRITAL","AMAZONAS","LUYA","SANTO TOMAS"]
["DISTRITAL","AMAZONAS","LUYA","TINGO"]
["DISTRITAL","AMAZONAS","LUYA","TRITA"]
["PROVINCIAL","AMAZONAS","RODRIGUEZ DE MENDOZA","SAN NICOLAS"]
["DISTRITAL","AMAZONAS","RODRIGUEZ DE MENDOZA","CHIRIMOTO"]
["DISTRITAL","AMAZONAS","RODRIGUEZ DE MENDOZA","COCHAMAL"]
["DISTRITAL","AMAZONAS","RODRIGUEZ DE MENDOZA","HUAMBO"]
["DISTRITAL","AMAZONAS","RODRIGUEZ DE MENDOZA","LIMABAMBA"]
["DISTRITAL","AMAZONAS","RODRIGUEZ DE MENDOZA","LONGAR"]
["DISTRITAL","AMAZONAS","RODRIGUEZ DE MENDOZA","MARISCAL BENAVIDES"]
["DISTRITAL","AMAZONAS","RODRIGUEZ DE MENDOZA","MILPUC"]
["DISTRITAL","AMAZONAS","RODRIGUEZ DE MENDOZA","OMIA"]
["DISTRITAL","AMAZONAS","RODRIGUEZ DE MENDOZA","SANTA ROSA"]
["DISTRITAL","AMAZONAS","RODRIGUEZ DE MENDOZA","TOTORA"]
["DISTRITAL","AMAZONAS","RODRIGUEZ DE MENDOZA","VISTA ALEGRE"]
["PROVINCIAL","AMAZONAS","UTCUBAMBA","BAGUA GRANDE"]
["DISTRITAL","AMAZONAS","UTCUBAMBA","CAJARURO"]
["DISTRITAL","AMAZONAS","UTCUBAMBA","CUMBA"]
["DISTRITAL","AMAZONAS","UTCUBAMBA","EL MILAGRO"]
["DISTRITAL","AMAZONAS","UTCUBAMBA","JAMALCA"]
["DISTRITAL","AMAZONAS","UTCUBAMBA","LONYA GRANDE"]
["DISTRITAL","AMAZONAS","UTCUBAMBA","YAMON"]
["PROVINCIAL","ANCASH","HUARAZ","HUARAZ"]
["DISTRITAL","ANCASH","HUARAZ","COCHABAMBA"]
["DISTRITAL","ANCASH","HUARAZ","COLCABAMBA"]
["DISTRITAL","ANCASH","HUARAZ","HUANCHAY"]
["DISTRITAL","ANCASH","HUARAZ","INDEPENDENCIA"]
["DISTRITAL","ANCASH","HUARAZ","JANGAS"]
["DISTRITAL","ANCASH","HUARAZ","LA LIBERTAD"]
["DISTRITAL","ANCASH","HUARAZ","OLLEROS"]
["DISTRITAL","ANCASH","HUARAZ","PAMPAS GRANDE"]
["DISTRITAL","ANCASH","HUARAZ","PARIACOTO"]
["DISTRITAL","ANCASH","HUARAZ","PIRA"]
["DISTRITAL","ANCASH","HUARAZ","TARICA"]
["PROVINCIAL","ANCASH","AIJA","AIJA"]
["DISTRITAL","ANCASH","AIJA","CORIS"]
["DISTRITAL","ANCASH","AIJA","HUACLLAN"]
["DISTRITAL","ANCASH","AIJA","LA MERCED"]
["DISTRITAL","ANCASH","AIJA","SUCCHA"]
["PROVINCIAL","ANCASH","ANTONIO RAYMONDI","LLAMELLIN"]
["DISTRITAL","ANCASH","ANTONIO RAYMONDI","ACZO"]
["DISTRITAL","ANCASH","ANTONIO RAYMONDI","CHACCHO"]
["DISTRITAL","ANCASH","ANTONIO RAYMONDI","CHINGAS"]
["DISTRITAL","ANCASH","ANTONIO RAYMONDI","MIRGAS"]
["DISTRITAL","ANCASH","ANTONIO RAYMONDI","SAN JUAN DE RONTOY"]
["PROVINCIAL","ANCASH","ASUNCION","CHACAS"]
["DISTRITAL","ANCASH","ASUNCION","ACOCHACA"]
["PROVINCIAL","ANCASH","BOLOGNESI","CHIQUIAN"]
["DISTRITAL","ANCASH","BOLOGNESI","ABELARDO PARDO LEZAMETA"]
["DISTRITAL","ANCASH","BOLOGNESI","ANTONIO RAYMONDI"]
["DISTRITAL","ANCASH","BOLOGNESI","AQUIA"]
["DISTRITAL","ANCASH","BOLOGNESI","CAJACAY"]
["DISTRITAL","ANCASH","BOLOGNESI","CANIS"]
["DISTRITAL","ANCASH","BOLOGNESI","COLQUIOC"]
["DISTRITAL","ANCASH","BOLOGNESI","HUALLANCA"]
["DISTRITAL","ANCASH","BOLOGNESI","HUASTA"]
["DISTRITAL","ANCASH","BOLOGNESI","HUAYLLACAYAN"]
["DISTRITAL","ANCASH","BOLOGNESI","LA PRIMAVERA"]
["DISTRITAL","ANCASH","BOLOGNESI","MANGAS"]
["DISTRITAL","ANCASH","BOLOGNESI","PACLLON"]
["DISTRITAL","ANCASH","BOLOGNESI","SAN MIGUEL DE CORPANQUI"]
["DISTRITAL","ANCASH","BOLOGNESI","TICLLOS"]
["PROVINCIAL","ANCASH","CARHUAZ","CARHUAZ"]
["DISTRITAL","ANCASH","CARHUAZ","ACOPAMPA"]
["DISTRITAL","ANCASH","CARHUAZ","AMASHCA"]
["DISTRITAL","ANCASH","CARHUAZ","ANTA"]
["DISTRITAL","ANCASH","CARHUAZ","ATAQUERO"]
["DISTRITAL","ANCASH","CARHUAZ","MARCARA"]
["DISTRITAL","ANCASH","CARHUAZ","PARIAHUANCA"]
["DISTRITAL","ANCASH","CARHUAZ","SAN MIGUEL DE ACO"]
["DISTRITAL","ANCASH","CARHUAZ","SHILLA"]
["DISTRITAL","ANCASH","CARHUAZ","TINCO"]
["DISTRITAL","ANCASH","CARHUAZ","YUNGAR"]
["PROVINCIAL","ANCASH","CARLOS FERMIN FITZCARRALD","SAN LUIS"]
["DISTRITAL","ANCASH","CARLOS FERMIN FITZCARRALD","SAN NICOLAS"]
["DISTRITAL","ANCASH","CARLOS FERMIN FITZCARRALD","YAUYA"]
["PROVINCIAL","ANCASH","CASMA","CASMA"]
["DISTRITAL","ANCASH","CASMA","BUENA VISTA ALTA"]
["DISTRITAL","ANCASH","CASMA","COMANDANTE NOEL"]
["DISTRITAL","ANCASH","CASMA","YAUTAN"]
["PROVINCIAL","ANCASH","CORONGO","CORONGO"]
["DISTRITAL","ANCASH","CORONGO","ACO"]
["DISTRITAL","ANCASH","CORONGO","BAMBAS"]
["DISTRITAL","ANCASH","CORONGO","CUSCA"]
["DISTRITAL","ANCASH","CORONGO","LA PAMPA"]
["DISTRITAL","ANCASH","CORONGO","YANAC"]
["DISTRITAL","ANCASH","CORONGO","YUPAN"]
["PROVINCIAL","ANCASH","HUARI","HUARI"]
["DISTRITAL","ANCASH","HUARI","ANRA"]
["DISTRITAL","ANCASH","HUARI","CAJAY"]
["DISTRITAL","ANCASH","HUARI","CHAVIN DE HUANTAR"]
["DISTRITAL","ANCASH","HUARI","HUACACHI"]
["DISTRITAL","ANCASH","HUARI","HUACCHIS"]
["DISTRITAL","ANCASH","HUARI","HUACHIS"]
["DISTRITAL","ANCASH","HUARI","HUANTAR"]
["DISTRITAL","ANCASH","HUARI","MASIN"]
["DISTRITAL","ANCASH","HUARI","PAUCAS"]
["DISTRITAL","ANCASH","HUARI","PONTO"]
["DISTRITAL","ANCASH","HUARI","RAHUAPAMPA"]
["DISTRITAL","ANCASH","HUARI","RAPAYAN"]
["DISTRITAL","ANCASH","HUARI","SAN MARCOS"]
["DISTRITAL","ANCASH","HUARI","SAN PEDRO DE CHANA"]
["DISTRITAL","ANCASH","HUARI","UCO"]
["PROVINCIAL","ANCASH","HUARMEY","HUARMEY"]
["DISTRITAL","ANCASH","HUARMEY","COCHAPETI"]
["DISTRITAL","ANCASH","HUARMEY","CULEBRAS"]
["DISTRITAL","ANCASH","HUARMEY","HUAYAN"]
["DISTRITAL","ANCASH","HUARMEY","MALVAS"]
["PROVINCIAL","ANCASH","HUAYLAS","CARAZ"]
["DISTRITAL","ANCASH","HUAYLAS","HUALLANCA"]
["DISTRITAL","ANCASH","HUAYLAS","HUATA"]
["DISTRITAL","ANCASH","HUAYLAS","HUAYLAS"]
["DISTRITAL","ANCASH","HUAYLAS","MATO"]
["DISTRITAL","ANCASH","HUAYLAS","PAMPAROMAS"]
["DISTRITAL","ANCASH","HUAYLAS","PUEBLO LIBRE"]
["DISTRITAL","ANCASH","HUAYLAS","SANTA CRUZ"]
["DISTRITAL","ANCASH","HUAYLAS","SANTO TORIBIO"]
["DISTRITAL","ANCASH","HUAYLAS","YURACMARCA"]
["PROVINCIAL","ANCASH","MARISCAL LUZURIAGA","PISCOBAMBA"]
["DISTRITAL","ANCASH","MARISCAL LUZURIAGA","CASCA"]
["DISTRITAL","ANCASH","MARISCAL LUZURIAGA","ELEAZAR GUZMAN BARRON"]
["DISTRITAL","ANCASH","MARISCAL LUZURIAGA","FIDEL OLIVAS ESCUDERO"]
["DISTRITAL","ANCASH","MARISCAL LUZURIAGA","LLAMA"]
["DISTRITAL","ANCASH","MARISCAL LUZURIAGA","LLUMPA"]
["DISTRITAL","ANCASH","MARISCAL LUZURIAGA","LUCMA"]
["DISTRITAL","ANCASH","MARISCAL LUZURIAGA","MUSGA"]
["PROVINCIAL","ANCASH","OCROS","OCROS"]
["DISTRITAL","ANCASH","OCROS","ACAS"]
["DISTRITAL","ANCASH","OCROS","CAJAMARQUILLA"]
["DISTRITAL","ANCASH","OCROS","CARHUAPAMPA"]
["DISTRITAL","ANCASH","OCROS","COCHAS"]
["DISTRITAL","ANCASH","OCROS","CONGAS"]
["DISTRITAL","ANCASH","OCROS","LLIPA"]
["DISTRITAL","ANCASH","OCROS","SAN CRISTOBAL DE RAJAN"]
["DISTRITAL","ANCASH","OCROS","SAN PEDRO"]
["DISTRITAL","ANCASH","OCROS","SANTIAGO DE CHILCAS"]
["PROVINCIAL","ANCASH","PALLASCA","CABANA"]
["DISTRITAL","ANCASH","PALLASCA","BOLOGNESI"]
["DISTRITAL","ANCASH","PALLASCA","CONCHUCOS"]
["DISTRITAL","ANCASH","PALLASCA","HUACASCHUQUE"]
["DISTRITAL","ANCASH","PALLASCA","HUANDOVAL"]
["DISTRITAL","ANCASH","PALLASCA","LACABAMBA"]
["DISTRITAL","ANCASH","PALLASCA","LLAPO"]
["DISTRITAL","ANCASH","PALLASCA","PALLASCA"]
["DISTRITAL","ANCASH","PALLASCA","PAMPAS"]
["DISTRITAL","ANCASH","PALLASCA","SANTA ROSA"]
["DISTRITAL","ANCASH","PALLASCA","TAUCA"]
["PROVINCIAL","ANCASH","POMABAMBA","POMABAMBA"]
["DISTRITAL","ANCASH","POMABAMBA","HUAYLLAN"]
["DISTRITAL","ANCASH","POMABAMBA","PAROBAMBA"]
["DISTRITAL","ANCASH","POMABAMBA","QUINUABAMBA"]
["PROVINCIAL","ANCASH","RECUAY","RECUAY"]
["DISTRITAL","ANCASH","RECUAY","CATAC"]
["DISTRITAL","ANCASH","RECUAY","COTAPARACO"]
["DISTRITAL","ANCASH","RECUAY","HUAYLLAPAMPA"]
["DISTRITAL","ANCASH","RECUAY","LLACLLIN"]
["DISTRITAL","ANCASH","RECUAY","MARCA"]
["DISTRITAL","ANCASH","RECUAY","PAMPAS CHICO"]
["DISTRITAL","ANCASH","RECUAY","PARARIN"]
["DISTRITAL","ANCASH","RECUAY","TAPACOCHA"]
["DISTRITAL","ANCASH","RECUAY","TICAPAMPA"]
["PROVINCIAL","ANCASH","SANTA","CHIMBOTE"]
["DISTRITAL","ANCASH","SANTA","CACERES DEL PERU"]
["DISTRITAL","ANCASH","SANTA","COISHCO"]
["DISTRITAL","ANCASH","SANTA","MACATE"]
["DISTRITAL","ANCASH","SANTA","MORO"]
["DISTRITAL","ANCASH","SANTA","NEPEÑA"]
["DISTRITAL","ANCASH","SANTA","SAMANCO"]
["DISTRITAL","ANCASH","SANTA","SANTA"]
["DISTRITAL","ANCASH","SANTA","NUEVO CHIMBOTE"]
["PROVINCIAL","ANCASH","SIHUAS","SIHUAS"]
["DISTRITAL","ANCASH","SIHUAS","ACOBAMBA"]
["DISTRITAL","ANCASH","SIHUAS","ALFONSO UGARTE"]
["DISTRITAL","ANCASH","SIHUAS","CASHAPAMPA"]
["DISTRITAL","ANCASH","SIHUAS","CHINGALPO"]
["DISTRITAL","ANCASH","SIHUAS","HUAYLLABAMBA"]
["DISTRITAL","ANCASH","SIHUAS","QUICHES"]
["DISTRITAL","ANCASH","SIHUAS","RAGASH"]
["DISTRITAL","ANCASH","SIHUAS","SAN JUAN"]
["DISTRITAL","ANCASH","SIHUAS","SICSIBAMBA"]
["PROVINCIAL","ANCASH","YUNGAY","YUNGAY"]
["DISTRITAL","ANCASH","YUNGAY","CASCAPARA"]
["DISTRITAL","ANCASH","YUNGAY","MANCOS"]
["DISTRITAL","ANCASH","YUNGAY","MATACOTO"]
["DISTRITAL","ANCASH","YUNGAY","QUILLO"]
["DISTRITAL","ANCASH","YUNGAY","RANRAHIRCA"]
["DISTRITAL","ANCASH","YUNGAY","SHUPLUY"]
["DISTRITAL","ANCASH","YUNGAY","YANAMA"]
["PROVINCIAL","APURIMAC","ABANCAY","ABANCAY"]
["DISTRITAL","APURIMAC","ABANCAY","CHACOCHE"]
["DISTRITAL","APURIMAC","ABANCAY","CIRCA"]
["DISTRITAL","APURIMAC","ABANCAY","CURAHUASI"]
["DISTRITAL","APURIMAC","ABANCAY","HUANIPACA"]
["DISTRITAL","APURIMAC","ABANCAY","LAMBRAMA"]
["DISTRITAL","APURIMAC","ABANCAY","PICHIRHUA"]
["DISTRITAL","APURIMAC","ABANCAY","SAN PEDRO DE CACHORA"]
["DISTRITAL","APURIMAC","ABANCAY","TAMBURCO"]
["PROVINCIAL","APURIMAC","ANDAHUAYLAS","ANDAHUAYLAS"]
["DISTRITAL","APURIMAC","ANDAHUAYLAS","ANDARAPA"]
["DISTRITAL","APURIMAC","ANDAHUAYLAS","CHIARA"]
["DISTRITAL","APURIMAC","ANDAHUAYLAS","HUANCARAMA"]
["DISTRITAL","APURIMAC","ANDAHUAYLAS","HUANCARAY"]
["DISTRITAL","APURIMAC","ANDAHUAYLAS","HUAYANA"]
["DISTRITAL","APURIMAC","ANDAHUAYLAS","KISHUARA"]
["DISTRITAL","APURIMAC","ANDAHUAYLAS","PACOBAMBA"]
["DISTRITAL","APURIMAC","ANDAHUAYLAS","PACUCHA"]
["DISTRITAL","APURIMAC","ANDAHUAYLAS","PAMPACHIRI"]
["DISTRITAL","APURIMAC","ANDAHUAYLAS","POMACOCHA"]
["DISTRITAL","APURIMAC","ANDAHUAYLAS","SAN ANTONIO DE CACHI"]
["DISTRITAL","APURIMAC","ANDAHUAYLAS","SAN JERONIMO"]
["DISTRITAL","APURIMAC","ANDAHUAYLAS","SAN MIGUEL DE CHACCRAMPA"]
["DISTRITAL","APURIMAC","ANDAHUAYLAS","SANTA MARIA DE CHICMO"]
["DISTRITAL","APURIMAC","ANDAHUAYLAS","TALAVERA"]
["DISTRITAL","APURIMAC","ANDAHUAYLAS","TUMAY HUARACA"]
["DISTRITAL","APURIMAC","ANDAHUAYLAS","TURPO"]
["DISTRITAL","APURIMAC","ANDAHUAYLAS","KAQUIABAMBA"]
["DISTRITAL","APURIMAC","ANDAHUAYLAS","JOSE MARIA ARGUEDAS"]
["PROVINCIAL","APURIMAC","ANTABAMBA","ANTABAMBA"]
["DISTRITAL","APURIMAC","ANTABAMBA","EL ORO"]
["DISTRITAL","APURIMAC","ANTABAMBA","HUAQUIRCA"]
["DISTRITAL","APURIMAC","ANTABAMBA","JUAN ESPINOZA MEDRANO"]
["DISTRITAL","APURIMAC","ANTABAMBA","OROPESA"]
["DISTRITAL","APURIMAC","ANTABAMBA","PACHACONAS"]
["DISTRITAL","APURIMAC","ANTABAMBA","SABAINO"]
["PROVINCIAL","APURIMAC","AYMARAES","CHALHUANCA"]
["DISTRITAL","APURIMAC","AYMARAES","CAPAYA"]
["DISTRITAL","APURIMAC","AYMARAES","CARAYBAMBA"]
["DISTRITAL","APURIMAC","AYMARAES","CHAPIMARCA"]
["DISTRITAL","APURIMAC","AYMARAES","COLCABAMBA"]
["DISTRITAL","APURIMAC","AYMARAES","COTARUSE"]
["DISTRITAL","APURIMAC","AYMARAES","IHUAYLLO"]
["DISTRITAL","APURIMAC","AYMARAES","JUSTO APU SAHUARAURA"]
["DISTRITAL","APURIMAC","AYMARAES","LUCRE"]
["DISTRITAL","APURIMAC","AYMARAES","POCOHUANCA"]
["DISTRITAL","APURIMAC","AYMARAES","SAN JUAN DE CHACÑA"]
["DISTRITAL","APURIMAC","AYMARAES","SAÑAYCA"]
["DISTRITAL","APURIMAC","AYMARAES","SORAYA"]
["DISTRITAL","APURIMAC","AYMARAES","TAPAIRIHUA"]
["DISTRITAL","APURIMAC","AYMARAES","TINTAY"]
["DISTRITAL","APURIMAC","AYMARAES","TORAYA"]
["DISTRITAL","APURIMAC","AYMARAES","YANACA"]
["PROVINCIAL","APURIMAC","COTABAMBAS","TAMBOBAMBA"]
["DISTRITAL","APURIMAC","COTABAMBAS","COTABAMBAS"]
["DISTRITAL","APURIMAC","COTABAMBAS","COYLLURQUI"]
["DISTRITAL","APURIMAC","COTABAMBAS","HAQUIRA"]
["DISTRITAL","APURIMAC","COTABAMBAS","MARA"]
["DISTRITAL","APURIMAC","COTABAMBAS","CHALLHUAHUACHO"]
["PROVINCIAL","APURIMAC","CHINCHEROS","CHINCHEROS"]
["DISTRITAL","APURIMAC","CHINCHEROS","ANCO-HUALLO"]
["DISTRITAL","APURIMAC","CHINCHEROS","COCHARCAS"]
["DISTRITAL","APURIMAC","CHINCHEROS","HUACCANA"]
["DISTRITAL","APURIMAC","CHINCHEROS","OCOBAMBA"]
["DISTRITAL","APURIMAC","CHINCHEROS","ONGOY"]
["DISTRITAL","APURIMAC","CHINCHEROS","URANMARCA"]
["DISTRITAL","APURIMAC","CHINCHEROS","RANRACANCHA"]
["DISTRITAL","APURIMAC","CHINCHEROS","ROCCHACC"]
["DISTRITAL","APURIMAC","CHINCHEROS","EL PORVENIR"]
["DISTRITAL","APURIMAC","CHINCHEROS","LOS CHANKAS"]
["PROVINCIAL","APURIMAC","GRAU","CHUQUIBAMBILLA"]
["DISTRITAL","APURIMAC","GRAU","CURPAHUASI"]
["DISTRITAL","APURIMAC","GRAU","GAMARRA"]
["DISTRITAL","APURIMAC","GRAU","HUAYLLATI"]
["DISTRITAL","APURIMAC","GRAU","MAMARA"]
["DISTRITAL","APURIMAC","GRAU","MICAELA BASTIDAS"]
["DISTRITAL","APURIMAC","GRAU","PATAYPAMPA"]
["DISTRITAL","APURIMAC","GRAU","PROGRESO"]
["DISTRITAL","APURIMAC","GRAU","SAN ANTONIO"]
["DISTRITAL","APURIMAC","GRAU","SANTA ROSA"]
["DISTRITAL","APURIMAC","GRAU","TURPAY"]
["DISTRITAL","APURIMAC","GRAU","VILCABAMBA"]
["DISTRITAL","APURIMAC","GRAU","VIRUNDO"]
["DISTRITAL","APURIMAC","GRAU","CURASCO"]
["PROVINCIAL","AREQUIPA","AREQUIPA","AREQUIPA"]
["DISTRITAL","AREQUIPA","AREQUIPA","ALTO SELVA ALEGRE"]
["DISTRITAL","AREQUIPA","AREQUIPA","CAYMA"]
["DISTRITAL","AREQUIPA","AREQUIPA","CERRO COLORADO"]
["DISTRITAL","AREQUIPA","AREQUIPA","CHARACATO"]
["DISTRITAL","AREQUIPA","AREQUIPA","CHIGUATA"]
["DISTRITAL","AREQUIPA","AREQUIPA","JACOBO HUNTER"]
["DISTRITAL","AREQUIPA","AREQUIPA","LA JOYA"]
["DISTRITAL","AREQUIPA","AREQUIPA","MARIANO MELGAR"]
["DISTRITAL","AREQUIPA","AREQUIPA","MIRAFLORES"]
["DISTRITAL","AREQUIPA","AREQUIPA","MOLLEBAYA"]
["DISTRITAL","AREQUIPA","AREQUIPA","PAUCARPATA"]
["DISTRITAL","AREQUIPA","AREQUIPA","POCSI"]
["DISTRITAL","AREQUIPA","AREQUIPA","POLOBAYA"]
["DISTRITAL","AREQUIPA","AREQUIPA","QUEQUEÑA"]
["DISTRITAL","AREQUIPA","AREQUIPA","SABANDIA"]
["DISTRITAL","AREQUIPA","AREQUIPA","SACHACA"]
["DISTRITAL","AREQUIPA","AREQUIPA","SAN JUAN DE SIGUAS"]
["DISTRITAL","AREQUIPA","AREQUIPA","SAN JUAN DE TARUCANI"]
["DISTRITAL","AREQUIPA","AREQUIPA","SANTA ISABEL DE SIGUAS"]
["DISTRITAL","AREQUIPA","AREQUIPA","SANTA RITA DE SIGUAS"]
["DISTRITAL","AREQUIPA","AREQUIPA","SOCABAYA"]
["DISTRITAL","AREQUIPA","AREQUIPA","TIABAYA"]
["DISTRITAL","AREQUIPA","AREQUIPA","UCHUMAYO"]
["DISTRITAL","AREQUIPA","AREQUIPA","VITOR"]
["DISTRITAL","AREQUIPA","AREQUIPA","YANAHUARA"]
["DISTRITAL","AREQUIPA","AREQUIPA","YARABAMBA"]
["DISTRITAL","AREQUIPA","AREQUIPA","YURA"]
["DISTRITAL","AREQUIPA","AREQUIPA","JOSE LUIS BUSTAMANTE Y RIVERO"]
["PROVINCIAL","AREQUIPA","CAMANA","CAMANA"]
["DISTRITAL","AREQUIPA","CAMANA","JOSE MARIA QUIMPER"]
["DISTRITAL","AREQUIPA","CAMANA","MARIANO NICOLAS VALCARCEL"]
["DISTRITAL","AREQUIPA","CAMANA","MARISCAL CACERES"]
["DISTRITAL","AREQUIPA","CAMANA","NICOLAS DE PIEROLA"]
["DISTRITAL","AREQUIPA","CAMANA","OCOÑA"]
["DISTRITAL","AREQUIPA","CAMANA","QUILCA"]
["DISTRITAL","AREQUIPA","CAMANA","SAMUEL PASTOR"]
["PROVINCIAL","AREQUIPA","CARAVELI","CARAVELI"]
["DISTRITAL","AREQUIPA","CARAVELI","ACARI"]
["DISTRITAL","AREQUIPA","CARAVELI","ATICO"]
["DISTRITAL","AREQUIPA","CARAVELI","ATIQUIPA"]
["DISTRITAL","AREQUIPA","CARAVELI","BELLA UNION"]
["DISTRITAL","AREQUIPA","CARAVELI","CAHUACHO"]
["DISTRITAL","AREQUIPA","CARAVELI","CHALA"]
["DISTRITAL","AREQUIPA","CARAVELI","CHAPARRA"]
["DISTRITAL","AREQUIPA","CARAVELI","HUANUHUANU"]
["DISTRITAL","AREQUIPA","CARAVELI","JAQUI"]
["DISTRITAL","AREQUIPA","CARAVELI","LOMAS"]
["DISTRITAL","AREQUIPA","CARAVELI","QUICACHA"]
["DISTRITAL","AREQUIPA","CARAVELI","YAUCA"]
["PROVINCIAL","AREQUIPA","CASTILLA","APLAO"]
["DISTRITAL","AREQUIPA","CASTILLA","ANDAGUA"]
["DISTRITAL","AREQUIPA","CASTILLA","AYO"]
["DISTRITAL","AREQUIPA","CASTILLA","CHACHAS"]
["DISTRITAL","AREQUIPA","CASTILLA","CHILCAYMARCA"]
["DISTRITAL","AREQUIPA","CASTILLA","CHOCO"]
["DISTRITAL","AREQUIPA","CASTILLA","HUANCARQUI"]
["DISTRITAL","AREQUIPA","CASTILLA","MACHAGUAY"]
["DISTRITAL","AREQUIPA","CASTILLA","ORCOPAMPA"]
["DISTRITAL","AREQUIPA","CASTILLA","PAMPACOLCA"]
["DISTRITAL","AREQUIPA","CASTILLA","TIPAN"]
["DISTRITAL","AREQUIPA","CASTILLA","UÑON"]
["DISTRITAL","AREQUIPA","CASTILLA","URACA"]
["DISTRITAL","AREQUIPA","CASTILLA","VIRACO"]
["PROVINCIAL","AREQUIPA","CAYLLOMA","CHIVAY"]
["DISTRITAL","AREQUIPA","CAYLLOMA","ACHOMA"]
["DISTRITAL","AREQUIPA","CAYLLOMA","CABANACONDE"]
["DISTRITAL","AREQUIPA","CAYLLOMA","CALLALLI"]
["DISTRITAL","AREQUIPA","CAYLLOMA","CAYLLOMA"]
["DISTRITAL","AREQUIPA","CAYLLOMA","COPORAQUE"]
["DISTRITAL","AREQUIPA","CAYLLOMA","HUAMBO"]
["DISTRITAL","AREQUIPA","CAYLLOMA","HUANCA"]
["DISTRITAL","AREQUIPA","CAYLLOMA","ICHUPAMPA"]
["DISTRITAL","AREQUIPA","CAYLLOMA","LARI"]
["DISTRITAL","AREQUIPA","CAYLLOMA","LLUTA"]
["DISTRITAL","AREQUIPA","CAYLLOMA","MACA"]
["DISTRITAL","AREQUIPA","CAYLLOMA","MADRIGAL"]
["DISTRITAL","AREQUIPA","CAYLLOMA","SAN ANTONIO DE CHUCA"]
["DISTRITAL","AREQUIPA","CAYLLOMA","SIBAYO"]
["DISTRITAL","AREQUIPA","CAYLLOMA","TAPAY"]
["DISTRITAL","AREQUIPA","CAYLLOMA","TISCO"]
["DISTRITAL","AREQUIPA","CAYLLOMA","TUTI"]
["DISTRITAL","AREQUIPA","CAYLLOMA","YANQUE"]
["DISTRITAL","AREQUIPA","CAYLLOMA","MAJES"]
["PROVINCIAL","AREQUIPA","CONDESUYOS","CHUQUIBAMBA"]
["DISTRITAL","AREQUIPA","CONDESUYOS","ANDARAY"]
["DISTRITAL","AREQUIPA","CONDESUYOS","CAYARANI"]
["DISTRITAL","AREQUIPA","CONDESUYOS","CHICHAS"]
["DISTRITAL","AREQUIPA","CONDESUYOS","IRAY"]
["DISTRITAL","AREQUIPA","CONDESUYOS","RIO GRANDE"]
["DISTRITAL","AREQUIPA","CONDESUYOS","SALAMANCA"]
["DISTRITAL","AREQUIPA","CONDESUYOS","YANAQUIHUA"]
["PROVINCIAL","AREQUIPA","ISLAY","MOLLENDO"]
["DISTRITAL","AREQUIPA","ISLAY","COCACHACRA"]
["DISTRITAL","AREQUIPA","ISLAY","DEAN VALDIVIA"]
["DISTRITAL","AREQUIPA","ISLAY","ISLAY"]
["DISTRITAL","AREQUIPA","ISLAY","MEJIA"]
["DISTRITAL","AREQUIPA","ISLAY","PUNTA DE BOMBON"]
["PROVINCIAL","AREQUIPA","LA UNION","COTAHUASI"]
["DISTRITAL","AREQUIPA","LA UNION","ALCA"]
["DISTRITAL","AREQUIPA","LA UNION","CHARCANA"]
["DISTRITAL","AREQUIPA","LA UNION","HUAYNACOTAS"]
["DISTRITAL","AREQUIPA","LA UNION","PAMPAMARCA"]
["DISTRITAL","AREQUIPA","LA UNION","PUYCA"]
["DISTRITAL","AREQUIPA","LA UNION","QUECHUALLA"]
["DISTRITAL","AREQUIPA","LA UNION","SAYLA"]
["DISTRITAL","AREQUIPA","LA UNION","TAURIA"]
["DISTRITAL","AREQUIPA","LA UNION","TOMEPAMPA"]
["DISTRITAL","AREQUIPA","LA UNION","TORO"]
["PROVINCIAL","AYACUCHO","HUAMANGA","AYACUCHO"]
["DISTRITAL","AYACUCHO","HUAMANGA","ACOCRO"]
["DISTRITAL","AYACUCHO","HUAMANGA","ACOS VINCHOS"]
["DISTRITAL","AYACUCHO","HUAMANGA","CARMEN ALTO"]
["DISTRITAL","AYACUCHO","HUAMANGA","CHIARA"]
["DISTRITAL","AYACUCHO","HUAMANGA","OCROS"]
["DISTRITAL","AYACUCHO","HUAMANGA","PACAYCASA"]
["DISTRITAL","AYACUCHO","HUAMANGA","QUINUA"]
["DISTRITAL","AYACUCHO","HUAMANGA","SAN JOSE DE TICLLAS"]
["DISTRITAL","AYACUCHO","HUAMANGA","SAN JUAN BAUTISTA"]
["DISTRITAL","AYACUCHO","HUAMANGA","SANTIAGO DE PISCHA"]
["DISTRITAL","AYACUCHO","HUAMANGA","SOCOS"]
["DISTRITAL","AYACUCHO","HUAMANGA","TAMBILLO"]
["DISTRITAL","AYACUCHO","HUAMANGA","VINCHOS"]
["DISTRITAL","AYACUCHO","HUAMANGA","JESUS NAZARENO"]
["DISTRITAL","AYACUCHO","HUAMANGA","ANDRES AVELINO CACERES DORREGARAY"]
["PROVINCIAL","AYACUCHO","CANGALLO","CANGALLO"]
["DISTRITAL","AYACUCHO","CANGALLO","CHUSCHI"]
["DISTRITAL","AYACUCHO","CANGALLO","LOS MOROCHUCOS"]
["DISTRITAL","AYACUCHO","CANGALLO","MARIA PARADO DE BELLIDO"]
["DISTRITAL","AYACUCHO","CANGALLO","PARAS"]
["DISTRITAL","AYACUCHO","CANGALLO","TOTOS"]
["PROVINCIAL","AYACUCHO","HUANCA SANCOS","SANCOS"]
["DISTRITAL","AYACUCHO","HUANCA SANCOS","CARAPO"]
["DISTRITAL","AYACUCHO","HUANCA SANCOS","SACSAMARCA"]
["DISTRITAL","AYACUCHO","HUANCA SANCOS","SANTIAGO DE LUCANAMARCA"]
["PROVINCIAL","AYACUCHO","HUANTA","HUANTA"]
["DISTRITAL","AYACUCHO","HUANTA","AYAHUANCO"]
["DISTRITAL","AYACUCHO","HUANTA","HUAMANGUILLA"]
["DISTRITAL","AYACUCHO","HUANTA","IGUAIN"]
["DISTRITAL","AYACUCHO","HUANTA","LURICOCHA"]
["DISTRITAL","AYACUCHO","HUANTA","SANTILLANA"]
["DISTRITAL","AYACUCHO","HUANTA","SIVIA"]
["DISTRITAL","AYACUCHO","HUANTA","LLOCHEGUA"]
["DISTRITAL","AYACUCHO","HUANTA","CANAYRE"]
["DISTRITAL","AYACUCHO","HUANTA","UCHURACCAY"]
["DISTRITAL","AYACUCHO","HUANTA","PUCACOLPA"]
["DISTRITAL","AYACUCHO","HUANTA","CHACA"]
["PROVINCIAL","AYACUCHO","LA MAR","SAN MIGUEL"]
["DISTRITAL","AYACUCHO","LA MAR","ANCO"]
["DISTRITAL","AYACUCHO","LA MAR","AYNA"]
["DISTRITAL","AYACUCHO","LA MAR","CHILCAS"]
["DISTRITAL","AYACUCHO","LA MAR","CHUNGUI"]
["DISTRITAL","AYACUCHO","LA MAR","LUIS CARRANZA"]
["DISTRITAL","AYACUCHO","LA MAR","SANTA ROSA"]
["DISTRITAL","AYACUCHO","LA MAR","TAMBO"]
["DISTRITAL","AYACUCHO","LA MAR","SAMUGARI"]
["DISTRITAL","AYACUCHO","LA MAR","ANCHIHUAY"]
["DISTRITAL","AYACUCHO","LA MAR","ORONCCOY"]
["PROVINCIAL","AYACUCHO","LUCANAS","PUQUIO"]
["DISTRITAL","AYACUCHO","LUCANAS","AUCARA"]
["DISTRITAL","AYACUCHO","LUCANAS","CABANA"]
["DISTRITAL","AYACUCHO","LUCANAS","CARMEN SALCEDO"]
["DISTRITAL","AYACUCHO","LUCANAS","CHAVIÑA"]
["DISTRITAL","AYACUCHO","LUCANAS","CHIPAO"]
["DISTRITAL","AYACUCHO","LUCANAS","HUAC-HUAS"]
["DISTRITAL","AYACUCHO","LUCANAS","LARAMATE"]
["DISTRITAL","AYACUCHO","LUCANAS","LEONCIO PRADO"]
["DISTRITAL","AYACUCHO","LUCANAS","LLAUTA"]
["DISTRITAL","AYACUCHO","LUCANAS","LUCANAS"]
["DISTRITAL","AYACUCHO","LUCANAS","OCAÑA"]
["DISTRITAL","AYACUCHO","LUCANAS","OTOCA"]
["DISTRITAL","AYACUCHO","LUCANAS","SAISA"]
["DISTRITAL","AYACUCHO","LUCANAS","SAN CRISTOBAL"]
["DISTRITAL","AYACUCHO","LUCANAS","SAN JUAN"]
["DISTRITAL","AYACUCHO","LUCANAS","SAN PEDRO"]
["DISTRITAL","AYACUCHO","LUCANAS","SAN PEDRO DE PALCO"]
["DISTRITAL","AYACUCHO","LUCANAS","SANCOS"]
["DISTRITAL","AYACUCHO","LUCANAS","SANTA ANA DE HUAYCAHUACHO"]
["DISTRITAL","AYACUCHO","LUCANAS","SANTA LUCIA"]
["PROVINCIAL","AYACUCHO","PARINACOCHAS","CORACORA"]
["DISTRITAL","AYACUCHO","PARINACOCHAS","CHUMPI"]
["DISTRITAL","AYACUCHO","PARINACOCHAS","CORONEL CASTAÑEDA"]
["DISTRITAL","AYACUCHO","PARINACOCHAS","PACAPAUSA"]
["DISTRITAL","AYACUCHO","PARINACOCHAS","PULLO"]
["DISTRITAL","AYACUCHO","PARINACOCHAS","PUYUSCA"]
["DISTRITAL","AYACUCHO","PARINACOCHAS","SAN FRANCISCO DE RAVACAYCO"]
["DISTRITAL","AYACUCHO","PARINACOCHAS","UPAHUACHO"]
["PROVINCIAL","AYACUCHO","PAUCAR DEL SARA SARA","PAUSA"]
["DISTRITAL","AYACUCHO","PAUCAR DEL SARA SARA","COLTA"]
["DISTRITAL","AYACUCHO","PAUCAR DEL SARA SARA","CORCULLA"]
["DISTRITAL","AYACUCHO","PAUCAR DEL SARA SARA","LAMPA"]
["DISTRITAL","AYACUCHO","PAUCAR DEL SARA SARA","MARCABAMBA"]
["DISTRITAL","AYACUCHO","PAUCAR DEL SARA SARA","OYOLO"]
["DISTRITAL","AYACUCHO","PAUCAR DEL SARA SARA","PARARCA"]
["DISTRITAL","AYACUCHO","PAUCAR DEL SARA SARA","SAN JAVIER DE ALPABAMBA"]
["DISTRITAL","AYACUCHO","PAUCAR DEL SARA SARA","SAN JOSE DE USHUA"]
["DISTRITAL","AYACUCHO","PAUCAR DEL SARA SARA","SARA SARA"]
["PROVINCIAL","AYACUCHO","SUCRE","QUEROBAMBA"]
["DISTRITAL","AYACUCHO","SUCRE","BELEN"]
["DISTRITAL","AYACUCHO","SUCRE","CHALCOS"]
["DISTRITAL","AYACUCHO","SUCRE","CHILCAYOC"]
["DISTRITAL","AYACUCHO","SUCRE","HUACAÑA"]
["DISTRITAL","AYACUCHO","SUCRE","MORCOLLA"]
["DISTRITAL","AYACUCHO","SUCRE","PAICO"]
["DISTRITAL","AYACUCHO","SUCRE","SAN PEDRO DE LARCAY"]
["DISTRITAL","AYACUCHO","SUCRE","SAN SALVADOR DE QUIJE"]
["DISTRITAL","AYACUCHO","SUCRE","SANTIAGO DE PAUCARAY"]
["DISTRITAL","AYACUCHO","SUCRE","SORAS"]
["PROVINCIAL","AYACUCHO","VICTOR FAJARDO","HUANCAPI"]
["DISTRITAL","AYACUCHO","VICTOR FAJARDO","ALCAMENCA"]
["DISTRITAL","AYACUCHO","VICTOR FAJARDO","APONGO"]
["DISTRITAL","AYACUCHO","VICTOR FAJARDO","ASQUIPATA"]
["DISTRITAL","AYACUCHO","VICTOR FAJARDO","CANARIA"]
["DISTRITAL","AYACUCHO","VICTOR FAJARDO","CAYARA"]
["DISTRITAL","AYACUCHO","VICTOR FAJARDO","COLCA"]
["DISTRITAL","AYACUCHO","VICTOR FAJARDO","HUAMANQUIQUIA"]
["DISTRITAL","AYACUCHO","VICTOR FAJARDO","HUANCARAYLLA"]
["DISTRITAL","AYACUCHO","VICTOR FAJARDO","HUALLA"]
["DISTRITAL","AYACUCHO","VICTOR FAJARDO","SARHUA"]
["DISTRITAL","AYACUCHO","VICTOR FAJARDO","VILCANCHOS"]
["PROVINCIAL","AYACUCHO","VILCAS HUAMAN","VILCAS HUAMAN"]
["DISTRITAL","AYACUCHO","VILCAS HUAMAN","ACCOMARCA"]
["DISTRITAL","AYACUCHO","VILCAS HUAMAN","CARHUANCA"]
["DISTRITAL","AYACUCHO","VILCAS HUAMAN","CONCEPCION"]
["DISTRITAL","AYACUCHO","VILCAS HUAMAN","HUAMBALPA"]
["DISTRITAL","AYACUCHO","VILCAS HUAMAN","INDEPENDENCIA"]
["DISTRITAL","AYACUCHO","VILCAS HUAMAN","SAURAMA"]
["DISTRITAL","AYACUCHO","VILCAS HUAMAN","VISCHONGO"]
["PROVINCIAL","CAJAMARCA","CAJAMARCA","CAJAMARCA"]
["DISTRITAL","CAJAMARCA","CAJAMARCA","ASUNCION"]
["DISTRITAL","CAJAMARCA","CAJAMARCA","CHETILLA"]
["DISTRITAL","CAJAMARCA","CAJAMARCA","COSPAN"]
["DISTRITAL","CAJAMARCA","CAJAMARCA","ENCAÑADA"]
["DISTRITAL","CAJAMARCA","CAJAMARCA","JESUS"]
["DISTRITAL","CAJAMARCA","CAJAMARCA","LLACANORA"]
["DISTRITAL","CAJAMARCA","CAJAMARCA","LOS BAÑOS DEL INCA"]
["DISTRITAL","CAJAMARCA","CAJAMARCA","MAGDALENA"]
["DISTRITAL","CAJAMARCA","CAJAMARCA","MATARA"]
["DISTRITAL","CAJAMARCA","CAJAMARCA","NAMORA"]
["DISTRITAL","CAJAMARCA","CAJAMARCA","SAN JUAN"]
["PROVINCIAL","CAJAMARCA","CAJABAMBA","CAJABAMBA"]
["DISTRITAL","CAJAMARCA","CAJABAMBA","CACHACHI"]
["DISTRITAL","CAJAMARCA","CAJABAMBA","CONDEBAMBA"]
["DISTRITAL","CAJAMARCA","CAJABAMBA","SITACOCHA"]
["PROVINCIAL","CAJAMARCA","CELENDIN","CELENDIN"]
["DISTRITAL","CAJAMARCA","CELENDIN","CHUMUCH"]
["DISTRITAL","CAJAMARCA","CELENDIN","CORTEGANA"]
["DISTRITAL","CAJAMARCA","CELENDIN","HUASMIN"]
["DISTRITAL","CAJAMARCA","CELENDIN","JORGE CHAVEZ"]
["DISTRITAL","CAJAMARCA","CELENDIN","JOSE GALVEZ"]
["DISTRITAL","CAJAMARCA","CELENDIN","MIGUEL IGLESIAS"]
["DISTRITAL","CAJAMARCA","CELENDIN","OXAMARCA"]
["DISTRITAL","CAJAMARCA","CELENDIN","SOROCHUCO"]
["DISTRITAL","CAJAMARCA","CELENDIN","SUCRE"]
["DISTRITAL","CAJAMARCA","CELENDIN","UTCO"]
["DISTRITAL","CAJAMARCA","CELENDIN","LA LIBERTAD DE PALLAN"]
["PROVINCIAL","CAJAMARCA","CHOTA","CHOTA"]
["DISTRITAL","CAJAMARCA","CHOTA","ANGUIA"]
["DISTRITAL","CAJAMARCA","CHOTA","CHADIN"]
["DISTRITAL","CAJAMARCA","CHOTA","CHIGUIRIP"]
["DISTRITAL","CAJAMARCA","CHOTA","CHIMBAN"]
["DISTRITAL","CAJAMARCA","CHOTA","CHOROPAMPA"]
["DISTRITAL","CAJAMARCA","CHOTA","COCHABAMBA"]
["DISTRITAL","CAJAMARCA","CHOTA","CONCHAN"]
["DISTRITAL","CAJAMARCA","CHOTA","HUAMBOS"]
["DISTRITAL","CAJAMARCA","CHOTA","LAJAS"]
["DISTRITAL","CAJAMARCA","CHOTA","LLAMA"]
["DISTRITAL","CAJAMARCA","CHOTA","MIRACOSTA"]
["DISTRITAL","CAJAMARCA","CHOTA","PACCHA"]
["DISTRITAL","CAJAMARCA","CHOTA","PION"]
["DISTRITAL","CAJAMARCA","CHOTA","QUEROCOTO"]
["DISTRITAL","CAJAMARCA","CHOTA","SAN JUAN DE LICUPIS"]
["DISTRITAL","CAJAMARCA","CHOTA","TACABAMBA"]
["DISTRITAL","CAJAMARCA","CHOTA","TOCMOCHE"]
["DISTRITAL","CAJAMARCA","CHOTA","CHALAMARCA"]
["PROVINCIAL","CAJAMARCA","CONTUMAZA","CONTUMAZA"]
["DISTRITAL","CAJAMARCA","CONTUMAZA","CHILETE"]
["DISTRITAL","CAJAMARCA","CONTUMAZA","CUPISNIQUE"]
["DISTRITAL","CAJAMARCA","CONTUMAZA","GUZMANGO"]
["DISTRITAL","CAJAMARCA","CONTUMAZA","SAN BENITO"]
["DISTRITAL","CAJAMARCA","CONTUMAZA","SANTA CRUZ DE TOLED"]
["DISTRITAL","CAJAMARCA","CONTUMAZA","TANTARICA"]
["DISTRITAL","CAJAMARCA","CONTUMAZA","YONAN"]
["PROVINCIAL","CAJAMARCA","CUTERVO","CUTERVO"]
["DISTRITAL","CAJAMARCA","CUTERVO","CALLAYUC"]
["DISTRITAL","CAJAMARCA","CUTERVO","CHOROS"]
["DISTRITAL","CAJAMARCA","CUTERVO","CUJILLO"]
["DISTRITAL","CAJAMARCA","CUTERVO","LA RAMADA"]
["DISTRITAL","CAJAMARCA","CUTERVO","PIMPINGOS"]
["DISTRITAL","CAJAMARCA","CUTERVO","QUEROCOTILLO"]
["DISTRITAL","CAJAMARCA","CUTERVO","SAN ANDRES DE CUTERVO"]
["DISTRITAL","CAJAMARCA","CUTERVO","SAN JUAN DE CUTERVO"]
["DISTRITAL","CAJAMARCA","CUTERVO","SAN LUIS DE LUCMA"]
["DISTRITAL","CAJAMARCA","CUTERVO","SANTA CRUZ"]
["DISTRITAL","CAJAMARCA","CUTERVO","SANTO DOMINGO DE LA CAPILLA"]
["DISTRITAL","CAJAMARCA","CUTERVO","SANTO TOMAS"]
["DISTRITAL","CAJAMARCA","CUTERVO","SOCOTA"]
["DISTRITAL","CAJAMARCA","CUTERVO","TORIBIO CASANOVA"]
["PROVINCIAL","CAJAMARCA","HUALGAYOC","BAMBAMARCA"]
["DISTRITAL","CAJAMARCA","HUALGAYOC","CHUGUR"]
["DISTRITAL","CAJAMARCA","HUALGAYOC","HUALGAYOC"]
["PROVINCIAL","CAJAMARCA","JAEN","JAEN"]
["DISTRITAL","CAJAMARCA","JAEN","BELLAVISTA"]
["DISTRITAL","CAJAMARCA","JAEN","CHONTALI"]
["DISTRITAL","CAJAMARCA","JAEN","COLASAY"]
["DISTRITAL","CAJAMARCA","JAEN","HUABAL"]
["DISTRITAL","CAJAMARCA","JAEN","LAS PIRIAS"]
["DISTRITAL","CAJAMARCA","JAEN","POMAHUACA"]
["DISTRITAL","CAJAMARCA","JAEN","PUCARA"]
["DISTRITAL","CAJAMARCA","JAEN","SALLIQUE"]
["DISTRITAL","CAJAMARCA","JAEN","SAN FELIPE"]
["DISTRITAL","CAJAMARCA","JAEN","SAN JOSE DEL ALTO"]
["DISTRITAL","CAJAMARCA","JAEN","SANTA ROSA"]
["PROVINCIAL","CAJAMARCA","SAN IGNACIO","SAN IGNACIO"]
["DISTRITAL","CAJAMARCA","SAN IGNACIO","CHIRINOS"]
["DISTRITAL","CAJAMARCA","SAN IGNACIO","HUARANGO"]
["DISTRITAL","CAJAMARCA","SAN IGNACIO","LA COIPA"]
["DISTRITAL","CAJAMARCA","SAN IGNACIO","NAMBALLE"]
["DISTRITAL","CAJAMARCA","SAN IGNACIO","SAN JOSE DE LOURDES"]
["DISTRITAL","CAJAMARCA","SAN IGNACIO","TABACONAS"]
["PROVINCIAL","CAJAMARCA","SAN MARCOS","PEDRO GALVEZ"]
["DISTRITAL","CAJAMARCA","SAN MARCOS","CHANCAY"]
["DISTRITAL","CAJAMARCA","SAN MARCOS","EDUARDO VILLANUEVA"]
["DISTRITAL","CAJAMARCA","SAN MARCOS","GREGORIO PITA"]
["DISTRITAL","CAJAMARCA","SAN MARCOS","ICHOCAN"]
["DISTRITAL","CAJAMARCA","SAN MARCOS","JOSE MANUEL QUIROZ"]
["DISTRITAL","CAJAMARCA","SAN MARCOS","JOSE SABOGAL"]
["PROVINCIAL","CAJAMARCA","SAN MIGUEL","SAN MIGUEL"]
["DISTRITAL","CAJAMARCA","SAN MIGUEL","BOLIVAR"]
["DISTRITAL","CAJAMARCA","SAN MIGUEL","CALQUIS"]
["DISTRITAL","CAJAMARCA","SAN MIGUEL","CATILLUC"]
["DISTRITAL","CAJAMARCA","SAN MIGUEL","EL PRADO"]
["DISTRITAL","CAJAMARCA","SAN MIGUEL","LA FLORIDA"]
["DISTRITAL","CAJAMARCA","SAN MIGUEL","LLAPA"]
["DISTRITAL","CAJAMARCA","SAN MIGUEL","NANCHOC"]
["DISTRITAL","CAJAMARCA","SAN MIGUEL","NIEPOS"]
["DISTRITAL","CAJAMARCA","SAN MIGUEL","SAN GREGORIO"]
["DISTRITAL","CAJAMARCA","SAN MIGUEL","SAN SILVESTRE DE COCHAN"]
["DISTRITAL","CAJAMARCA","SAN MIGUEL","TONGOD"]
["DISTRITAL","CAJAMARCA","SAN MIGUEL","UNION AGUA BLANCA"]
["PROVINCIAL","CAJAMARCA","SAN PABLO","SAN PABLO"]
["DISTRITAL","CAJAMARCA","SAN PABLO","SAN BERNARDINO"]
["DISTRITAL","CAJAMARCA","SAN PABLO","SAN LUIS"]
["DISTRITAL","CAJAMARCA","SAN PABLO","TUMBADEN"]
["PROVINCIAL","CAJAMARCA","SANTA CRUZ","SANTA CRUZ"]
["DISTRITAL","CAJAMARCA","SANTA CRUZ","ANDABAMBA"]
["DISTRITAL","CAJAMARCA","SANTA CRUZ","CATACHE"]
["DISTRITAL","CAJAMARCA","SANTA CRUZ","CHANCAYBAÑOS"]
["DISTRITAL","CAJAMARCA","SANTA CRUZ","LA ESPERANZA"]
["DISTRITAL","CAJAMARCA","SANTA CRUZ","NINABAMBA"]
["DISTRITAL","CAJAMARCA","SANTA CRUZ","PULAN"]
["DISTRITAL","CAJAMARCA","SANTA CRUZ","SAUCEPAMPA"]
["DISTRITAL","CAJAMARCA","SANTA CRUZ","SEXI"]
["DISTRITAL","CAJAMARCA","SANTA CRUZ","UTICYACU"]
["DISTRITAL","CAJAMARCA","SANTA CRUZ","YAUYUCAN"]
["PROVINCIAL","CALLAO","CALLAO","CALLAO"]
["DISTRITAL","CALLAO","CALLAO","BELLAVISTA"]
["DISTRITAL","CALLAO","CALLAO","CARMEN DE LA LEGUA REYNOSO"]
["DISTRITAL","CALLAO","CALLAO","LA PERLA"]
["DISTRITAL","CALLAO","CALLAO","LA PUNTA"]
["DISTRITAL","CALLAO","CALLAO","VENTANILLA"]
["DISTRITAL","CALLAO","CALLAO","MI PERU"]
["PROVINCIAL","CUSCO","CUSCO","CUSCO"]
["DISTRITAL","CUSCO","CUSCO","CCORCA"]
["DISTRITAL","CUSCO","CUSCO","POROY"]
["DISTRITAL","CUSCO","CUSCO","SAN JERONIMO"]
["DISTRITAL","CUSCO","CUSCO","SAN SEBASTIAN"]
["DISTRITAL","CUSCO","CUSCO","SANTIAGO"]
["DISTRITAL","CUSCO","CUSCO","SAYLLA"]
["DISTRITAL","CUSCO","CUSCO","WANCHAQ"]
["PROVINCIAL","CUSCO","ACOMAYO","ACOMAYO"]
["DISTRITAL","CUSCO","ACOMAYO","ACOPIA"]
["DISTRITAL","CUSCO","ACOMAYO","ACOS"]
["DISTRITAL","CUSCO","ACOMAYO","MOSOC LLACTA"]
["DISTRITAL","CUSCO","ACOMAYO","POMACANCHI"]
["DISTRITAL","CUSCO","ACOMAYO","RONDOCAN"]
["DISTRITAL","CUSCO","ACOMAYO","SANGARARA"]
["PROVINCIAL","CUSCO","ANTA","ANTA"]
["DISTRITAL","CUSCO","ANTA","ANCAHUASI"]
["DISTRITAL","CUSCO","ANTA","CACHIMAYO"]
["DISTRITAL","CUSCO","ANTA","CHINCHAYPUJIO"]
["DISTRITAL","CUSCO","ANTA","HUAROCONDO"]
["DISTRITAL","CUSCO","ANTA","LIMATAMBO"]
["DISTRITAL","CUSCO","ANTA","MOLLEPATA"]
["DISTRITAL","CUSCO","ANTA","PUCYURA"]
["DISTRITAL","CUSCO","ANTA","ZURITE"]
["PROVINCIAL","CUSCO","CALCA","CALCA"]
["DISTRITAL","CUSCO","CALCA","COYA"]
["DISTRITAL","CUSCO","CALCA","LAMAY"]
["DISTRITAL","CUSCO","CALCA","LARES"]
["DISTRITAL","CUSCO","CALCA","PISAC"]
["DISTRITAL","CUSCO","CALCA","SAN SALVADOR"]
["DISTRITAL","CUSCO","CALCA","TARAY"]
["DISTRITAL","CUSCO","CALCA","YANATILE"]
["PROVINCIAL","CUSCO","CANAS","YANAOCA"]
["DISTRITAL","CUSCO","CANAS","CHECCA"]
["DISTRITAL","CUSCO","CANAS","KUNTURKANKI"]
["DISTRITAL","CUSCO","CANAS","LANGUI"]
["DISTRITAL","CUSCO","CANAS","LAYO"]
["DISTRITAL","CUSCO","CANAS","PAMPAMARCA"]
["DISTRITAL","CUSCO","CANAS","QUEHUE"]
["DISTRITAL","CUSCO","CANAS","TUPAC AMARU"]
["PROVINCIAL","CUSCO","CANCHIS","SICUANI"]
["DISTRITAL","CUSCO","CANCHIS","CHECACUPE"]
["DISTRITAL","CUSCO","CANCHIS","COMBAPATA"]
["DISTRITAL","CUSCO","CANCHIS","MARANGANI"]
["DISTRITAL","CUSCO","CANCHIS","PITUMARCA"]
["DISTRITAL","CUSCO","CANCHIS","SAN PABLO"]
["DISTRITAL","CUSCO","CANCHIS","SAN PEDRO"]
["DISTRITAL","CUSCO","CANCHIS","TINTA"]
["PROVINCIAL","CUSCO","CHUMBIVILCAS","SANTO TOMAS"]
["DISTRITAL","CUSCO","CHUMBIVILCAS","CAPACMARCA"]
["DISTRITAL","CUSCO","CHUMBIVILCAS","CHAMACA"]
["DISTRITAL","CUSCO","CHUMBIVILCAS","COLQUEMARCA"]
["DISTRITAL","CUSCO","CHUMBIVILCAS","LIVITACA"]
["DISTRITAL","CUSCO","CHUMBIVILCAS","LLUSCO"]
["DISTRITAL","CUSCO","CHUMBIVILCAS","QUIÑOTA"]
["DISTRITAL","CUSCO","CHUMBIVILCAS","VELILLE"]
["PROVINCIAL","CUSCO","ESPINAR","ESPINAR"]
["DISTRITAL","CUSCO","ESPINAR","CONDOROMA"]
["DISTRITAL","CUSCO","ESPINAR","COPORAQUE"]
["DISTRITAL","CUSCO","ESPINAR","OCORURO"]
["DISTRITAL","CUSCO","ESPINAR","PALLPATA"]
["DISTRITAL","CUSCO","ESPINAR","PICHIGUA"]
["DISTRITAL","CUSCO","ESPINAR","SUYCKUTAMBO"]
["DISTRITAL","CUSCO","ESPINAR","ALTO PICHIGUA"]
["PROVINCIAL","CUSCO","LA CONVENCION","SANTA ANA"]
["DISTRITAL","CUSCO","LA CONVENCION","ECHARATE"]
["DISTRITAL","CUSCO","LA CONVENCION","HUAYOPATA"]
["DISTRITAL","CUSCO","LA CONVENCION","MARANURA"]
["DISTRITAL","CUSCO","LA CONVENCION","OCOBAMBA"]
["DISTRITAL","CUSCO","LA CONVENCION","QUELLOUNO"]
["DISTRITAL","CUSCO","LA CONVENCION","KIMBIRI"]
["DISTRITAL","CUSCO","LA CONVENCION","SANTA TERESA"]
["DISTRITAL","CUSCO","LA CONVENCION","VILCABAMBA"]
["DISTRITAL","CUSCO","LA CONVENCION","PICHARI"]
["DISTRITAL","CUSCO","LA CONVENCION","INKAWASI"]
["DISTRITAL","CUSCO","LA CONVENCION","VILLA VIRGEN"]
["DISTRITAL","CUSCO","LA CONVENCION","VILLA KINTIARINA"]
["DISTRITAL","CUSCO","LA CONVENCION","MEGANTONI"]
["PROVINCIAL","CUSCO","PARURO","PARURO"]
["DISTRITAL","CUSCO","PARURO","ACCHA"]
["DISTRITAL","CUSCO","PARURO","CCAPI"]
["DISTRITAL","CUSCO","PARURO","COLCHA"]
["DISTRITAL","CUSCO","PARURO","HUANOQUITE"]
["DISTRITAL","CUSCO","PARURO","OMACHA"]
["DISTRITAL","CUSCO","PARURO","PACCARITAMBO"]
["DISTRITAL","CUSCO","PARURO","PILLPINTO"]
["DISTRITAL","CUSCO","PARURO","YAURISQUE"]
["PROVINCIAL","CUSCO","PAUCARTAMBO","PAUCARTAMBO"]
["DISTRITAL","CUSCO","PAUCARTAMBO","CAICAY"]
["DISTRITAL","CUSCO","PAUCARTAMBO","CHALLABAMBA"]
["DISTRITAL","CUSCO","PAUCARTAMBO","COLQUEPATA"]
["DISTRITAL","CUSCO","PAUCARTAMBO","HUANCARANI"]
["DISTRITAL","CUSCO","PAUCARTAMBO","KOSÑIPATA"]
["PROVINCIAL","CUSCO","QUISPICANCHI","URCOS"]
["DISTRITAL","CUSCO","QUISPICANCHI","ANDAHUAYLILLAS"]
["DISTRITAL","CUSCO","QUISPICANCHI","CAMANTI"]
["DISTRITAL","CUSCO","QUISPICANCHI","CCARHUAYO"]
["DISTRITAL","CUSCO","QUISPICANCHI","CCATCA"]
["DISTRITAL","CUSCO","QUISPICANCHI","CUSIPATA"]
["DISTRITAL","CUSCO","QUISPICANCHI","HUARO"]
["DISTRITAL","CUSCO","QUISPICANCHI","LUCRE"]
["DISTRITAL","CUSCO","QUISPICANCHI","MARCAPATA"]
["DISTRITAL","CUSCO","QUISPICANCHI","OCONGATE"]
["DISTRITAL","CUSCO","QUISPICANCHI","OROPESA"]
["DISTRITAL","CUSCO","QUISPICANCHI","QUIQUIJANA"]
["PROVINCIAL","CUSCO","URUBAMBA","URUBAMBA"]
["DISTRITAL","CUSCO","URUBAMBA","CHINCHERO"]
["DISTRITAL","CUSCO","URUBAMBA","HUAYLLABAMBA"]
["DISTRITAL","CUSCO","URUBAMBA","MACHUPICCHU"]
["DISTRITAL","CUSCO","URUBAMBA","MARAS"]
["DISTRITAL","CUSCO","URUBAMBA","OLLANTAYTAMBO"]
["DISTRITAL","CUSCO","URUBAMBA","YUCAY"]
["PROVINCIAL","HUANCAVELICA","HUANCAVELICA","HUANCAVELICA"]
["DISTRITAL","HUANCAVELICA","HUANCAVELICA","ACOBAMBILLA"]
["DISTRITAL","HUANCAVELICA","HUANCAVELICA","ACORIA"]
["DISTRITAL","HUANCAVELICA","HUANCAVELICA","CONAYCA"]
["DISTRITAL","HUANCAVELICA","HUANCAVELICA","CUENCA"]
["DISTRITAL","HUANCAVELICA","HUANCAVELICA","HUACHOCOLPA"]
["DISTRITAL","HUANCAVELICA","HUANCAVELICA","HUAYLLAHUARA"]
["DISTRITAL","HUANCAVELICA","HUANCAVELICA","IZCUCHACA"]
["DISTRITAL","HUANCAVELICA","HUANCAVELICA","LARIA"]
["DISTRITAL","HUANCAVELICA","HUANCAVELICA","MANTA"]
["DISTRITAL","HUANCAVELICA","HUANCAVELICA","MARISCAL CACERES"]
["DISTRITAL","HUANCAVELICA","HUANCAVELICA","MOYA"]
["DISTRITAL","HUANCAVELICA","HUANCAVELICA","NUEVO OCCORO"]
["DISTRITAL","HUANCAVELICA","HUANCAVELICA","PALCA"]
["DISTRITAL","HUANCAVELICA","HUANCAVELICA","PILCHACA"]
["DISTRITAL","HUANCAVELICA","HUANCAVELICA","VILCA"]
["DISTRITAL","HUANCAVELICA","HUANCAVELICA","YAULI"]
["DISTRITAL","HUANCAVELICA","HUANCAVELICA","ASCENSION"]
["DISTRITAL","HUANCAVELICA","HUANCAVELICA","HUANDO"]
["PROVINCIAL","HUANCAVELICA","ACOBAMBA","ACOBAMBA"]
["DISTRITAL","HUANCAVELICA","ACOBAMBA","ANDABAMBA"]
["DISTRITAL","HUANCAVELICA","ACOBAMBA","ANTA"]
["DISTRITAL","HUANCAVELICA","ACOBAMBA","CAJA"]
["DISTRITAL","HUANCAVELICA","ACOBAMBA","MARCAS"]
["DISTRITAL","HUANCAVELICA","ACOBAMBA","PAUCARA"]
["DISTRITAL","HUANCAVELICA","ACOBAMBA","POMACOCHA"]
["DISTRITAL","HUANCAVELICA","ACOBAMBA","ROSARIO"]
["PROVINCIAL","HUANCAVELICA","ANGARAES","LIRCAY"]
["DISTRITAL","HUANCAVELICA","ANGARAES","ANCHONGA"]
["DISTRITAL","HUANCAVELICA","ANGARAES","CALLANMARCA"]
["DISTRITAL","HUANCAVELICA","ANGARAES","CCOCHACCASA"]
["DISTRITAL","HUANCAVELICA","ANGARAES","CHINCHO"]
["DISTRITAL","HUANCAVELICA","ANGARAES","CONGALLA"]
["DISTRITAL","HUANCAVELICA","ANGARAES","HUANCA-HUANCA"]
["DISTRITAL","HUANCAVELICA","ANGARAES","HUAYLLAY GRANDE"]
["DISTRITAL","HUANCAVELICA","ANGARAES","JULCAMARCA"]
["DISTRITAL","HUANCAVELICA","ANGARAES","SAN ANTONIO DE ANTAPARCO"]
["DISTRITAL","HUANCAVELICA","ANGARAES","SANTO TOMAS DE PATA"]
["DISTRITAL","HUANCAVELICA","ANGARAES","SECCLLA"]
["PROVINCIAL","HUANCAVELICA","CASTROVIRREYNA","CASTROVIRREYNA"]
["DISTRITAL","HUANCAVELICA","CASTROVIRREYNA","ARMA"]
["DISTRITAL","HUANCAVELICA","CASTROVIRREYNA","AURAHUA"]
["DISTRITAL","HUANCAVELICA","CASTROVIRREYNA","CAPILLAS"]
["DISTRITAL","HUANCAVELICA","CASTROVIRREYNA","CHUPAMARCA"]
["DISTRITAL","HUANCAVELICA","CASTROVIRREYNA","COCAS"]
["DISTRITAL","HUANCAVELICA","CASTROVIRREYNA","HUACHOS"]
["DISTRITAL","HUANCAVELICA","CASTROVIRREYNA","HUAMATAMBO"]
["DISTRITAL","HUANCAVELICA","CASTROVIRREYNA","MOLLEPAMPA"]
["DISTRITAL","HUANCAVELICA","CASTROVIRREYNA","SAN JUAN"]
["DISTRITAL","HUANCAVELICA","CASTROVIRREYNA","SANTA ANA"]
["DISTRITAL","HUANCAVELICA","CASTROVIRREYNA","TANTARA"]
["DISTRITAL","HUANCAVELICA","CASTROVIRREYNA","TICRAPO"]
["PROVINCIAL","HUANCAVELICA","CHURCAMPA","CHURCAMPA"]
["DISTRITAL","HUANCAVELICA","CHURCAMPA","ANCO"]
["DISTRITAL","HUANCAVELICA","CHURCAMPA","CHINCHIHUASI"]
["DISTRITAL","HUANCAVELICA","CHURCAMPA","EL CARMEN"]
["DISTRITAL","HUANCAVELICA","CHURCAMPA","LA MERCED"]
["DISTRITAL","HUANCAVELICA","CHURCAMPA","LOCROJA"]
["DISTRITAL","HUANCAVELICA","CHURCAMPA","PAUCARBAMBA"]
["DISTRITAL","HUANCAVELICA","CHURCAMPA","SAN MIGUEL DE MAYOCC"]
["DISTRITAL","HUANCAVELICA","CHURCAMPA","SAN PEDRO DE CORIS"]
["DISTRITAL","HUANCAVELICA","CHURCAMPA","PACHAMARCA"]
["DISTRITAL","HUANCAVELICA","CHURCAMPA","COSME"]
["PROVINCIAL","HUANCAVELICA","HUAYTARA","HUAYTARA"]
["DISTRITAL","HUANCAVELICA","HUAYTARA","AYAVI"]
["DISTRITAL","HUANCAVELICA","HUAYTARA","CORDOVA"]
["DISTRITAL","HUANCAVELICA","HUAYTARA","HUAYACUNDO ARMA"]
["DISTRITAL","HUANCAVELICA","HUAYTARA","LARAMARCA"]
["DISTRITAL","HUANCAVELICA","HUAYTARA","OCOYO"]
["DISTRITAL","HUANCAVELICA","HUAYTARA","PILPICHACA"]
["DISTRITAL","HUANCAVELICA","HUAYTARA","QUERCO"]
["DISTRITAL","HUANCAVELICA","HUAYTARA","QUITO-ARMA"]
["DISTRITAL","HUANCAVELICA","HUAYTARA","SAN ANTONIO DE CUSICANCHA"]
["DISTRITAL","HUANCAVELICA","HUAYTARA","SAN FRANCISCO DE SANGAYAICO"]
["DISTRITAL","HUANCAVELICA","HUAYTARA","SAN ISIDRO"]
["DISTRITAL","HUANCAVELICA","HUAYTARA","SANTIAGO DE CHOCORVOS"]
["DISTRITAL","HUANCAVELICA","HUAYTARA","SANTIAGO DE QUIRAHUARA"]
["DISTRITAL","HUANCAVELICA","HUAYTARA","SANTO DOMINGO DE CAPILLAS"]
["DISTRITAL","HUANCAVELICA","HUAYTARA","TAMBO"]
["PROVINCIAL","HUANCAVELICA","TAYACAJA","PAMPAS"]
["DISTRITAL","HUANCAVELICA","TAYACAJA","ACOSTAMBO"]
["DISTRITAL","HUANCAVELICA","TAYACAJA","ACRAQUIA"]
["DISTRITAL","HUANCAVELICA","TAYACAJA","AHUAYCHA"]
["DISTRITAL","HUANCAVELICA","TAYACAJA","COLCABAMBA"]
["DISTRITAL","HUANCAVELICA","TAYACAJA","DANIEL HERNANDEZ"]
["DISTRITAL","HUANCAVELICA","TAYACAJA","HUACHOCOLPA"]
["DISTRITAL","HUANCAVELICA","TAYACAJA","HUARIBAMBA"]
["DISTRITAL","HUANCAVELICA","TAYACAJA","ÑAHUIMPUQUIO"]
["DISTRITAL","HUANCAVELICA","TAYACAJA","PAZOS"]
["DISTRITAL","HUANCAVELICA","TAYACAJA","QUISHUAR"]
["DISTRITAL","HUANCAVELICA","TAYACAJA","SALCABAMBA"]
["DISTRITAL","HUANCAVELICA","TAYACAJA","SALCAHUASI"]
["DISTRITAL","HUANCAVELICA","TAYACAJA","SAN MARCOS DE ROCCHAC"]
["DISTRITAL","HUANCAVELICA","TAYACAJA","SURCUBAMBA"]
["DISTRITAL","HUANCAVELICA","TAYACAJA","TINTAY PUNCU"]
["DISTRITAL","HUANCAVELICA","TAYACAJA","QUICHUAS"]
["DISTRITAL","HUANCAVELICA","TAYACAJA","ANDAYMARCA"]
["DISTRITAL","HUANCAVELICA","TAYACAJA","ROBLE"]
["DISTRITAL","HUANCAVELICA","TAYACAJA","PICHOS"]
["DISTRITAL","HUANCAVELICA","TAYACAJA","SANTIAGO DE TUCUMA"]
["PROVINCIAL","HUANUCO","HUANUCO","HUANUCO"]
["DISTRITAL","HUANUCO","HUANUCO","AMARILIS"]
["DISTRITAL","HUANUCO","HUANUCO","CHINCHAO"]
["DISTRITAL","HUANUCO","HUANUCO","CHURUBAMBA"]
["DISTRITAL","HUANUCO","HUANUCO","MARGOS"]
["DISTRITAL","HUANUCO","HUANUCO","QUISQUI"]
["DISTRITAL","HUANUCO","HUANUCO","SAN FRANCISCO DE CAYRAN"]
["DISTRITAL","HUANUCO","HUANUCO","SAN PEDRO DE CHAULAN"]
["DISTRITAL","HUANUCO","HUANUCO","SANTA MARIA DEL VALLE"]
["DISTRITAL","HUANUCO","HUANUCO","YARUMAYO"]
["DISTRITAL","HUANUCO","HUANUCO","PILLCO MARCA"]
["DISTRITAL","HUANUCO","HUANUCO","YACUS"]
["DISTRITAL","HUANUCO","HUANUCO","SAN PABLO DE PILLAO"]
["PROVINCIAL","HUANUCO","AMBO","AMBO"]
["DISTRITAL","HUANUCO","AMBO","CAYNA"]
["DISTRITAL","HUANUCO","AMBO","COLPAS"]
["DISTRITAL","HUANUCO","AMBO","CONCHAMARCA"]
["DISTRITAL","HUANUCO","AMBO","HUACAR"]
["DISTRITAL","HUANUCO","AMBO","SAN FRANCISCO"]
["DISTRITAL","HUANUCO","AMBO","SAN RAFAEL"]
["DISTRITAL","HUANUCO","AMBO","TOMAY KICHWA"]
["PROVINCIAL","HUANUCO","DOS DE MAYO","LA UNION"]
["DISTRITAL","HUANUCO","DOS DE MAYO","CHUQUIS"]
["DISTRITAL","HUANUCO","DOS DE MAYO","MARIAS"]
["DISTRITAL","HUANUCO","DOS DE MAYO","PACHAS"]
["DISTRITAL","HUANUCO","DOS DE MAYO","QUIVILLA"]
["DISTRITAL","HUANUCO","DOS DE MAYO","RIPAN"]
["DISTRITAL","HUANUCO","DOS DE MAYO","SHUNQUI"]
["DISTRITAL","HUANUCO","DOS DE MAYO","SILLAPATA"]
["DISTRITAL","HUANUCO","DOS DE MAYO","YANAS"]
["PROVINCIAL","HUANUCO","HUACAYBAMBA","HUACAYBAMBA"]
["DISTRITAL","HUANUCO","HUACAYBAMBA","CANCHABAMBA"]
["DISTRITAL","HUANUCO","HUACAYBAMBA","COCHABAMBA"]
["DISTRITAL","HUANUCO","HUACAYBAMBA","PINRA"]
["PROVINCIAL","HUANUCO","HUAMALIES","LLATA"]
["DISTRITAL","HUANUCO","HUAMALIES","ARANCAY"]
["DISTRITAL","HUANUCO","HUAMALIES","CHAVIN DE PARIARCA"]
["DISTRITAL","HUANUCO","HUAMALIES","JACAS GRANDE"]
["DISTRITAL","HUANUCO","HUAMALIES","JIRCAN"]
["DISTRITAL","HUANUCO","HUAMALIES","MIRAFLORES"]
["DISTRITAL","HUANUCO","HUAMALIES","MONZON"]
["DISTRITAL","HUANUCO","HUAMALIES","PUNCHAO"]
["DISTRITAL","HUANUCO","HUAMALIES","PUÑOS"]
["DISTRITAL","HUANUCO","HUAMALIES","SINGA"]
["DISTRITAL","HUANUCO","HUAMALIES","TANTAMAYO"]
["PROVINCIAL","HUANUCO","LEONCIO PRADO","RUPA-RUPA"]
["DISTRITAL","HUANUCO","LEONCIO PRADO","DANIEL ALOMIA ROBLES"]
["DISTRITAL","HUANUCO","LEONCIO PRADO","HERMILIO VALDIZAN"]
["DISTRITAL","HUANUCO","LEONCIO PRADO","JOSE CRESPO Y CASTILLO"]
["DISTRITAL","HUANUCO","LEONCIO PRADO","LUYANDO"]
["DISTRITAL","HUANUCO","LEONCIO PRADO","MARIANO DAMASO BERAUN"]
["DISTRITAL","HUANUCO","LEONCIO PRADO","PUCAYACU"]
["DISTRITAL","HUANUCO","LEONCIO PRADO","CASTILLO GRANDE"]
["DISTRITAL","HUANUCO","LEONCIO PRADO","PUEBLO NUEVO"]
["DISTRITAL","HUANUCO","LEONCIO PRADO","SANTO DOMINGO DE ANDA"]
["PROVINCIAL","HUANUCO","MARAÑON","HUACRACHUCO"]
["DISTRITAL","HUANUCO","MARAÑON","CHOLON"]
["DISTRITAL","HUANUCO","MARAÑON","SAN BUENAVENTURA"]
["DISTRITAL","HUANUCO","MARAÑON","LA MORADA"]
["DISTRITAL","HUANUCO","MARAÑON","SANTA ROSA DE ALTO YANAJANCA"]
["PROVINCIAL","HUANUCO","PACHITEA","PANAO"]
["DISTRITAL","HUANUCO","PACHITEA","CHAGLLA"]
["DISTRITAL","HUANUCO","PACHITEA","MOLINO"]
["DISTRITAL","HUANUCO","PACHITEA","UMARI"]
["PROVINCIAL","HUANUCO","PUERTO INCA","PUERTO INCA"]
["DISTRITAL","HUANUCO","PUERTO INCA","CODO DEL POZUZO"]
["DISTRITAL","HUANUCO","PUERTO INCA","HONORIA"]
["DISTRITAL","HUANUCO","PUERTO INCA","TOURNAVISTA"]
["DISTRITAL","HUANUCO","PUERTO INCA","YUYAPICHIS"]
["PROVINCIAL","HUANUCO","LAURICOCHA","JESUS"]
["DISTRITAL","HUANUCO","LAURICOCHA","BAÑOS"]
["DISTRITAL","HUANUCO","LAURICOCHA","JIVIA"]
["DISTRITAL","HUANUCO","LAURICOCHA","QUEROPALCA"]
["DISTRITAL","HUANUCO","LAURICOCHA","RONDOS"]
["DISTRITAL","HUANUCO","LAURICOCHA","SAN FRANCISCO DE ASIS"]
["DISTRITAL","HUANUCO","LAURICOCHA","SAN MIGUEL DE CAURI"]
["PROVINCIAL","HUANUCO","YAROWILCA","CHAVINILLO"]
["DISTRITAL","HUANUCO","YAROWILCA","CAHUAC"]
["DISTRITAL","HUANUCO","YAROWILCA","CHACABAMBA"]
["DISTRITAL","HUANUCO","YAROWILCA","APARICIO POMARES"]
["DISTRITAL","HUANUCO","YAROWILCA","JACAS CHICO"]
["DISTRITAL","HUANUCO","YAROWILCA","OBAS"]
["DISTRITAL","HUANUCO","YAROWILCA","PAMPAMARCA"]
["DISTRITAL","HUANUCO","YAROWILCA","CHORAS"]
["PROVINCIAL","ICA","ICA","ICA"]
["DISTRITAL","ICA","ICA","LA TINGUIÑA"]
["DISTRITAL","ICA","ICA","LOS AQUIJES"]
["DISTRITAL","ICA","ICA","OCUCAJE"]
["DISTRITAL","ICA","ICA","PACHACUTEC"]
["DISTRITAL","ICA","ICA","PARCONA"]
["DISTRITAL","ICA","ICA","PUEBLO NUEVO"]
["DISTRITAL","ICA","ICA","SALAS"]
["DISTRITAL","ICA","ICA","SAN JOSE DE LOS MOLINOS"]
["DISTRITAL","ICA","ICA","SAN JUAN BAUTISTA"]
["DISTRITAL","ICA","ICA","SANTIAGO"]
["DISTRITAL","ICA","ICA","SUBTANJALLA"]
["DISTRITAL","ICA","ICA","TATE"]
["DISTRITAL","ICA","ICA","YAUCA DEL ROSARIO"]
["PROVINCIAL","ICA","CHINCHA","CHINCHA ALTA"]
["DISTRITAL","ICA","CHINCHA","ALTO LARAN"]
["DISTRITAL","ICA","CHINCHA","CHAVIN"]
["DISTRITAL","ICA","CHINCHA","CHINCHA BAJA"]
["DISTRITAL","ICA","CHINCHA","EL CARMEN"]
["DISTRITAL","ICA","CHINCHA","GROCIO PRADO"]
["DISTRITAL","ICA","CHINCHA","PUEBLO NUEVO"]
["DISTRITAL","ICA","CHINCHA","SAN JUAN DE YANAC"]
["DISTRITAL","ICA","CHINCHA","SAN PEDRO DE HUACARPANA"]
["DISTRITAL","ICA","CHINCHA","SUNAMPE"]
["DISTRITAL","ICA","CHINCHA","TAMBO DE MORA"]
["PROVINCIAL","ICA","NASCA","NASCA"]
["DISTRITAL","ICA","NASCA","CHANGUILLO"]
["DISTRITAL","ICA","NASCA","EL INGENIO"]
["DISTRITAL","ICA","NASCA","MARCONA"]
["DISTRITAL","ICA","NASCA","VISTA ALEGRE"]
["PROVINCIAL","ICA","PALPA","PALPA"]
["DISTRITAL","ICA","PALPA","LLIPATA"]
["DISTRITAL","ICA","PALPA","RIO GRANDE"]
["DISTRITAL","ICA","PALPA","SANTA CRUZ"]
["DISTRITAL","ICA","PALPA","TIBILLO"]
["PROVINCIAL","ICA","PISCO","PISCO"]
["DISTRITAL","ICA","PISCO","HUANCANO"]
["DISTRITAL","ICA","PISCO","HUMAY"]
["DISTRITAL","ICA","PISCO","INDEPENDENCIA"]
["DISTRITAL","ICA","PISCO","PARACAS"]
["DISTRITAL","ICA","PISCO","SAN ANDRES"]
["DISTRITAL","ICA","PISCO","SAN CLEMENTE"]
["DISTRITAL","ICA","PISCO","TUPAC AMARU INCA"]
["PROVINCIAL","JUNIN","HUANCAYO","HUANCAYO"]
["DISTRITAL","JUNIN","HUANCAYO","CARHUACALLANGA"]
["DISTRITAL","JUNIN","HUANCAYO","CHACAPAMPA"]
["DISTRITAL","JUNIN","HUANCAYO","CHICCHE"]
["DISTRITAL","JUNIN","HUANCAYO","CHILCA"]
["DISTRITAL","JUNIN","HUANCAYO","CHONGOS ALTO"]
["DISTRITAL","JUNIN","HUANCAYO","CHUPURO"]
["DISTRITAL","JUNIN","HUANCAYO","COLCA"]
["DISTRITAL","JUNIN","HUANCAYO","CULLHUAS"]
["DISTRITAL","JUNIN","HUANCAYO","EL TAMBO"]
["DISTRITAL","JUNIN","HUANCAYO","HUACRAPUQUIO"]
["DISTRITAL","JUNIN","HUANCAYO","HUALHUAS"]
["DISTRITAL","JUNIN","HUANCAYO","HUANCAN"]
["DISTRITAL","JUNIN","HUANCAYO","HUASICANCHA"]
["DISTRITAL","JUNIN","HUANCAYO","HUAYUCACHI"]
["DISTRITAL","JUNIN","HUANCAYO","INGENIO"]
["DISTRITAL","JUNIN","HUANCAYO","PARIAHUANCA"]
["DISTRITAL","JUNIN","HUANCAYO","PILCOMAYO"]
["DISTRITAL","JUNIN","HUANCAYO","PUCARA"]
["DISTRITAL","JUNIN","HUANCAYO","QUICHUAY"]
["DISTRITAL","JUNIN","HUANCAYO","QUILCAS"]
["DISTRITAL","JUNIN","HUANCAYO","SAN AGUSTIN"]
["DISTRITAL","JUNIN","HUANCAYO","SAN JERONIMO DE TUNAN"]
["DISTRITAL","JUNIN","HUANCAYO","SAÑO"]
["DISTRITAL","JUNIN","HUANCAYO","SAPALLANGA"]
["DISTRITAL","JUNIN","HUANCAYO","SICAYA"]
["DISTRITAL","JUNIN","HUANCAYO","SANTO DOMINGO DE ACOBAMBA"]
["DISTRITAL","JUNIN","HUANCAYO","VIQUES"]
["PROVINCIAL","JUNIN","CONCEPCION","CONCEPCION"]
["DISTRITAL","JUNIN","CONCEPCION","ACO"]
["DISTRITAL","JUNIN","CONCEPCION","ANDAMARCA"]
["DISTRITAL","JUNIN","CONCEPCION","CHAMBARA"]
["DISTRITAL","JUNIN","CONCEPCION","COCHAS"]
["DISTRITAL","JUNIN","CONCEPCION","COMAS"]
["DISTRITAL","JUNIN","CONCEPCION","HEROINAS TOLEDO"]
["DISTRITAL","JUNIN","CONCEPCION","MANZANARES"]
["DISTRITAL","JUNIN","CONCEPCION","MARISCAL CASTILLA"]
["DISTRITAL","JUNIN","CONCEPCION","MATAHUASI"]
["DISTRITAL","JUNIN","CONCEPCION","MITO"]
["DISTRITAL","JUNIN","CONCEPCION","NUEVE DE JULIO"]
["DISTRITAL","JUNIN","CONCEPCION","ORCOTUNA"]
["DISTRITAL","JUNIN","CONCEPCION","SAN JOSE DE QUERO"]
["DISTRITAL","JUNIN","CONCEPCION","SANTA ROSA DE OCOPA"]
["PROVINCIAL","JUNIN","CHANCHAMAYO","CHANCHAMAYO"]
["DISTRITAL","JUNIN","CHANCHAMAYO","PERENE"]
["DISTRITAL","JUNIN","CHANCHAMAYO","PICHANAQUI"]
["DISTRITAL","JUNIN","CHANCHAMAYO","SAN LUIS DE SHUARO"]
["DISTRITAL","JUNIN","CHANCHAMAYO","SAN RAMON"]
["DISTRITAL","JUNIN","CHANCHAMAYO","VITOC"]
["PROVINCIAL","JUNIN","JAUJA","JAUJA"]
["DISTRITAL","JUNIN","JAUJA","ACOLLA"]
["DISTRITAL","JUNIN","JAUJA","APATA"]
["DISTRITAL","JUNIN","JAUJA","ATAURA"]
["DISTRITAL","JUNIN","JAUJA","CANCHAYLLO"]
["DISTRITAL","JUNIN","JAUJA","CURICACA"]
["DISTRITAL","JUNIN","JAUJA","EL MANTARO"]
["DISTRITAL","JUNIN","JAUJA","HUAMALI"]
["DISTRITAL","JUNIN","JAUJA","HUARIPAMPA"]
["DISTRITAL","JUNIN","JAUJA","HUERTAS"]
["DISTRITAL","JUNIN","JAUJA","JANJAILLO"]
["DISTRITAL","JUNIN","JAUJA","JULCAN"]
["DISTRITAL","JUNIN","JAUJA","LEONOR ORDOÑEZ"]
["DISTRITAL","JUNIN","JAUJA","LLOCLLAPAMPA"]
["DISTRITAL","JUNIN","JAUJA","MARCO"]
["DISTRITAL","JUNIN","JAUJA","MASMA"]
["DISTRITAL","JUNIN","JAUJA","MASMA CHICCHE"]
["DISTRITAL","JUNIN","JAUJA","MOLINOS"]
["DISTRITAL","JUNIN","JAUJA","MONOBAMBA"]
["DISTRITAL","JUNIN","JAUJA","MUQUI"]
["DISTRITAL","JUNIN","JAUJA","MUQUIYAUYO"]
["DISTRITAL","JUNIN","JAUJA","PACA"]
["DISTRITAL","JUNIN","JAUJA","PACCHA"]
["DISTRITAL","JUNIN","JAUJA","PANCAN"]
["DISTRITAL","JUNIN","JAUJA","PARCO"]
["DISTRITAL","JUNIN","JAUJA","POMACANCHA"]
["DISTRITAL","JUNIN","JAUJA","RICRAN"]
["DISTRITAL","JUNIN","JAUJA","SAN LORENZO"]
["DISTRITAL","JUNIN","JAUJA","SAN PEDRO DE CHUNAN"]
["DISTRITAL","JUNIN","JAUJA","SAUSA"]
["DISTRITAL","JUNIN","JAUJA","SINCOS"]
["DISTRITAL","JUNIN","JAUJA","TUNAN MARCA"]
["DISTRITAL","JUNIN","JAUJA","YAULI"]
["DISTRITAL","JUNIN","JAUJA","YAUYOS"]
["PROVINCIAL","JUNIN","JUNIN","JUNIN"]
["DISTRITAL","JUNIN","JUNIN","CARHUAMAYO"]
["DISTRITAL","JUNIN","JUNIN","ONDORES"]
["DISTRITAL","JUNIN","JUNIN","ULCUMAYO"]
["PROVINCIAL","JUNIN","SATIPO","SATIPO"]
["DISTRITAL","JUNIN","SATIPO","COVIRIALI"]
["DISTRITAL","JUNIN","SATIPO","LLAYLLA"]
["DISTRITAL","JUNIN","SATIPO","MAZAMARI"]
["DISTRITAL","JUNIN","SATIPO","PAMPA HERMOSA"]
["DISTRITAL","JUNIN","SATIPO","PANGOA"]
["DISTRITAL","JUNIN","SATIPO","RIO NEGRO"]
["DISTRITAL","JUNIN","SATIPO","RIO TAMBO"]
["DISTRITAL","JUNIN","SATIPO","VIZCATAN DEL ENE"]
["PROVINCIAL","JUNIN","TARMA","TARMA"]
["DISTRITAL","JUNIN","TARMA","ACOBAMBA"]
["DISTRITAL","JUNIN","TARMA","HUARICOLCA"]
["DISTRITAL","JUNIN","TARMA","HUASAHUASI"]
["DISTRITAL","JUNIN","TARMA","LA UNION"]
["DISTRITAL","JUNIN","TARMA","PALCA"]
["DISTRITAL","JUNIN","TARMA","PALCAMAYO"]
["DISTRITAL","JUNIN","TARMA","SAN PEDRO DE CAJAS"]
["DISTRITAL","JUNIN","TARMA","TAPO"]
["PROVINCIAL","JUNIN","YAULI","LA OROYA"]
["DISTRITAL","JUNIN","YAULI","CHACAPALPA"]
["DISTRITAL","JUNIN","YAULI","HUAY-HUAY"]
["DISTRITAL","JUNIN","YAULI","MARCAPOMACOCHA"]
["DISTRITAL","JUNIN","YAULI","MOROCOCHA"]
["DISTRITAL","JUNIN","YAULI","PACCHA"]
["DISTRITAL","JUNIN","YAULI","SANTA BARBARA DE CARHUACAYAN"]
["DISTRITAL","JUNIN","YAULI","SANTA ROSA DE SACCO"]
["DISTRITAL","JUNIN","YAULI","SUITUCANCHA"]
["DISTRITAL","JUNIN","YAULI","YAULI"]
["PROVINCIAL","JUNIN","CHUPACA","CHUPACA"]
["DISTRITAL","JUNIN","CHUPACA","AHUAC"]
["DISTRITAL","JUNIN","CHUPACA","CHONGOS BAJO"]
["DISTRITAL","JUNIN","CHUPACA","HUACHAC"]
["DISTRITAL","JUNIN","CHUPACA","HUAMANCACA CHICO"]
["DISTRITAL","JUNIN","CHUPACA","SAN JUAN DE ISCOS"]
["DISTRITAL","JUNIN","CHUPACA","SAN JUAN DE JARPA"]
["DISTRITAL","JUNIN","CHUPACA","TRES DE DICIEMBRE"]
["DISTRITAL","JUNIN","CHUPACA","YANACANCHA"]
["PROVINCIAL","LA LIBERTAD","TRUJILLO","TRUJILLO"]
["DISTRITAL","LA LIBERTAD","TRUJILLO","EL PORVENIR"]
["DISTRITAL","LA LIBERTAD","TRUJILLO","FLORENCIA DE MORA"]
["DISTRITAL","LA LIBERTAD","TRUJILLO","HUANCHACO"]
["DISTRITAL","LA LIBERTAD","TRUJILLO","LA ESPERANZA"]
["DISTRITAL","LA LIBERTAD","TRUJILLO","LAREDO"]
["DISTRITAL","LA LIBERTAD","TRUJILLO","MOCHE"]
["DISTRITAL","LA LIBERTAD","TRUJILLO","POROTO"]
["DISTRITAL","LA LIBERTAD","TRUJILLO","SALAVERRY"]
["DISTRITAL","LA LIBERTAD","TRUJILLO","SIMBAL"]
["DISTRITAL","LA LIBERTAD","TRUJILLO","VICTOR LARCO HERRERA"]
["PROVINCIAL","LA LIBERTAD","ASCOPE","ASCOPE"]
["DISTRITAL","LA LIBERTAD","ASCOPE","CHICAMA"]
["DISTRITAL","LA LIBERTAD","ASCOPE","CHOCOPE"]
["DISTRITAL","LA LIBERTAD","ASCOPE","MAGDALENA DE CAO"]
["DISTRITAL","LA LIBERTAD","ASCOPE","PAIJAN"]
["DISTRITAL","LA LIBERTAD","ASCOPE","RAZURI"]
["DISTRITAL","LA LIBERTAD","ASCOPE","SANTIAGO DE CAO"]
["DISTRITAL","LA LIBERTAD","ASCOPE","CASA GRANDE"]
["PROVINCIAL","LA LIBERTAD","BOLIVAR","BOLIVAR"]
["DISTRITAL","LA LIBERTAD","BOLIVAR","BAMBAMARCA"]
["DISTRITAL","LA LIBERTAD","BOLIVAR","CONDORMARCA"]
["DISTRITAL","LA LIBERTAD","BOLIVAR","LONGOTEA"]
["DISTRITAL","LA LIBERTAD","BOLIVAR","UCHUMARCA"]
["DISTRITAL","LA LIBERTAD","BOLIVAR","UCUNCHA"]
["PROVINCIAL","LA LIBERTAD","CHEPEN","CHEPEN"]
["DISTRITAL","LA LIBERTAD","CHEPEN","PACANGA"]
["DISTRITAL","LA LIBERTAD","CHEPEN","PUEBLO NUEVO"]
["PROVINCIAL","LA LIBERTAD","JULCAN","JULCAN"]
["DISTRITAL","LA LIBERTAD","JULCAN","CALAMARCA"]
["DISTRITAL","LA LIBERTAD","JULCAN","CARABAMBA"]
["DISTRITAL","LA LIBERTAD","JULCAN","HUASO"]
["PROVINCIAL","LA LIBERTAD","OTUZCO","OTUZCO"]
["DISTRITAL","LA LIBERTAD","OTUZCO","AGALLPAMPA"]
["DISTRITAL","LA LIBERTAD","OTUZCO","CHARAT"]
["DISTRITAL","LA LIBERTAD","OTUZCO","HUARANCHAL"]
["DISTRITAL","LA LIBERTAD","OTUZCO","LA CUESTA"]
["DISTRITAL","LA LIBERTAD","OTUZCO","MACHE"]
["DISTRITAL","LA LIBERTAD","OTUZCO","PARANDAY"]
["DISTRITAL","LA LIBERTAD","OTUZCO","SALPO"]
["DISTRITAL","LA LIBERTAD","OTUZCO","SINSICAP"]
["DISTRITAL","LA LIBERTAD","OTUZCO","USQUIL"]
["PROVINCIAL","LA LIBERTAD","PACASMAYO","SAN PEDRO DE LLOC"]
["DISTRITAL","LA LIBERTAD","PACASMAYO","GUADALUPE"]
["DISTRITAL","LA LIBERTAD","PACASMAYO","JEQUETEPEQUE"]
["DISTRITAL","LA LIBERTAD","PACASMAYO","PACASMAYO"]
["DISTRITAL","LA LIBERTAD","PACASMAYO","SAN JOSE"]
["PROVINCIAL","LA LIBERTAD","PATAZ","TAYABAMBA"]
["DISTRITAL","LA LIBERTAD","PATAZ","BULDIBUYO"]
["DISTRITAL","LA LIBERTAD","PATAZ","CHILLIA"]
["DISTRITAL","LA LIBERTAD","PATAZ","HUANCASPATA"]
["DISTRITAL","LA LIBERTAD","PATAZ","HUAYLILLAS"]
["DISTRITAL","LA LIBERTAD","PATAZ","HUAYO"]
["DISTRITAL","LA LIBERTAD","PATAZ","ONGON"]
["DISTRITAL","LA LIBERTAD","PATAZ","PARCOY"]
["DISTRITAL","LA LIBERTAD","PATAZ","PATAZ"]
["DISTRITAL","LA LIBERTAD","PATAZ","PIAS"]
["DISTRITAL","LA LIBERTAD","PATAZ","SANTIAGO DE CHALLAS"]
["DISTRITAL","LA LIBERTAD","PATAZ","TAURIJA"]
["DISTRITAL","LA LIBERTAD","PATAZ","URPAY"]
["PROVINCIAL","LA LIBERTAD","SANCHEZ CARRION","HUAMACHUCO"]
["DISTRITAL","LA LIBERTAD","SANCHEZ CARRION","CHUGAY"]
["DISTRITAL","LA LIBERTAD","SANCHEZ CARRION","COCHORCO"]
["DISTRITAL","LA LIBERTAD","SANCHEZ CARRION","CURGOS"]
["DISTRITAL","LA LIBERTAD","SANCHEZ CARRION","MARCABAL"]
["DISTRITAL","LA LIBERTAD","SANCHEZ CARRION","SANAGORAN"]
["DISTRITAL","LA LIBERTAD","SANCHEZ CARRION","SARIN"]
["DISTRITAL","LA LIBERTAD","SANCHEZ CARRION","SARTIMBAMBA"]
["PROVINCIAL","LA LIBERTAD","SANTIAGO DE CHUCO","SANTIAGO DE CHUCO"]
["DISTRITAL","LA LIBERTAD","SANTIAGO DE CHUCO","ANGASMARCA"]
["DISTRITAL","LA LIBERTAD","SANTIAGO DE CHUCO","CACHICADAN"]
["DISTRITAL","LA LIBERTAD","SANTIAGO DE CHUCO","MOLLEBAMBA"]
["DISTRITAL","LA LIBERTAD","SANTIAGO DE CHUCO","MOLLEPATA"]
["DISTRITAL","LA LIBERTAD","SANTIAGO DE CHUCO","QUIRUVILCA"]
["DISTRITAL","LA LIBERTAD","SANTIAGO DE CHUCO","SANTA CRUZ DE CHUCA"]
["DISTRITAL","LA LIBERTAD","SANTIAGO DE CHUCO","SITABAMBA"]
["PROVINCIAL","LA LIBERTAD","GRAN CHIMU","CASCAS"]
["DISTRITAL","LA LIBERTAD","GRAN CHIMU","LUCMA"]
["DISTRITAL","LA LIBERTAD","GRAN CHIMU","MARMOT"]
["DISTRITAL","LA LIBERTAD","GRAN CHIMU","SAYAPULLO"]
["PROVINCIAL","LA LIBERTAD","VIRU","VIRU"]
["DISTRITAL","LA LIBERTAD","VIRU","CHAO"]
["DISTRITAL","LA LIBERTAD","VIRU","GUADALUPITO"]
["PROVINCIAL","LAMBAYEQUE","CHICLAYO","CHICLAYO"]
["DISTRITAL","LAMBAYEQUE","CHICLAYO","CHONGOYAPE"]
["DISTRITAL","LAMBAYEQUE","CHICLAYO","ETEN"]
["DISTRITAL","LAMBAYEQUE","CHICLAYO","ETEN PUERTO"]
["DISTRITAL","LAMBAYEQUE","CHICLAYO","JOSE LEONARDO ORTIZ"]
["DISTRITAL","LAMBAYEQUE","CHICLAYO","LA VICTORIA"]
["DISTRITAL","LAMBAYEQUE","CHICLAYO","LAGUNAS"]
["DISTRITAL","LAMBAYEQUE","CHICLAYO","MONSEFU"]
["DISTRITAL","LAMBAYEQUE","CHICLAYO","NUEVA ARICA"]
["DISTRITAL","LAMBAYEQUE","CHICLAYO","OYOTUN"]
["DISTRITAL","LAMBAYEQUE","CHICLAYO","PICSI"]
["DISTRITAL","LAMBAYEQUE","CHICLAYO","PIMENTEL"]
["DISTRITAL","LAMBAYEQUE","CHICLAYO","REQUE"]
["DISTRITAL","LAMBAYEQUE","CHICLAYO","SANTA ROSA"]
["DISTRITAL","LAMBAYEQUE","CHICLAYO","SAÑA"]
["DISTRITAL","LAMBAYEQUE","CHICLAYO","CAYALTI"]
["DISTRITAL","LAMBAYEQUE","CHICLAYO","PATAPO"]
["DISTRITAL","LAMBAYEQUE","CHICLAYO","POMALCA"]
["DISTRITAL","LAMBAYEQUE","CHICLAYO","PUCALA"]
["DISTRITAL","LAMBAYEQUE","CHICLAYO","TUMAN"]
["PROVINCIAL","LAMBAYEQUE","FERREÑAFE","FERREÑAFE"]
["DISTRITAL","LAMBAYEQUE","FERREÑAFE","CAÑARIS"]
["DISTRITAL","LAMBAYEQUE","FERREÑAFE","INCAHUASI"]
["DISTRITAL","LAMBAYEQUE","FERREÑAFE","MANUEL ANTONIO MESONES MURO"]
["DISTRITAL","LAMBAYEQUE","FERREÑAFE","PITIPO"]
["DISTRITAL","LAMBAYEQUE","FERREÑAFE","PUEBLO NUEVO"]
["PROVINCIAL","LAMBAYEQUE","LAMBAYEQUE","LAMBAYEQUE"]
["DISTRITAL","LAMBAYEQUE","LAMBAYEQUE","CHOCHOPE"]
["DISTRITAL","LAMBAYEQUE","LAMBAYEQUE","ILLIMO"]
["DISTRITAL","LAMBAYEQUE","LAMBAYEQUE","JAYANCA"]
["DISTRITAL","LAMBAYEQUE","LAMBAYEQUE","MOCHUMI"]
["DISTRITAL","LAMBAYEQUE","LAMBAYEQUE","MORROPE"]
["DISTRITAL","LAMBAYEQUE","LAMBAYEQUE","MOTUPE"]
["DISTRITAL","LAMBAYEQUE","LAMBAYEQUE","OLMOS"]
["DISTRITAL","LAMBAYEQUE","LAMBAYEQUE","PACORA"]
["DISTRITAL","LAMBAYEQUE","LAMBAYEQUE","SALAS"]
["DISTRITAL","LAMBAYEQUE","LAMBAYEQUE","SAN JOSE"]
["DISTRITAL","LAMBAYEQUE","LAMBAYEQUE","TUCUME"]
["PROVINCIAL","LIMA","LIMA","LIMA"]
["DISTRITAL","LIMA","LIMA","ANCON"]
["DISTRITAL","LIMA","LIMA","ATE"]
["DISTRITAL","LIMA","LIMA","BARRANCO"]
["DISTRITAL","LIMA","LIMA","BREÑA"]
["DISTRITAL","LIMA","LIMA","CARABAYLLO"]
["DISTRITAL","LIMA","LIMA","CHACLACAYO"]
["DISTRITAL","LIMA","LIMA","CHORRILLOS"]
["DISTRITAL","LIMA","LIMA","CIENEGUILLA"]
["DISTRITAL","LIMA","LIMA","COMAS"]
["DISTRITAL","LIMA","LIMA","EL AGUSTINO"]
["DISTRITAL","LIMA","LIMA","INDEPENDENCIA"]
["DISTRITAL","LIMA","LIMA","JESUS MARIA"]
["DISTRITAL","LIMA","LIMA","LA MOLINA"]
["DISTRITAL","LIMA","LIMA","LA VICTORIA"]
["DISTRITAL","LIMA","LIMA","LINCE"]
["DISTRITAL","LIMA","LIMA","LOS OLIVOS"]
["DISTRITAL","LIMA","LIMA","LURIGANCHO"]
["DISTRITAL","LIMA","LIMA","LURIN"]
["DISTRITAL","LIMA","LIMA","MAGDALENA DEL MAR"]
["DISTRITAL","LIMA","LIMA","PUEBLO LIBRE"]
["DISTRITAL","LIMA","LIMA","MIRAFLORES"]
["DISTRITAL","LIMA","LIMA","PACHACAMAC"]
["DISTRITAL","LIMA","LIMA","PUCUSANA"]
["DISTRITAL","LIMA","LIMA","PUENTE PIEDRA"]
["DISTRITAL","LIMA","LIMA","PUNTA HERMOSA"]
["DISTRITAL","LIMA","LIMA","PUNTA NEGRA"]
["DISTRITAL","LIMA","LIMA","RIMAC"]
["DISTRITAL","LIMA","LIMA","SAN BARTOLO"]
["DISTRITAL","LIMA","LIMA","SAN BORJA"]
["DISTRITAL","LIMA","LIMA","SAN ISIDRO"]
["DISTRITAL","LIMA","LIMA","SAN JUAN DE LURIGANCHO"]
["DISTRITAL","LIMA","LIMA","SAN JUAN DE MIRAFLORES"]
["DISTRITAL","LIMA","LIMA","SAN LUIS"]
["DISTRITAL","LIMA","LIMA","SAN MARTIN DE PORRES"]
["DISTRITAL","LIMA","LIMA","SAN MIGUEL"]
["DISTRITAL","LIMA","LIMA","SANTA ANITA"]
["DISTRITAL","LIMA","LIMA","SANTA MARIA DEL MAR"]
["DISTRITAL","LIMA","LIMA","SANTA ROSA"]
["DISTRITAL","LIMA","LIMA","SANTIAGO DE SURCO"]
["DISTRITAL","LIMA","LIMA","SURQUILLO"]
["DISTRITAL","LIMA","LIMA","VILLA EL SALVADOR"]
["DISTRITAL","LIMA","LIMA","VILLA MARIA DEL TRIUNFO"]
["PROVINCIAL","LIMA","BARRANCA","BARRANCA"]
["DISTRITAL","LIMA","BARRANCA","PARAMONGA"]
["DISTRITAL","LIMA","BARRANCA","PATIVILCA"]
["DISTRITAL","LIMA","BARRANCA","SUPE"]
["DISTRITAL","LIMA","BARRANCA","SUPE PUERTO"]
["PROVINCIAL","LIMA","CAJATAMBO","CAJATAMBO"]
["DISTRITAL","LIMA","CAJATAMBO","COPA"]
["DISTRITAL","LIMA","CAJATAMBO","GORGOR"]
["DISTRITAL","LIMA","CAJATAMBO","HUANCAPON"]
["DISTRITAL","LIMA","CAJATAMBO","MANAS"]
["PROVINCIAL","LIMA","CANTA","CANTA"]
["DISTRITAL","LIMA","CANTA","ARAHUAY"]
["DISTRITAL","LIMA","CANTA","HUAMANTANGA"]
["DISTRITAL","LIMA","CANTA","HUAROS"]
["DISTRITAL","LIMA","CANTA","LACHAQUI"]
["DISTRITAL","LIMA","CANTA","SAN BUENAVENTURA"]
["DISTRITAL","LIMA","CANTA","SANTA ROSA DE QUIVES"]
["PROVINCIAL","LIMA","CAÑETE","SAN VICENTE DE CAÑETE"]
["DISTRITAL","LIMA","CAÑETE","ASIA"]
["DISTRITAL","LIMA","CAÑETE","CALANGO"]
["DISTRITAL","LIMA","CAÑETE","CERRO AZUL"]
["DISTRITAL","LIMA","CAÑETE","CHILCA"]
["DISTRITAL","LIMA","CAÑETE","COAYLLO"]
["DISTRITAL","LIMA","CAÑETE","IMPERIAL"]
["DISTRITAL","LIMA","CAÑETE","LUNAHUANA"]
["DISTRITAL","LIMA","CAÑETE","MALA"]
["DISTRITAL","LIMA","CAÑETE","NUEVO IMPERIAL"]
["DISTRITAL","LIMA","CAÑETE","PACARAN"]
["DISTRITAL","LIMA","CAÑETE","QUILMANA"]
["DISTRITAL","LIMA","CAÑETE","SAN ANTONIO"]
["DISTRITAL","LIMA","CAÑETE","SAN LUIS"]
["DISTRITAL","LIMA","CAÑETE","SANTA CRUZ DE FLORES"]
["DISTRITAL","LIMA","CAÑETE","ZUÑIGA"]
["PROVINCIAL","LIMA","HUARAL","HUARAL"]
["DISTRITAL","LIMA","HUARAL","ATAVILLOS ALTO"]
["DISTRITAL","LIMA","HUARAL","ATAVILLOS BAJO"]
["DISTRITAL","LIMA","HUARAL","AUCALLAMA"]
["DISTRITAL","LIMA","HUARAL","CHANCAY"]
["DISTRITAL","LIMA","HUARAL","IHUARI"]
["DISTRITAL","LIMA","HUARAL","LAMPIAN"]
["DISTRITAL","LIMA","HUARAL","PACARAOS"]
["DISTRITAL","LIMA","HUARAL","SAN MIGUEL DE ACOS"]
["DISTRITAL","LIMA","HUARAL","SANTA CRUZ DE ANDAMARCA"]
["DISTRITAL","LIMA","HUARAL","SUMBILCA"]
["DISTRITAL","LIMA","HUARAL","VEINTISIETE DE NOVIEMBRE"]
["PROVINCIAL","LIMA","HUAROCHIRI","MATUCANA"]
["DISTRITAL","LIMA","HUAROCHIRI","ANTIOQUIA"]
["DISTRITAL","LIMA","HUAROCHIRI","CALLAHUANCA"]
["DISTRITAL","LIMA","HUAROCHIRI","CARAMPOMA"]
["DISTRITAL","LIMA","HUAROCHIRI","CHICLA"]
["DISTRITAL","LIMA","HUAROCHIRI","CUENCA"]
["DISTRITAL","LIMA","HUAROCHIRI","HUACHUPAMPA"]
["DISTRITAL","LIMA","HUAROCHIRI","HUANZA"]
["DISTRITAL","LIMA","HUAROCHIRI","HUAROCHIRI"]
["DISTRITAL","LIMA","HUAROCHIRI","LAHUAYTAMBO"]
["DISTRITAL","LIMA","HUAROCHIRI","LANGA"]
["DISTRITAL","LIMA","HUAROCHIRI","SAN PEDRO DE LARAOS"]
["DISTRITAL","LIMA","HUAROCHIRI","MARIATANA"]
["DISTRITAL","LIMA","HUAROCHIRI","RICARDO PALMA"]
["DISTRITAL","LIMA","HUAROCHIRI","SAN ANDRES DE TUPICOCHA"]
["DISTRITAL","LIMA","HUAROCHIRI","SAN ANTONIO"]
["DISTRITAL","LIMA","HUAROCHIRI","SAN BARTOLOME"]
["DISTRITAL","LIMA","HUAROCHIRI","SAN DAMIAN"]
["DISTRITAL","LIMA","HUAROCHIRI","SAN JUAN DE IRIS"]
["DISTRITAL","LIMA","HUAROCHIRI","SAN JUAN DE TANTARANCHE"]
["DISTRITAL","LIMA","HUAROCHIRI","SAN LORENZO DE QUINTI"]
["DISTRITAL","LIMA","HUAROCHIRI","SAN MATEO"]
["DISTRITAL","LIMA","HUAROCHIRI","SAN MATEO DE OTAO"]
["DISTRITAL","LIMA","HUAROCHIRI","SAN PEDRO DE CASTA"]
["DISTRITAL","LIMA","HUAROCHIRI","SAN PEDRO DE HUANCAYRE"]
["DISTRITAL","LIMA","HUAROCHIRI","SANGALLAYA"]
["DISTRITAL","LIMA","HUAROCHIRI","SANTA CRUZ DE COCACHACRA"]
["DISTRITAL","LIMA","HUAROCHIRI","SANTA EULALIA"]
["DISTRITAL","LIMA","HUAROCHIRI","SANTIAGO DE ANCHUCAYA"]
["DISTRITAL","LIMA","HUAROCHIRI","SANTIAGO DE TUNA"]
["DISTRITAL","LIMA","HUAROCHIRI","SANTO DOMINGO DE LOS OLLEROS"]
["DISTRITAL","LIMA","HUAROCHIRI","SURCO"]
["PROVINCIAL","LIMA","HUAURA","HUACHO"]
["DISTRITAL","LIMA","HUAURA","AMBAR"]
["DISTRITAL","LIMA","HUAURA","CALETA DE CARQUIN"]
["DISTRITAL","LIMA","HUAURA","CHECRAS"]
["DISTRITAL","LIMA","HUAURA","HUALMAY"]
["DISTRITAL","LIMA","HUAURA","HUAURA"]
["DISTRITAL","LIMA","HUAURA","LEONCIO PRADO"]
["DISTRITAL","LIMA","HUAURA","PACCHO"]
["DISTRITAL","LIMA","HUAURA","SANTA LEONOR"]
["DISTRITAL","LIMA","HUAURA","SANTA MARIA"]
["DISTRITAL","LIMA","HUAURA","SAYAN"]
["DISTRITAL","LIMA","HUAURA","VEGUETA"]
["PROVINCIAL","LIMA","OYON","OYON"]
["DISTRITAL","LIMA","OYON","ANDAJES"]
["DISTRITAL","LIMA","OYON","CAUJUL"]
["DISTRITAL","LIMA","OYON","COCHAMARCA"]
["DISTRITAL","LIMA","OYON","NAVAN"]
["DISTRITAL","LIMA","OYON","PACHANGARA"]
["PROVINCIAL","LIMA","YAUYOS","YAUYOS"]
["DISTRITAL","LIMA","YAUYOS","ALIS"]
["DISTRITAL","LIMA","YAUYOS","ALLAUCA"]
["DISTRITAL","LIMA","YAUYOS","AYAVIRI"]
["DISTRITAL","LIMA","YAUYOS","AZANGARO"]
["DISTRITAL","LIMA","YAUYOS","CACRA"]
["DISTRITAL","LIMA","YAUYOS","CARANIA"]
["DISTRITAL","LIMA","YAUYOS","CATAHUASI"]
["DISTRITAL","LIMA","YAUYOS","CHOCOS"]
["DISTRITAL","LIMA","YAUYOS","COCHAS"]
["DISTRITAL","LIMA","YAUYOS","COLONIA"]
["DISTRITAL","LIMA","YAUYOS","HONGOS"]
["DISTRITAL","LIMA","YAUYOS","HUAMPARA"]
["DISTRITAL","LIMA","YAUYOS","HUANCAYA"]
["DISTRITAL","LIMA","YAUYOS","HUANGASCAR"]
["DISTRITAL","LIMA","YAUYOS","HUANTAN"]
["DISTRITAL","LIMA","YAUYOS","HUAÑEC"]
["DISTRITAL","LIMA","YAUYOS","LARAOS"]
["DISTRITAL","LIMA","YAUYOS","LINCHA"]
["DISTRITAL","LIMA","YAUYOS","MADEAN"]
["DISTRITAL","LIMA","YAUYOS","MIRAFLORES"]
["DISTRITAL","LIMA","YAUYOS","OMAS"]
["DISTRITAL","LIMA","YAUYOS","PUTINZA"]
["DISTRITAL","LIMA","YAUYOS","QUINCHES"]
["DISTRITAL","LIMA","YAUYOS","QUINOCAY"]
["DISTRITAL","LIMA","YAUYOS","SAN JOAQUIN"]
["DISTRITAL","LIMA","YAUYOS","SAN PEDRO DE PILAS"]
["DISTRITAL","LIMA","YAUYOS","TANTA"]
["DISTRITAL","LIMA","YAUYOS","TAURIPAMPA"]
["DISTRITAL","LIMA","YAUYOS","TOMAS"]
["DISTRITAL","LIMA","YAUYOS","TUPE"]
["DISTRITAL","LIMA","YAUYOS","VIÑAC"]
["DISTRITAL","LIMA","YAUYOS","VITIS"]
["PROVINCIAL","LORETO","MAYNAS","IQUITOS"]
["DISTRITAL","LORETO","MAYNAS","ALTO NANAY"]
["DISTRITAL","LORETO","MAYNAS","FERNANDO LORES"]
["DISTRITAL","LORETO","MAYNAS","INDIANA"]
["DISTRITAL","LORETO","MAYNAS","LAS AMAZONAS"]
["DISTRITAL","LORETO","MAYNAS","MAZAN"]
["DISTRITAL","LORETO","MAYNAS","NAPO"]
["DISTRITAL","LORETO","MAYNAS","PUNCHANA"]
["DISTRITAL","LORETO","MAYNAS","TORRES CAUSANA"]
["DISTRITAL","LORETO","MAYNAS","BELEN"]
["DISTRITAL","LORETO","MAYNAS","SAN JUAN BAUTISTA"]
["PROVINCIAL","LORETO","ALTO AMAZONAS","YURIMAGUAS"]
["DISTRITAL","LORETO","ALTO AMAZONAS","BALSAPUERTO"]
["DISTRITAL","LORETO","ALTO AMAZONAS","JEBEROS"]
["DISTRITAL","LORETO","ALTO AMAZONAS","LAGUNAS"]
["DISTRITAL","LORETO","ALTO AMAZONAS","SANTA CRUZ"]
["DISTRITAL","LORETO","ALTO AMAZONAS","TENIENTE CESAR LOPEZ ROJAS"]
["PROVINCIAL","LORETO","LORETO","NAUTA"]
["DISTRITAL","LORETO","LORETO","PARINARI"]
["DISTRITAL","LORETO","LORETO","TIGRE"]
["DISTRITAL","LORETO","LORETO","TROMPETEROS"]
["DISTRITAL","LORETO","LORETO","URARINAS"]
["PROVINCIAL","LORETO","MARISCAL RAMON CASTILLA","RAMON CASTILLA"]
["DISTRITAL","LORETO","MARISCAL RAMON CASTILLA","PEBAS"]
["DISTRITAL","LORETO","MARISCAL RAMON CASTILLA","YAVARI"]
["DISTRITAL","LORETO","MARISCAL RAMON CASTILLA","SAN PABLO"]
["PROVINCIAL","LORETO","REQUENA","REQUENA"]
["DISTRITAL","LORETO","REQUENA","ALTO TAPICHE"]
["DISTRITAL","LORETO","REQUENA","CAPELO"]
["DISTRITAL","LORETO","REQUENA","EMILIO SAN MARTIN"]
["DISTRITAL","LORETO","REQUENA","MAQUIA"]
["DISTRITAL","LORETO","REQUENA","PUINAHUA"]
["DISTRITAL","LORETO","REQUENA","SAQUENA"]
["DISTRITAL","LORETO","REQUENA","SOPLIN"]
["DISTRITAL","LORETO","REQUENA","TAPICHE"]
["DISTRITAL","LORETO","REQUENA","JENARO HERRERA"]
["DISTRITAL","LORETO","REQUENA","YAQUERANA"]
["PROVINCIAL","LORETO","UCAYALI","CONTAMANA"]
["DISTRITAL","LORETO","UCAYALI","INAHUAYA"]
["DISTRITAL","LORETO","UCAYALI","PADRE MARQUEZ"]
["DISTRITAL","LORETO","UCAYALI","PAMPA HERMOSA"]
["DISTRITAL","LORETO","UCAYALI","SARAYACU"]
["DISTRITAL","LORETO","UCAYALI","VARGAS GUERRA"]
["PROVINCIAL","LORETO","DATEM DEL MARAÑON","BARRANCA"]
["DISTRITAL","LORETO","DATEM DEL MARAÑON","CAHUAPANAS"]
["DISTRITAL","LORETO","DATEM DEL MARAÑON","MANSERICHE"]
["DISTRITAL","LORETO","DATEM DEL MARAÑON","MORONA"]
["DISTRITAL","LORETO","DATEM DEL MARAÑON","PASTAZA"]
["DISTRITAL","LORETO","DATEM DEL MARAÑON","ANDOAS"]
["PROVINCIAL","LORETO","PUTUMAYO","PUTUMAYO"]
["DISTRITAL","LORETO","PUTUMAYO","ROSA PANDURO"]
["DISTRITAL","LORETO","PUTUMAYO","TENIENTE MANUEL CLAVERO"]
["DISTRITAL","LORETO","PUTUMAYO","YAGUAS"]
["PROVINCIAL","MADRE DE DIOS","TAMBOPATA","TAMBOPATA"]
["DISTRITAL","MADRE DE DIOS","TAMBOPATA","INAMBARI"]
["DISTRITAL","MADRE DE DIOS","TAMBOPATA","LAS PIEDRAS"]
["DISTRITAL","MADRE DE DIOS","TAMBOPATA","LABERINTO"]
["PROVINCIAL","MADRE DE DIOS","MANU","MANU"]
["DISTRITAL","MADRE DE DIOS","MANU","FITZCARRALD"]
["DISTRITAL","MADRE DE DIOS","MANU","MADRE DE DIOS"]
["DISTRITAL","MADRE DE DIOS","MANU","HUEPETUHE"]
["PROVINCIAL","MADRE DE DIOS","TAHUAMANU","IÑAPARI"]
["DISTRITAL","MADRE DE DIOS","TAHUAMANU","IBERIA"]
["DISTRITAL","MADRE DE DIOS","TAHUAMANU","TAHUAMANU"]
["PROVINCIAL","MOQUEGUA","MARISCAL NIETO","MOQUEGUA"]
["DISTRITAL","MOQUEGUA","MARISCAL NIETO","CARUMAS"]
["DISTRITAL","MOQUEGUA","MARISCAL NIETO","CUCHUMBAYA"]
["DISTRITAL","MOQUEGUA","MARISCAL NIETO","SAMEGUA"]
["DISTRITAL","MOQUEGUA","MARISCAL NIETO","SAN CRISTOBAL"]
["DISTRITAL","MOQUEGUA","MARISCAL NIETO","TORATA"]
["PROVINCIAL","MOQUEGUA","GENERAL SANCHEZ CERRO","OMATE"]
["DISTRITAL","MOQUEGUA","GENERAL SANCHEZ CERRO","CHOJATA"]
["DISTRITAL","MOQUEGUA","GENERAL SANCHEZ CERRO","COALAQUE"]
["DISTRITAL","MOQUEGUA","GENERAL SANCHEZ CERRO","ICHUÑA"]
["DISTRITAL","MOQUEGUA","GENERAL SANCHEZ CERRO","LA CAPILLA"]
["DISTRITAL","MOQUEGUA","GENERAL SANCHEZ CERRO","LLOQUE"]
["DISTRITAL","MOQUEGUA","GENERAL SANCHEZ CERRO","MATALAQUE"]
["DISTRITAL","MOQUEGUA","GENERAL SANCHEZ CERRO","PUQUINA"]
["DISTRITAL","MOQUEGUA","GENERAL SANCHEZ CERRO","QUINISTAQUILLAS"]
["DISTRITAL","MOQUEGUA","GENERAL SANCHEZ CERRO","UBINAS"]
["DISTRITAL","MOQUEGUA","GENERAL SANCHEZ CERRO","YUNGA"]
["PROVINCIAL","MOQUEGUA","ILO","ILO"]
["DISTRITAL","MOQUEGUA","ILO","EL ALGARROBAL"]
["DISTRITAL","MOQUEGUA","ILO","PACOCHA"]
["PROVINCIAL","PASCO","PASCO","CHAUPIMARCA"]
["DISTRITAL","PASCO","PASCO","HUACHON"]
["DISTRITAL","PASCO","PASCO","HUARIACA"]
["DISTRITAL","PASCO","PASCO","HUAYLLAY"]
["DISTRITAL","PASCO","PASCO","NINACACA"]
["DISTRITAL","PASCO","PASCO","PALLANCHACRA"]
["DISTRITAL","PASCO","PASCO","PAUCARTAMBO"]
["DISTRITAL","PASCO","PASCO","SAN FRANCISCO DE ASIS DE YARUSYACAN"]
["DISTRITAL","PASCO","PASCO","SIMON BOLIVAR"]
["DISTRITAL","PASCO","PASCO","TICLACAYAN"]
["DISTRITAL","PASCO","PASCO","TINYAHUARCO"]
["DISTRITAL","PASCO","PASCO","VICCO"]
["DISTRITAL","PASCO","PASCO","YANACANCHA"]
["PROVINCIAL","PASCO","DANIEL ALCIDES CARRION","YANAHUANCA"]
["DISTRITAL","PASCO","DANIEL ALCIDES CARRION","CHACAYAN"]
["DISTRITAL","PASCO","DANIEL ALCIDES CARRION","GOYLLARISQUIZGA"]
["DISTRITAL","PASCO","DANIEL ALCIDES CARRION","PAUCAR"]
["DISTRITAL","PASCO","DANIEL ALCIDES CARRION","SAN PEDRO DE PILLAO"]
["DISTRITAL","PASCO","DANIEL ALCIDES CARRION","SANTA ANA DE TUSI"]
["DISTRITAL","PASCO","DANIEL ALCIDES CARRION","TAPUC"]
["DISTRITAL","PASCO","DANIEL ALCIDES CARRION","VILCABAMBA"]
["PROVINCIAL","PASCO","OXAPAMPA","OXAPAMPA"]
["DISTRITAL","PASCO","OXAPAMPA","CHONTABAMBA"]
["DISTRITAL","PASCO","OXAPAMPA","HUANCABAMBA"]
["DISTRITAL","PASCO","OXAPAMPA","PALCAZU"]
["DISTRITAL","PASCO","OXAPAMPA","POZUZO"]
["DISTRITAL","PASCO","OXAPAMPA","PUERTO BERMUDEZ"]
["DISTRITAL","PASCO","OXAPAMPA","VILLA RICA"]
["DISTRITAL","PASCO","OXAPAMPA","CONSTITUCION"]
["PROVINCIAL","PIURA","PIURA","PIURA"]
["DISTRITAL","PIURA","PIURA","CASTILLA"]
["DISTRITAL","PIURA","PIURA","CATACAOS"]
["DISTRITAL","PIURA","PIURA","CURA MORI"]
["DISTRITAL","PIURA","PIURA","EL TALLAN"]
["DISTRITAL","PIURA","PIURA","LA ARENA"]
["DISTRITAL","PIURA","PIURA","LA UNION"]
["DISTRITAL","PIURA","PIURA","LAS LOMAS"]
["DISTRITAL","PIURA","PIURA","TAMBO GRANDE"]
["DISTRITAL","PIURA","PIURA","VEINTISEIS DE OCTUBRE"]
["PROVINCIAL","PIURA","AYABACA","AYABACA"]
["DISTRITAL","PIURA","AYABACA","FRIAS"]
["DISTRITAL","PIURA","AYABACA","JILILI"]
["DISTRITAL","PIURA","AYABACA","LAGUNAS"]
["DISTRITAL","PIURA","AYABACA","MONTERO"]
["DISTRITAL","PIURA","AYABACA","PACAIPAMPA"]
["DISTRITAL","PIURA","AYABACA","PAIMAS"]
["DISTRITAL","PIURA","AYABACA","SAPILLICA"]
["DISTRITAL","PIURA","AYABACA","SICCHEZ"]
["DISTRITAL","PIURA","AYABACA","SUYO"]
["PROVINCIAL","PIURA","HUANCABAMBA","HUANCABAMBA"]
["DISTRITAL","PIURA","HUANCABAMBA","CANCHAQUE"]
["DISTRITAL","PIURA","HUANCABAMBA","EL CARMEN DE LA FRONTERA"]
["DISTRITAL","PIURA","HUANCABAMBA","HUARMACA"]
["DISTRITAL","PIURA","HUANCABAMBA","LALAQUIZ"]
["DISTRITAL","PIURA","HUANCABAMBA","SAN MIGUEL DE EL FAIQUE"]
["DISTRITAL","PIURA","HUANCABAMBA","SONDOR"]
["DISTRITAL","PIURA","HUANCABAMBA","SONDORILLO"]
["PROVINCIAL","PIURA","MORROPON","CHULUCANAS"]
["DISTRITAL","PIURA","MORROPON","BUENOS AIRES"]
["DISTRITAL","PIURA","MORROPON","CHALACO"]
["DISTRITAL","PIURA","MORROPON","LA MATANZA"]
["DISTRITAL","PIURA","MORROPON","MORROPON"]
["DISTRITAL","PIURA","MORROPON","SALITRAL"]
["DISTRITAL","PIURA","MORROPON","SAN JUAN DE BIGOTE"]
["DISTRITAL","PIURA","MORROPON","SANTA CATALINA DE MOSSA"]
["DISTRITAL","PIURA","MORROPON","SANTO DOMINGO"]
["DISTRITAL","PIURA","MORROPON","YAMANGO"]
["PROVINCIAL","PIURA","PAITA","PAITA"]
["DISTRITAL","PIURA","PAITA","AMOTAPE"]
["DISTRITAL","PIURA","PAITA","ARENAL"]
["DISTRITAL","PIURA","PAITA","COLAN"]
["DISTRITAL","PIURA","PAITA","LA HUACA"]
["DISTRITAL","PIURA","PAITA","TAMARINDO"]
["DISTRITAL","PIURA","PAITA","VICHAYAL"]
["PROVINCIAL","PIURA","SULLANA","SULLANA"]
["DISTRITAL","PIURA","SULLANA","BELLAVISTA"]
["DISTRITAL","PIURA","SULLANA","IGNACIO ESCUDERO"]
["DISTRITAL","PIURA","SULLANA","LANCONES"]
["DISTRITAL","PIURA","SULLANA","MARCAVELICA"]
["DISTRITAL","PIURA","SULLANA","MIGUEL CHECA"]
["DISTRITAL","PIURA","SULLANA","QUERECOTILLO"]
["DISTRITAL","PIURA","SULLANA","SALITRAL"]
["PROVINCIAL","PIURA","TALARA","PARIÑAS"]
["DISTRITAL","PIURA","TALARA","EL ALTO"]
["DISTRITAL","PIURA","TALARA","LA BREA"]
["DISTRITAL","PIURA","TALARA","LOBITOS"]
["DISTRITAL","PIURA","TALARA","LOS ORGANOS"]
["DISTRITAL","PIURA","TALARA","MANCORA"]
["PROVINCIAL","PIURA","SECHURA","SECHURA"]
["DISTRITAL","PIURA","SECHURA","BELLAVISTA DE LA UNION"]
["DISTRITAL","PIURA","SECHURA","BERNAL"]
["DISTRITAL","PIURA","SECHURA","CRISTO NOS VALGA"]
["DISTRITAL","PIURA","SECHURA","VICE"]
["DISTRITAL","PIURA","SECHURA","RINCONADA LLICUAR"]
["PROVINCIAL","PUNO","PUNO","PUNO"]
["DISTRITAL","PUNO","PUNO","ACORA"]
["DISTRITAL","PUNO","PUNO","AMANTANI"]
["DISTRITAL","PUNO","PUNO","ATUNCOLLA"]
["DISTRITAL","PUNO","PUNO","CAPACHICA"]
["DISTRITAL","PUNO","PUNO","CHUCUITO"]
["DISTRITAL","PUNO","PUNO","COATA"]
["DISTRITAL","PUNO","PUNO","HUATA"]
["DISTRITAL","PUNO","PUNO","MAÑAZO"]
["DISTRITAL","PUNO","PUNO","PAUCARCOLLA"]
["DISTRITAL","PUNO","PUNO","PICHACANI"]
["DISTRITAL","PUNO","PUNO","PLATERIA"]
["DISTRITAL","PUNO","PUNO","SAN ANTONIO"]
["DISTRITAL","PUNO","PUNO","TIQUILLACA"]
["DISTRITAL","PUNO","PUNO","VILQUE"]
["PROVINCIAL","PUNO","AZANGARO","AZANGARO"]
["DISTRITAL","PUNO","AZANGARO","ACHAYA"]
["DISTRITAL","PUNO","AZANGARO","ARAPA"]
["DISTRITAL","PUNO","AZANGARO","ASILLO"]
["DISTRITAL","PUNO","AZANGARO","CAMINACA"]
["DISTRITAL","PUNO","AZANGARO","CHUPA"]
["DISTRITAL","PUNO","AZANGARO","JOSE DOMINGO CHOQUEHUANCA"]
["DISTRITAL","PUNO","AZANGARO","MUÑANI"]
["DISTRITAL","PUNO","AZANGARO","POTONI"]
["DISTRITAL","PUNO","AZANGARO","SAMAN"]
["DISTRITAL","PUNO","AZANGARO","SAN ANTON"]
["DISTRITAL","PUNO","AZANGARO","SAN JOSE"]
["DISTRITAL","PUNO","AZANGARO","SAN JUAN DE SALINAS"]
["DISTRITAL","PUNO","AZANGARO","SANTIAGO DE PUPUJA"]
["DISTRITAL","PUNO","AZANGARO","TIRAPATA"]
["PROVINCIAL","PUNO","CARABAYA","MACUSANI"]
["DISTRITAL","PUNO","CARABAYA","AJOYANI"]
["DISTRITAL","PUNO","CARABAYA","AYAPATA"]
["DISTRITAL","PUNO","CARABAYA","COASA"]
["DISTRITAL","PUNO","CARABAYA","CORANI"]
["DISTRITAL","PUNO","CARABAYA","CRUCERO"]
["DISTRITAL","PUNO","CARABAYA","ITUATA"]
["DISTRITAL","PUNO","CARABAYA","OLLACHEA"]
["DISTRITAL","PUNO","CARABAYA","SAN GABAN"]
["DISTRITAL","PUNO","CARABAYA","USICAYOS"]
["PROVINCIAL","PUNO","CHUCUITO","JULI"]
["DISTRITAL","PUNO","CHUCUITO","DESAGUADERO"]
["DISTRITAL","PUNO","CHUCUITO","HUACULLANI"]
["DISTRITAL","PUNO","CHUCUITO","KELLUYO"]
["DISTRITAL","PUNO","CHUCUITO","PISACOMA"]
["DISTRITAL","PUNO","CHUCUITO","POMATA"]
["DISTRITAL","PUNO","CHUCUITO","ZEPITA"]
["PROVINCIAL","PUNO","EL COLLAO","ILAVE"]
["DISTRITAL","PUNO","EL COLLAO","CAPAZO"]
["DISTRITAL","PUNO","EL COLLAO","PILCUYO"]
["DISTRITAL","PUNO","EL COLLAO","SANTA ROSA"]
["DISTRITAL","PUNO","EL COLLAO","CONDURIRI"]
["PROVINCIAL","PUNO","HUANCANE","HUANCANE"]
["DISTRITAL","PUNO","HUANCANE","COJATA"]
["DISTRITAL","PUNO","HUANCANE","HUATASANI"]
["DISTRITAL","PUNO","HUANCANE","INCHUPALLA"]
["DISTRITAL","PUNO","HUANCANE","PUSI"]
["DISTRITAL","PUNO","HUANCANE","ROSASPATA"]
["DISTRITAL","PUNO","HUANCANE","TARACO"]
["DISTRITAL","PUNO","HUANCANE","VILQUE CHICO"]
["PROVINCIAL","PUNO","LAMPA","LAMPA"]
["DISTRITAL","PUNO","LAMPA","CABANILLA"]
["DISTRITAL","PUNO","LAMPA","CALAPUJA"]
["DISTRITAL","PUNO","LAMPA","NICASIO"]
["DISTRITAL","PUNO","LAMPA","OCUVIRI"]
["DISTRITAL","PUNO","LAMPA","PALCA"]
["DISTRITAL","PUNO","LAMPA","PARATIA"]
["DISTRITAL","PUNO","LAMPA","PUCARA"]
["DISTRITAL","PUNO","LAMPA","SANTA LUCIA"]
["DISTRITAL","PUNO","LAMPA","VILAVILA"]
["PROVINCIAL","PUNO","MELGAR","AYAVIRI"]
["DISTRITAL","PUNO","MELGAR","ANTAUTA"]
["DISTRITAL","PUNO","MELGAR","CUPI"]
["DISTRITAL","PUNO","MELGAR","LLALLI"]
["DISTRITAL","PUNO","MELGAR","MACARI"]
["DISTRITAL","PUNO","MELGAR","NUÑOA"]
["DISTRITAL","PUNO","MELGAR","ORURILLO"]
["DISTRITAL","PUNO","MELGAR","SANTA ROSA"]
["DISTRITAL","PUNO","MELGAR","UMACHIRI"]
["PROVINCIAL","PUNO","MOHO","MOHO"]
["DISTRITAL","PUNO","MOHO","CONIMA"]
["DISTRITAL","PUNO","MOHO","HUAYRAPATA"]
["DISTRITAL","PUNO","MOHO","TILALI"]
["PROVINCIAL","PUNO","SAN ANTONIO DE PUTINA","PUTINA"]
["DISTRITAL","PUNO","SAN ANTONIO DE PUTINA","ANANEA"]
["DISTRITAL","PUNO","SAN ANTONIO DE PUTINA","PEDRO VILCA APAZA"]
["DISTRITAL","PUNO","SAN ANTONIO DE PUTINA","QUILCAPUNCU"]
["DISTRITAL","PUNO","SAN ANTONIO DE PUTINA","SINA"]
["PROVINCIAL","PUNO","SAN ROMAN","JULIACA"]
["DISTRITAL","PUNO","SAN ROMAN","CABANA"]
["DISTRITAL","PUNO","SAN ROMAN","CABANILLAS"]
["DISTRITAL","PUNO","SAN ROMAN","CARACOTO"]
["DISTRITAL","PUNO","SAN ROMAN","SAN MIGUEL"]
["PROVINCIAL","PUNO","SANDIA","SANDIA"]
["DISTRITAL","PUNO","SANDIA","CUYOCUYO"]
["DISTRITAL","PUNO","SANDIA","LIMBANI"]
["DISTRITAL","PUNO","SANDIA","PATAMBUCO"]
["DISTRITAL","PUNO","SANDIA","PHARA"]
["DISTRITAL","PUNO","SANDIA","QUIACA"]
["DISTRITAL","PUNO","SANDIA","SAN JUAN DEL ORO"]
["DISTRITAL","PUNO","SANDIA","YANAHUAYA"]
["DISTRITAL","PUNO","SANDIA","ALTO INAMBARI"]
["DISTRITAL","PUNO","SANDIA","SAN PEDRO DE PUTINA PUNCO"]
["PROVINCIAL","PUNO","YUNGUYO","YUNGUYO"]
["DISTRITAL","PUNO","YUNGUYO","ANAPIA"]
["DISTRITAL","PUNO","YUNGUYO","COPANI"]
["DISTRITAL","PUNO","YUNGUYO","CUTURAPI"]
["DISTRITAL","PUNO","YUNGUYO","OLLARAYA"]
["DISTRITAL","PUNO","YUNGUYO","TINICACHI"]
["DISTRITAL","PUNO","YUNGUYO","UNICACHI"]
["PROVINCIAL","SAN MARTIN","MOYOBAMBA","MOYOBAMBA"]
["DISTRITAL","SAN MARTIN","MOYOBAMBA","CALZADA"]
["DISTRITAL","SAN MARTIN","MOYOBAMBA","HABANA"]
["DISTRITAL","SAN MARTIN","MOYOBAMBA","JEPELACIO"]
["DISTRITAL","SAN MARTIN","MOYOBAMBA","SORITOR"]
["DISTRITAL","SAN MARTIN","MOYOBAMBA","YANTALO"]
["PROVINCIAL","SAN MARTIN","BELLAVISTA","BELLAVISTA"]
["DISTRITAL","SAN MARTIN","BELLAVISTA","ALTO BIAVO"]
["DISTRITAL","SAN MARTIN","BELLAVISTA","BAJO BIAVO"]
["DISTRITAL","SAN MARTIN","BELLAVISTA","HUALLAGA"]
["DISTRITAL","SAN MARTIN","BELLAVISTA","SAN PABLO"]
["DISTRITAL","SAN MARTIN","BELLAVISTA","SAN RAFAEL"]
["PROVINCIAL","SAN MARTIN","EL DORADO","SAN JOSE DE SISA"]
["DISTRITAL","SAN MARTIN","EL DORADO","AGUA BLANCA"]
["DISTRITAL","SAN MARTIN","EL DORADO","SAN MARTIN"]
["DISTRITAL","SAN MARTIN","EL DORADO","SANTA ROSA"]
["DISTRITAL","SAN MARTIN","EL DORADO","SHATOJA"]
["PROVINCIAL","SAN MARTIN","HUALLAGA","SAPOSOA"]
["DISTRITAL","SAN MARTIN","HUALLAGA","ALTO SAPOSOA"]
["DISTRITAL","SAN MARTIN","HUALLAGA","EL ESLABON"]
["DISTRITAL","SAN MARTIN","HUALLAGA","PISCOYACU"]
["DISTRITAL","SAN MARTIN","HUALLAGA","SACANCHE"]
["DISTRITAL","SAN MARTIN","HUALLAGA","TINGO DE SAPOSOA"]
["PROVINCIAL","SAN MARTIN","LAMAS","LAMAS"]
["DISTRITAL","SAN MARTIN","LAMAS","ALONSO DE ALVARADO"]
["DISTRITAL","SAN MARTIN","LAMAS","BARRANQUITA"]
["DISTRITAL","SAN MARTIN","LAMAS","CAYNARACHI"]
["DISTRITAL","SAN MARTIN","LAMAS","CUÑUMBUQUI"]
["DISTRITAL","SAN MARTIN","LAMAS","PINTO RECODO"]
["DISTRITAL","SAN MARTIN","LAMAS","RUMISAPA"]
["DISTRITAL","SAN MARTIN","LAMAS","SAN ROQUE DE CUMBAZA"]
["DISTRITAL","SAN MARTIN","LAMAS","SHANAO"]
["DISTRITAL","SAN MARTIN","LAMAS","TABALOSOS"]
["DISTRITAL","SAN MARTIN","LAMAS","ZAPATERO"]
["PROVINCIAL","SAN MARTIN","MARISCAL CACERES","JUANJUI"]
["DISTRITAL","SAN MARTIN","MARISCAL CACERES","CAMPANILLA"]
["DISTRITAL","SAN MARTIN","MARISCAL CACERES","HUICUNGO"]
["DISTRITAL","SAN MARTIN","MARISCAL CACERES","PACHIZA"]
["DISTRITAL","SAN MARTIN","MARISCAL CACERES","PAJARILLO"]
["PROVINCIAL","SAN MARTIN","PICOTA","PICOTA"]
["DISTRITAL","SAN MARTIN","PICOTA","BUENOS AIRES"]
["DISTRITAL","SAN MARTIN","PICOTA","CASPISAPA"]
["DISTRITAL","SAN MARTIN","PICOTA","PILLUANA"]
["DISTRITAL","SAN MARTIN","PICOTA","PUCACACA"]
["DISTRITAL","SAN MARTIN","PICOTA","SAN CRISTOBAL"]
["DISTRITAL","SAN MARTIN","PICOTA","SAN HILARION"]
["DISTRITAL","SAN MARTIN","PICOTA","SHAMBOYACU"]
["DISTRITAL","SAN MARTIN","PICOTA","TINGO DE PONASA"]
["DISTRITAL","SAN MARTIN","PICOTA","TRES UNIDOS"]
["PROVINCIAL","SAN MARTIN","RIOJA","RIOJA"]
["DISTRITAL","SAN MARTIN","RIOJA","AWAJUN"]
["DISTRITAL","SAN MARTIN","RIOJA","ELIAS SOPLIN VARGAS"]
["DISTRITAL","SAN MARTIN","RIOJA","NUEVA CAJAMARCA"]
["DISTRITAL","SAN MARTIN","RIOJA","PARDO MIGUEL"]
["DISTRITAL","SAN MARTIN","RIOJA","POSIC"]
["DISTRITAL","SAN MARTIN","RIOJA","SAN FERNANDO"]
["DISTRITAL","SAN MARTIN","RIOJA","YORONGOS"]
["DISTRITAL","SAN MARTIN","RIOJA","YURACYACU"]
["PROVINCIAL","SAN MARTIN","SAN MARTIN","TARAPOTO"]
["DISTRITAL","SAN MARTIN","SAN MARTIN","ALBERTO LEVEAU"]
["DISTRITAL","SAN MARTIN","SAN MARTIN","CACATACHI"]
["DISTRITAL","SAN MARTIN","SAN MARTIN","CHAZUTA"]
["DISTRITAL","SAN MARTIN","SAN MARTIN","CHIPURANA"]
["DISTRITAL","SAN MARTIN","SAN MARTIN","EL PORVENIR"]
["DISTRITAL","SAN MARTIN","SAN MARTIN","HUIMBAYOC"]
["DISTRITAL","SAN MARTIN","SAN MARTIN","JUAN GUERRA"]
["DISTRITAL","SAN MARTIN","SAN MARTIN","LA BANDA DE SHILCAYO"]
["DISTRITAL","SAN MARTIN","SAN MARTIN","MORALES"]
["DISTRITAL","SAN MARTIN","SAN MARTIN","PAPAPLAYA"]
["DISTRITAL","SAN MARTIN","SAN MARTIN","SAN ANTONIO"]
["DISTRITAL","SAN MARTIN","SAN MARTIN","SAUCE"]
["DISTRITAL","SAN MARTIN","SAN MARTIN","SHAPAJA"]
["PROVINCIAL","SAN MARTIN","TOCACHE","TOCACHE"]
["DISTRITAL","SAN MARTIN","TOCACHE","NUEVO PROGRESO"]
["DISTRITAL","SAN MARTIN","TOCACHE","POLVORA"]
["DISTRITAL","SAN MARTIN","TOCACHE","SHUNTE"]
["DISTRITAL","SAN MARTIN","TOCACHE","UCHIZA"]
["PROVINCIAL","TACNA","TACNA","TACNA"]
["DISTRITAL","TACNA","TACNA","ALTO DE LA ALIANZA"]
["DISTRITAL","TACNA","TACNA","CALANA"]
["DISTRITAL","TACNA","TACNA","CIUDAD NUEVA"]
["DISTRITAL","TACNA","TACNA","INCLAN"]
["DISTRITAL","TACNA","TACNA","PACHIA"]
["DISTRITAL","TACNA","TACNA","PALCA"]
["DISTRITAL","TACNA","TACNA","POCOLLAY"]
["DISTRITAL","TACNA","TACNA","SAMA"]
["DISTRITAL","TACNA","TACNA","CORONEL GREGORIO ALBARRACIN LANCHIPA"]
["DISTRITAL","TACNA","TACNA","LA YARADA LOS PALOS"]
["PROVINCIAL","TACNA","CANDARAVE","CANDARAVE"]
["DISTRITAL","TACNA","CANDARAVE","CAIRANI"]
["DISTRITAL","TACNA","CANDARAVE","CAMILACA"]
["DISTRITAL","TACNA","CANDARAVE","CURIBAYA"]
["DISTRITAL","TACNA","CANDARAVE","HUANUARA"]
["DISTRITAL","TACNA","CANDARAVE","QUILAHUANI"]
["PROVINCIAL","TACNA","JORGE BASADRE","LOCUMBA"]
["DISTRITAL","TACNA","JORGE BASADRE","ILABAYA"]
["DISTRITAL","TACNA","JORGE BASADRE","ITE"]
["PROVINCIAL","TACNA","TARATA","TARATA"]
["DISTRITAL","TACNA","TARATA","HEROES ALBARRACIN"]
["DISTRITAL","TACNA","TARATA","ESTIQUE"]
["DISTRITAL","TACNA","TARATA","ESTIQUE-PAMPA"]
["DISTRITAL","TACNA","TARATA","SITAJARA"]
["DISTRITAL","TACNA","TARATA","SUSAPAYA"]
["DISTRITAL","TACNA","TARATA","TARUCACHI"]
["DISTRITAL","TACNA","TARATA","TICACO"]
["PROVINCIAL","TUMBES","TUMBES","TUMBES"]
["DISTRITAL","TUMBES","TUMBES","CORRALES"]
["DISTRITAL","TUMBES","TUMBES","LA CRUZ"]
["DISTRITAL","TUMBES","TUMBES","PAMPAS DE HOSPITAL"]
["DISTRITAL","TUMBES","TUMBES","SAN JACINTO"]
["DISTRITAL","TUMBES","TUMBES","SAN JUAN DE LA VIRGEN"]
["PROVINCIAL","TUMBES","CONTRALMIRANTE VILLAR","ZORRITOS"]
["DISTRITAL","TUMBES","CONTRALMIRANTE VILLAR","CASITAS"]
["DISTRITAL","TUMBES","CONTRALMIRANTE VILLAR","CANOAS DE PUNTA SAL"]
["PROVINCIAL","TUMBES","ZARUMILLA","ZARUMILLA"]
["DISTRITAL","TUMBES","ZARUMILLA","AGUAS VERDES"]
["DISTRITAL","TUMBES","ZARUMILLA","MATAPALO"]
["DISTRITAL","TUMBES","ZARUMILLA","PAPAYAL"]
["PROVINCIAL","UCAYALI","CORONEL PORTILLO","CALLERIA"]
["DISTRITAL","UCAYALI","CORONEL PORTILLO","CAMPOVERDE"]
["DISTRITAL","UCAYALI","CORONEL PORTILLO","IPARIA"]
["DISTRITAL","UCAYALI","CORONEL PORTILLO","MASISEA"]
["DISTRITAL","UCAYALI","CORONEL PORTILLO","YARINACOCHA"]
["DISTRITAL","UCAYALI","CORONEL PORTILLO","NUEVA REQUENA"]
["DISTRITAL","UCAYALI","CORONEL PORTILLO","MANANTAY"]
["PROVINCIAL","UCAYALI","ATALAYA","RAIMONDI"]
["DISTRITAL","UCAYALI","ATALAYA","SEPAHUA"]
["DISTRITAL","UCAYALI","ATALAYA","TAHUANIA"]
["DISTRITAL","UCAYALI","ATALAYA","YURUA"]
["PROVINCIAL","UCAYALI","PADRE ABAD","PADRE ABAD"]
["DISTRITAL","UCAYALI","PADRE ABAD","IRAZOLA"]
["DISTRITAL","UCAYALI","PADRE ABAD","CURIMANA"]
["DISTRITAL","UCAYALI","PADRE ABAD","NESHUYA"]
["DISTRITAL","UCAYALI","PADRE ABAD","ALEXANDER VON HUMBOLDT"]
["PROVINCIAL","UCAYALI","PURUS","PURUS"]

{"sheet":"EFA","index":8,"n_rows":3,"n_cols":1,"rows_kept":3,"cut":false,"hidden":true,"merged":[]}
["TIPO DE EFA"]
["DISTRITAL Y PROVINCIAL CERCADO"]
["PROVINCIAL"]

{"sheet":"APOYO","index":9,"n_rows":3,"n_cols":1,"rows_kept":3,"cut":false,"hidden":true,"merged":[]}
["TIPO DE PRODUCTOR MINERO"]
["Pequeño Productor Minero"]
["Productor Minero Artesanal"]

{"sheet":"Hoja1","index":10,"n_rows":72,"n_cols":53,"rows_kept":72,"cut":false,"hidden":true,"merged":[[44,16,44,24],[33,3,33,4],[34,3,34,7],[35,3,37,7],[20,35,20,40],[22,35,22,40],[36,16,36,37],[32,38,33,39],[35,38,36,39],[39,16,39,37],[41,16,41,37],[32,16,32,37],[35,16,35,37],[38,38,39,39],[38,16,38,37],[42,16,42,37],[46,4,46,7],[39,3,39,4],[39,7,39,9],[45,8,45,11],[46,8,46,11],[40,7,40,9],[45,4,45,7],[40,3,40,4],[30,16,30,37],[29,38,30,39],[21,16,21,20],[21,21,21,31],[22,16,22,20],[9,33,11,39],[15,9,15,22],[15,27,15,38],[20,16,20,20],[29,16,29,37],[33,7,33,9],[3,0,3,42],[27,38,27,39],[9,3,9,9],[10,3,11,9],[10,12,11,12],[4,0,5,42],[9,16,9,20],[10,16,10,20],[27,16,27,37],[11,16,11,20],[9,21,9,31],[10,21,10,31],[11,21,11,31],[26,2,26,13],[27,2,30,13],[53,3,54,3],[41,38,42,39],[33,16,33,37],[45,16,45,24],[16,9,16,22],[21,3,22,7],[21,9,22,12],[20,21,20,31],[22,21,22,31],[20,3,20,7],[16,27,16,38],[17,9,17,19],[17,20,17,22],[35,9,37,12],[20,9,20,12],[34,9,34,12]]}
[]
[]
[]
["CALCULO DE MULTA POR INCUMPLIMIENTOS A LA NORMATIVA AMBIENTAL EN EL ÁMBITO DE COMPETENCIA DE LOS GOBIERNOS LOCALES"]
["MUNICIPALIDAD DISTRITAL DE ASUNCION"]
[]
[]
[null,"•DATOS DEL ADMINISTRADO",null,null,null,null,null,null,null,null,null,null,null,null,null,"•DIRECCIÓN DE LA UNIDAD FISCALIZABLE"]
[]
[null,null,null,"Razón Social",null,null,null,null,null,null,null,null,"RUC / DNI",null,null,null,"Departamento",null,null,null,null,"AMAZONAS",null,null,null,null,null,null,null,null,null,null,null,"xxx"]
[null,null,null,"xxxx",null,null,null,null,null,null,null,null,"xxxx",null,null,null,"Provincia",null,null,null,null,"CHACHAPOYAS"]
[null,null,null,null,null,null,null,null,null,null,null,null,null,null,null,null,"Distrito",null,null,null,null,"ASUNCION"]
[]
[]
[null,"•DATOS ADICIONALES DEL ADMINISTRADO"]
[null,null,null,null,null,null,null,null,null,"Correo",null,null,null,null,null,null,null,null,null,null,null,null,null,null,null,null,null,"Telefono/Celular"]
[null,null,null,null,null,null,null,null,null,"xxxxx",null,null,null,null,null,null,null,null,null,null,null,null,null,null,null,null,null,"xxxx"]
[]
[]
[null,"•DATOS DE LA MUNICIPALIDAD",null,null,null,null,null,null,null,null,null,null,null,null,null,"•DATOS DEL PERSONAL ADMINISTRATIVO"]
[null,null,null,"Dirección",null,null,null,null,null,"Unidad Orgánica",null,null,null,null,null,null,"Nombre y Apellidos",null,null,null,null,"xxxx",null,null,null,null,null,null,null,null,null,null,null,null,"DNI","xxx"]
[null,null,null,"xxx",null,null,null,null,null,"xxx",null,null,null,null,null,null,"Afectación a Ambiental"]
[null,null,null,null,null,null,null,null,null,null,null,null,null,null,null,null,"Teléfono",null,null,null,null,"xxx",null,null,null,null,null,null,null,null,null,null,null,null,"Correo","xxxx"]
[null,null,null,null,null,null,null,null,null,null,null,null,null,null,null,null,null,null,null,null,null,null,null,null,null,null,null,null,null,null,null,null,null,null,null,null,null,null,null,null,null,null,null,null,"gravedad","Valor asignado","Escenario",null,null,null,"(b)","(c)","(a)"]
[null,null,null,null,null,null,null,null,null,null,null,null,null,null,null,null,null,null,null,null,null,null,null,null,null,null,null,null,null,null,null,null,null,null,null,null,null,null,null,null,null,null,null,null,{"$f":"(AM30+2*AM33+AM36+AM39)","v":11},{"$f":"VLOOKUP(AS25,AY26:AZ41,2,0)","v":3},{"$f":"VLOOKUP(AT25,AZ26:BA41,2,0)","v":"Moderado"},null,null,null,"Gravedad de la consecuencia","Valor asignado","Escenario"]
[null,"•DESCRIPCIÓN DE LA INFRACCIÓN",null,null,null,null,null,null,null,null,null,null,null,null,null,"• FACTORES DE RIESGO",null,null,null,null,null,null,null,null,null,null,null,null,null,null,null,null,null,null,null,null,null,null,null,null,null,null,null,null,null,null,null,null,null,null,20,5,"Crítico"]
[null,null,"Infracción Cometida",null,null,null,null,null,null,null,null,null,null,null,null,null,null,null,null,null,null,null,null,null,null,null,null,null,null,null,null,null,null,null,null,null,null,null,null,null,null,null,null,null,null,null,null,null,null,null,19,5,"Crítico"]
[null,null,"3.- Almacenar los residuos sólidos generados sin haberlos segregado previamente, en espacios no exclusivos para ese fin o sin considerar sus características particulares, peligrosidad, incompatibilidad con otros residuos o reacciones con los recipientes que los contienen.",null,null,null,null,null,null,null,null,null,null,null,null,null,"Afectación a medio Ambiental",null,null,null,null,null,null,null,null,null,null,null,null,null,null,null,null,null,null,null,null,null,"Calificación",null,null,null,null,null,"riesgo",{"$f":"AM42*AT25","v":9},null,null,null,null,18,5,"Crítico"]
[null,null,null,null,null,null,null,null,null,null,null,null,null,null,null,null,null,null,null,null,null,null,null,null,null,null,null,null,null,null,null,null,null,null,null,null,null,null,null,null,null,null,null,null,null,null,null,null,null,null,17,4,"Grave"]
[null,null,null,null,null,null,null,null,null,null,null,null,null,null,null,null,"1) Cantidad (Kg)",null,null,null,null,null,null,null,null,null,null,null,null,null,null,null,null,null,null,null,null,null,3,null,null,null,null,null,null,null,null,null,null,null,16,4,"Grave"]
[null,null,null,null,null,null,null,null,null,null,null,null,null,null,null,null,"De 91 a 1,900 Kg",null,null,null,null,null,null,null,null,null,null,null,null,null,null,null,null,null,null,null,null,null,null,null,null,null,null,null,null,null,null,null,null,null,15,4,"Grave"]
[null,null,null,null,null,null,null,null,null,null,null,null,null,null,null,null,null,null,null,null,null,null,null,null,null,null,null,null,null,null,null,null,null,null,null,null,null,null,null,null,null,null,null,null,null,null,null,null,null,null,14,3,"Moderado"]
[null,"•TIPO DE ACTOR",null,null,null,null,null,null,null,null,null,null,null,null,null,null,"2) Peligrosidad",null,null,null,null,null,null,null,null,null,null,null,null,null,null,null,null,null,null,null,null,null,1,null,null,null,null,null,null,null,null,null,null,null,13,3,"Moderado"]
[null,null,null,null,null,null,null,null,null,null,null,null,null,null,null,null,"Daños leves y reversibles",null,null,null,null,null,null,null,null,null,null,null,null,null,null,null,null,null,null,null,null,null,null,null,null,null,null,null,null,null,null,null,null,null,12,3,"Moderado"]
[null,null,null,"Actor General",null,null,null,null,null,"Actor Específico",null,null,null,null,null,null,null,null,null,null,null,null,null,null,null,null,null,null,null,null,null,null,null,null,null,null,null,null,null,null,null,null,null,null,null,null,null,null,null,null,11,3,"Moderado"]
[null,null,null,"Instituciones públicas y privadas",null,null,null,null,null,"Entidades públicas y privadas",null,null,null,null,null,null,"f3) Medio potencialmente afectado",null,null,null,null,null,null,null,null,null,null,null,null,null,null,null,null,null,null,null,null,null,3,null,null,null,null,null,null,null,null,null,null,null,10,2,"Leve"]
[null,null,null,null,null,null,null,null,null,null,null,null,null,null,null,null,"ANP fuera de administración nacional, regional y privada, o de zonas de amortiguamiento o ecosistemas frágiles",null,null,null,null,null,null,null,null,null,null,null,null,null,null,null,null,null,null,null,null,null,null,null,null,null,null,null,null,null,null,null,null,null,9,2,"Leve"]
[null,null,null,null,null,null,null,null,null,null,null,null,null,null,null,null,null,null,null,null,null,null,null,null,null,null,null,null,null,null,null,null,null,null,null,null,null,null,null,null,null,null,null,null,null,null,null,null,null,null,8,2,"Leve"]
[null,null,null,null,null,null,null,null,null,null,null,null,null,null,null,null,"4) Extensión",null,null,null,null,null,null,null,null,null,null,null,null,null,null,null,null,null,null,null,null,null,3,null,null,null,null,null,null,null,null,null,null,null,7,1,"No relevante"]
[null,null,null,"Costo Evitado",null,null,null,"Ponderador",null,null,null,null,"Beneficio Ilícito",null,null,null,"Extenso",null,null,null,null,null,null,null,null,null,null,null,null,null,null,null,null,null,null,null,null,null,null,null,null,null,null,null,null,null,null,null,null,null,6,1,"No relevante"]
[null,null,null,1670,null,null,null,0.33,null,null,null,null,551.1,null,null,null,null,null,null,null,null,null,null,null,null,null,null,null,null,null,null,null,null,null,null,null,null,null,null,null,null,null,null,null,null,null,null,null,null,null,5,1,"No relevante"]
[null,null,null,null,null,null,null,null,null,null,null,null,null,null,null,null,"5) Frecuencia",null,null,null,null,null,null,null,null,null,null,null,null,null,null,null,null,null,null,null,null,null,3]
[null,null,null,null,null,null,null,null,null,null,null,null,null,null,null,null,"Se estima que pueda suceder dentro de un mes"]
[null,"•CÁLCULO DE MULTA",null,null,null,null,null,null,null,null,null,null,null,null,null,null,null,null,null,null,null,null,null,null,null,null,null,null,null,null,null,null,null,null,null,null,null,null,null,null,null,null,null,null,null,null,null,null,null,"http://www.oefa.gob.pe/wp-content/uploads/2018/12/RES-034-2018-OEFA-CD-ANEXO.pdf","Nivel de riesgo","Escenario"]
[null,null,null,null,null,null,null,null,null,null,null,null,null,null,null,null,"FECHA",null,null,null,null,null,null,null,null,null,null,null,null,null,null,null,null,null,null,null,null,null,null,null,null,null,null,null,null,null,null,null,null,null,25,"Significativo",100]
[null,null,null,"Beneficio Ilícito","Nivel de Riesgo",null,null,null,"UIT Vigente",null,null,null,"MULTA FINAL (UIT)",null,null,null,"27/10/2021",null,null,null,null,null,null,null,null,null,null,null,null,null,null,null,null,null,null,null,null,null,null,null,null,null,null,null,null,null,null,null,null,null,24,"Significativo",{"$f":"(AY46*$BA$45)/$AY$45","v":96}]
[null,null,null,551.1,12,null,null,null,4400,null,null,null,1.5,null,null,null,null,null,null,null,null,null,null,null,null,null,null,null,null,null,null,null,null,null,null,null,null,null,null,null,null,null,null,null,null,null,null,null,null,null,23,"Significativo",{"$f":"(AY47*$BA$45)/$AY$45","v":92}]
[null,null,null,null,null,null,null,null,null,null,null,null,null,null,null,null,null,null,null,null,null,null,null,null,null,null,null,null,null,null,null,null,null,null,null,null,null,null,null,null,null,null,null,null,null,null,null,null,null,null,22,"Significativo",88]
[null,null,null,null,null,null,null,null,null,null,null,null,null,null,null,null,"Leyenda: ",null,null,null,null,null,null,null,null,null,null,null,null,null,null,null,null,null,null,null,null,null,null,null,null,null,null,null,null,null,null,{"$f":"VLOOKUP(E47,AY45:BA71,1,FALSE)","v":12},{"$f":"VLOOKUP(E47,AY45:BA71,2,FALSE)","v":"Moderado"},null,21,"Significativo",84]
[null,null,null,null,"Calificación",null,null,"Magnitud",null,null,null,null,null,null,null,null,"1) Volumen de sustancias o residuos emitidos al entorno",null,null,null,null,null,null,null,null,null,null,null,null,null,null,null,null,null,null,null,null,null,null,null,null,null,null,null,null,null,null,null,{"$f":"VLOOKUP(AV49,AY45:BA71,3,FALSE)","v":48},null,20,"Significativo",80]
[null,null,null,null,{"$f":"E47","v":12},null,null,{"$f":"VLOOKUP(E51,AY45:BA71,2,FALSE)","v":"Moderado"},null,null,null,null,null,null,null,null,"2) Toxicidad de la sustancia emitida.",null,null,null,null,null,null,null,null,null,null,null,null,null,null,null,null,null,null,null,null,null,null,null,null,null,null,null,null,null,null,"valor",{"$f":"AW50","v":48},null,19,"Significativo",76]
[null,null,null,null,null,null,null,null,null,null,null,null,null,null,null,null,"3) Poblacion afectada / Medio afectado.",null,null,null,null,null,null,null,null,null,null,null,null,null,null,null,null,null,null,null,null,null,null,null,null,null,null,null,null,null,null,"tamaño de la aguja",2,null,18,"Significativo",72]
[null,null,null,null,null,null,null,null,null,null,null,null,null,null,null,null,"4) Espacio de influencia del impacto en el entorno.",null,null,null,null,null,null,null,null,null,null,null,null,null,null,null,null,null,null,null,null,null,null,null,null,null,null,null,null,null,null,"diferencia de valor",{"$f":"100-(AW51+AW52)","v":50},null,17,"Significativo",68]
[null,null,null,null,null,null,null,null,null,null,null,null,null,null,null,null,"5) Probabilidad en la que pueda ocurrir o producirse un riesgo ambiental.",null,null,null,null,null,null,null,null,null,null,null,null,null,null,null,null,null,null,null,null,null,null,null,null,null,null,null,null,null,null,"oculto",100,null,16,"Significativo",64]
[]
[null,null,null,null,null,null,null,null,null,null,null,null,null,null,null,null,null,null,null,null,null,null,null,null,null,null,null,null,null,null,null,null,null,null,null,null,null,null,null,null,null,null,null,null,null,null,null,null,null,null,15,"Moderado",60]
[null,null,null,null,null,null,null,null,null,null,null,null,null,null,null,null,null,null,null,null,null,null,null,null,null,null,null,null,null,null,null,null,null,null,null,null,null,null,null,null,null,null,null,null,null,null,null,null,null,null,14,"Moderado",56]
[null,null,null,null,null,null,null,null,null,null,null,null,null,null,null,null,null,null,null,null,null,null,null,null,null,null,null,null,null,null,null,null,null,null,null,null,null,null,null,null,null,null,null,null,null,5,{"$f":"AT58/$AT$61","v":0.2},"Leve",20,null,13,"Moderado",52]
[null,null,null,null,null,null,null,null,null,null,null,null,null,null,null,null,null,null,null,null,null,null,null,null,null,null,null,null,null,null,null,null,null,null,null,null,null,null,null,null,null,null,null,null,null,10,{"$f":"AT59/$AT$61","v":0.4},"Moderado",40,null,12,"Moderado",48]
[null,null,null,null,null,null,null,null,null,null,null,null,null,null,null,null,null,null,null,null,null,null,null,null,null,null,null,null,null,null,null,null,null,null,null,null,null,null,null,null,null,null,null,null,null,10,{"$f":"AT60/$AT$61","v":0.4},"Significativo",40,null,11,"Moderado",44]
[null,null,null,null,null,null,null,null,null,null,null,null,null,null,null,null,null,null,null,null,null,null,null,null,null,null,null,null,null,null,null,null,null,null,null,null,null,null,null,null,null,null,null,null,null,{"$f":"SUM(AT58:AT60)","v":25},{"$f":"AT61/$AT$61","v":1},"TOTAL",100,null,10,"Moderado",40]
[null,null,null,null,null,null,null,null,null,null,null,null,null,null,null,null,null,null,null,null,null,null,null,null,null,null,null,null,null,null,null,null,null,null,null,null,null,null,null,null,null,null,null,null,null,null,null,null,null,null,9,"Moderado",36]
[null,null,null,null,null,null,null,null,null,null,null,null,null,null,null,null,null,null,null,null,null,null,null,null,null,null,null,null,null,null,null,null,null,null,null,null,null,null,null,null,null,null,null,null,null,null,null,null,null,null,8,"Moderado",32]
[null,null,null,null,null,null,null,null,null,null,null,null,null,null,null,null,null,null,null,null,null,null,null,null,null,null,null,null,null,null,null,null,null,null,null,null,null,null,null,null,null,null,null,null,null,null,null,null,null,null,7,"Moderado",28]
[null,null,null,null,null,null,null,null,null,null,null,null,null,null,null,null,null,null,null,null,null,null,null,null,null,null,null,null,null,null,null,null,null,null,null,null,null,null,null,null,null,null,null,null,null,null,null,null,null,null,6,"Moderado",24]
[null,null,null,null,null,null,null,null,null,null,null,null,null,null,null,null,null,null,null,null,null,null,null,null,null,null,null,null,null,null,null,null,null,null,null,null,null,null,null,null,null,null,null,null,null,null,null,null,null,null,5,"Leve",20]
[null,null,null,null,null,null,null,null,null,null,null,null,null,null,null,null,null,null,null,null,null,null,null,null,null,null,null,null,null,null,null,null,null,null,null,null,null,null,null,null,null,null,null,null,null,null,null,null,null,null,4,"Leve",16]
[null,null,null,null,null,null,null,null,null,null,null,null,null,null,null,null,null,null,null,null,null,null,null,null,null,null,null,null,null,null,null,null,null,null,null,null,null,null,null,null,null,null,null,null,null,null,null,null,null,null,3,"Leve",12]
[null,null,null,null,null,null,null,null,null,null,null,null,null,null,null,null,null,null,null,null,null,null,null,null,null,null,null,null,null,null,null,null,null,null,null,null,null,null,null,null,null,null,null,null,null,null,null,null,null,null,2,"Leve",8]
[null,null,null,null,null,null,null,null,null,null,null,null,null,null,null,null,null,null,null,null,null,null,null,null,null,null,null,null,null,null,null,null,null,null,null,null,null,null,null,null,null,null,null,null,null,null,null,null,null,null,1,"Leve",{"$f":"(AY70*$BA$45)/$AY$45","v":4}]
[null,null,null,null,null,null,null,null,null,null,null,null,null,null,null,null,null,null,null,null,null,null,null,null,null,null,null,null,null,null,null,null,null,null,null,null,null,null,null,null,null,null,null,null,null,null,null,null,null,null,0,"Leve",{"$f":"(AY71*$BA$45)/$AY$45","v":0}]
[null,null,null,null,null,null,null,null,null,null,null,null,null,null,null,null,null,null,null,null,null,null,null,null,null,null,null,null,null,null,null,null,null,null,null,null,null,null,null,null,null,null,null,null,null,null,null,null,null,null,{"$f":"SUM(AY45:AY71)","v":325}]